Workbook

Sheet Instructions
A1: Step 1
A2: At the top of the 'Graduate Preferences' Whorksheet, indicate the number of graduates and divisions. A matrix will appear.
A5: Step 2
A6: In the first column, indicate the Graduates' names, one per row. In the first row, indicate the Divisions' names, one per column.
A9: Step 3
A10: In each cell of the matrix, indicate the Graduate's preference for the corresponding Division. If the Graduate has not indicated a preference for this division, leave the cell blank. In the example, Graduate 1 has indicated Division 2 as his/her first preference, Division 3 as his second preference and has not listed Division 1. Graduate 2 has listed, in order, Divisions 3, 1 and 2. | C10: Graduate Preferences
C11: Graduates/Divisions | D11: D1 | E11: D2 | F11: D3
C12: G1 | E12: 1 | F12: 2
C13: G2 | D13: 2 | E13: 3 | F13: 1
A16: Step 4
A17: In the 'Division Preferences' Worksheet, indicate the capacity of each Division in the second row. This is the maximum number of graduates the division can accommodate. In the example, Division 1 can accommodate two students while Divisions 2 and 3 can accomodate 1 student.
C19: Division Preferences
C20: Graduates/Divisions | D20: D1 | E20: D2 | F20: D3
A21: Step 5 | C21: Capacities | D21: 2 | E21: 1 | F21: 1
A22: In each cell of the matrix, indicate the preference of the division's manager for the corresponding student. If the division is not interested in working with this graduate, leave the cell blank. In the example, Division 1 preferes Graduate 1 to Graduate 2 while Division 2 has the opposite preference. Division 3 would like to work with Graduate 2 but not with Graduate 1. | C22: G1 | D22: 1 | E22: 2
C23: G2 | D23: 2 | E23: 1 | F23: 1
A27: Step 6
A28: In the 'Final Matching' Worksheet, Click on 'Match' to matching resulting of the 'Deferred Acceptance Algorithm'. This might take up to a minute.
A31: Note 1
A32: The 'Process' Worksheet displays each step of the algorithm while the 'Work' Worksheet only contains some of the program's calculation and is of no interest to the user.
A35: Note 2
A36: Should you wish to change some of the preferences and capacities, please ensure to press the 'Clean' button before running the algorithm again.

Sheet Graduate Preferences
A1: Number of Graduates | B1: 26 | C1: Number of Divisions | E1: 7
A4: Graduates / Divisions | B4: Finance | C4: Marketing | D4: Law | E4: Jedi | F4: Economics | G4: Budget | H4: Research
A5: Alvin | B5: 1 | C5: 3 | D5: 2 | E5: 5 | G5: 4 | H5: 6
A6: Bob | B6: 4 | C6: 3 | D6: 2 | E6: 1
A7: Chelsea | B7: 2 | C7: 3 | E7: 1 | G7: 5 | H7: 4
A8: Daniel | B8: 4 | C8: 3 | D8: 5 | E8: 2 | F8: 1 | H8: 6
A9: Emily | C9: 3 | E9: 1 | F9: 2 | H9: 4
A10: Frank | B10: 5 | C10: 1 | D10: 6 | E10: 2 | F10: 4 | G10: 7 | H10: 3
A11: Geraldine | C11: 2 | E11: 4 | F11: 5 | G11: 3 | H11: 1
A12: Haley | B12: 5 | C12: 4 | D12: 1 | E12: 6 | F12: 3 | H12: 2
A13: Ian | B13: 1 | C13: 2 | E13: 4 | F13: 3 | G13: 5
A14: Jeffrey | B14: 1 | C14: 5 | D14: 3 | E14: 6 | F14: 7 | G14: 4 | H14: 2
A15: Kevin | B15: 5 | C15: 6 | E15: 4 | F15: 1 | G15: 2 | H15: 3
A16: Leia | B16: 2 | C16: 5 | D16: 6 | E16: 4 | F16: 3 | G16: 7 | H16: 1
A17: Macey | C17: 4 | D17: 6 | E17: 3 | F17: 2 | G17: 1 | H17: 5
A18: Natalie | B18: 2 | D18: 3 | E18: 4 | F18: 5 | G18: 1
A19: Oliver | C19: 5 | D19: 4 | F19: 2 | G19: 1 | H19: 3
A20: Phoebe | B20: 6 | C20: 1 | D20: 4 | E20: 3 | G20: 5 | H20: 2
A21: Quentin | C21: 1 | D21: 2 | G21: 3
A22: Rachael | B22: 2 | C22: 3 | D22: 5 | E22: 1 | F22: 6 | H22: 4
A23: Stuart | B23: 2 | C23: 1 | D23: 5 | E23: 4 | G23: 6 | H23: 3
A24: Theodore | B24: 3 | C24: 1 | E24: 4 | F24: 2
A25: Ursula | B25: 4 | C25: 1 | E25: 5 | F25: 2 | G25: 3 | H25: 6
A26: Victor | C26: 2 | D26: 3 | F26: 4 | G26: 5 | H26: 1
A27: Wendy | B27: 6 | C27: 3 | D27: 5 | F27: 1 | G27: 2 | H27: 4
A28: Xavier | B28: 3 | C28: 4 | D28: 1 | F28: 2 | G28: 5 | H28: 6
A29: Yasmin | B29: 2 | C29: 6 | D29: 4 | E29: 1 | F29: 5 | G29: 7 | H29: 3
A30: Zelda | E30: 3 | F30: 4 | G30: 2 | H30: 1

Sheet Division Preferences
A1: =IF('Graduate Preferences'!A1=0,"",'Graduate Preferences'!A1) -> Number of Graduates | B1: =IF('Graduate Preferences'!B1=0,"",'Graduate Preferences'!B1) -> 26 | C1: =IF('Graduate Preferences'!C1=0,"",'Graduate Preferences'!C1) -> Number of Divisions | E1: =IF('Graduate Preferences'!E1=0,"",'Graduate Preferences'!E1) -> 7 | F1: =IF('Graduate Preferences'!F1=0,"",'Graduate Preferences'!F1) ->  | G1: =IF('Graduate Preferences'!G1=0,"",'Graduate Preferences'!G1) ->  | H1: =IF('Graduate Preferences'!H1=0,"",'Graduate Preferences'!H1) ->  | I1: =IF('Graduate Preferences'!I1=0,"",'Graduate Preferences'!I1) ->  | J1: =IF('Graduate Preferences'!J1=0,"",'Graduate Preferences'!J1) ->  | K1: =IF('Graduate Preferences'!K1=0,"",'Graduate Preferences'!K1) ->  | L1: =IF('Graduate Preferences'!L1=0,"",'Graduate Preferences'!L1) ->  | M1: =IF('Graduate Preferences'!M1=0,"",'Graduate Preferences'!M1) -> 
A2: =IF('Graduate Preferences'!A2=0,"",'Graduate Preferences'!A2) -> 
A3: =IF('Graduate Preferences'!A3=0,"",'Graduate Preferences'!A3) -> 
A4: =IF('Graduate Preferences'!A4=0,"",'Graduate Preferences'!A4) -> Graduates / Divisions | B4: =IF('Graduate Preferences'!B4=0,"",'Graduate Preferences'!B4) -> Finance | C4: =IF('Graduate Preferences'!C4=0,"",'Graduate Preferences'!C4) -> Marketing | D4: =IF('Graduate Preferences'!D4=0,"",'Graduate Preferences'!D4) -> Law | E4: =IF('Graduate Preferences'!E4=0,"",'Graduate Preferences'!E4) -> Jedi | F4: =IF('Graduate Preferences'!F4=0,"",'Graduate Preferences'!F4) -> Economics | G4: =IF('Graduate Preferences'!G4=0,"",'Graduate Preferences'!G4) -> Budget | H4: =IF('Graduate Preferences'!H4=0,"",'Graduate Preferences'!H4) -> Research | I4: =IF('Graduate Preferences'!I4=0,"",'Graduate Preferences'!I4) ->  | J4: =IF('Graduate Preferences'!J4=0,"",'Graduate Preferences'!J4) ->  | K4: =IF('Graduate Preferences'!K4=0,"",'Graduate Preferences'!K4) ->  | L4: =IF('Graduate Preferences'!L4=0,"",'Graduate Preferences'!L4) ->  | M4: =IF('Graduate Preferences'!M4=0,"",'Graduate Preferences'!M4) ->  | N4: =IF('Graduate Preferences'!N4=0,"",'Graduate Preferences'!N4) ->  | O4: =IF('Graduate Preferences'!O4=0,"",'Graduate Preferences'!O4) ->  | P4: =IF('Graduate Preferences'!P4=0,"",'Graduate Preferences'!P4) ->  | Q4: =IF('Graduate Preferences'!Q4=0,"",'Graduate Preferences'!Q4) ->  | R4: =IF('Graduate Preferences'!R4=0,"",'Graduate Preferences'!R4) ->  | S4: =IF('Graduate Preferences'!S4=0,"",'Graduate Preferences'!S4) ->  | T4: =IF('Graduate Preferences'!T4=0,"",'Graduate Preferences'!T4) ->  | U4: =IF('Graduate Preferences'!U4=0,"",'Graduate Preferences'!U4) ->  | V4: =IF('Graduate Preferences'!V4=0,"",'Graduate Preferences'!V4) ->  | W4: =IF('Graduate Preferences'!W4=0,"",'Graduate Preferences'!W4) ->  | X4: =IF('Graduate Preferences'!X4=0,"",'Graduate Preferences'!X4) ->  | Y4: =IF('Graduate Preferences'!Y4=0,"",'Graduate Preferences'!Y4) ->  | Z4: =IF('Graduate Preferences'!Z4=0,"",'Graduate Preferences'!Z4) ->  | AA4: =IF('Graduate Preferences'!AA4=0,"",'Graduate Preferences'!AA4) ->  | AB4: =IF('Graduate Preferences'!AB4=0,"",'Graduate Preferences'!AB4) ->  | AC4: =IF('Graduate Preferences'!AC4=0,"",'Graduate Preferences'!AC4) ->  | AD4: =IF('Graduate Preferences'!AD4=0,"",'Graduate Preferences'!AD4) ->  | AE4: =IF('Graduate Preferences'!AE4=0,"",'Graduate Preferences'!AE4) ->  | AF4: =IF('Graduate Preferences'!AF4=0,"",'Graduate Preferences'!AF4) ->  | AG4: =IF('Graduate Preferences'!AG4=0,"",'Graduate Preferences'!AG4) ->  | AH4: =IF('Graduate Preferences'!AH4=0,"",'Graduate Preferences'!AH4) ->  | AI4: =IF('Graduate Preferences'!AI4=0,"",'Graduate Preferences'!AI4) ->  | AJ4: =IF('Graduate Preferences'!AJ4=0,"",'Graduate Preferences'!AJ4) ->  | AK4: =IF('Graduate Preferences'!AK4=0,"",'Graduate Preferences'!AK4) ->  | AL4: =IF('Graduate Preferences'!AL4=0,"",'Graduate Preferences'!AL4) ->  | AM4: =IF('Graduate Preferences'!AM4=0,"",'Graduate Preferences'!AM4) ->  | AN4: =IF('Graduate Preferences'!AN4=0,"",'Graduate Preferences'!AN4) ->  | AO4: =IF('Graduate Preferences'!AO4=0,"",'Graduate Preferences'!AO4) ->  | AP4: =IF('Graduate Preferences'!AP4=0,"",'Graduate Preferences'!AP4) ->  | AQ4: =IF('Graduate Preferences'!AQ4=0,"",'Graduate Preferences'!AQ4) ->  | AR4: =IF('Graduate Preferences'!AR4=0,"",'Graduate Preferences'!AR4) ->  | AS4: =IF('Graduate Preferences'!AS4=0,"",'Graduate Preferences'!AS4) ->  | AT4: =IF('Graduate Preferences'!AT4=0,"",'Graduate Preferences'!AT4) ->  | AU4: =IF('Graduate Preferences'!AU4=0,"",'Graduate Preferences'!AU4) ->  | AV4: =IF('Graduate Preferences'!AV4=0,"",'Graduate Preferences'!AV4) ->  | AW4: =IF('Graduate Preferences'!AW4=0,"",'Graduate Preferences'!AW4) ->  | AX4: =IF('Graduate Preferences'!AX4=0,"",'Graduate Preferences'!AX4) ->  | AY4: =IF('Graduate Preferences'!AY4=0,"",'Graduate Preferences'!AY4) ->  | AZ4: =IF('Graduate Preferences'!AZ4=0,"",'Graduate Preferences'!AZ4) ->  | BA4: =IF('Graduate Preferences'!BA4=0,"",'Graduate Preferences'!BA4) ->  | BB4: =IF('Graduate Preferences'!BB4=0,"",'Graduate Preferences'!BB4) ->  | BC4: =IF('Graduate Preferences'!BC4=0,"",'Graduate Preferences'!BC4) ->  | BD4: =IF('Graduate Preferences'!BD4=0,"",'Graduate Preferences'!BD4) ->  | BE4: =IF('Graduate Preferences'!BE4=0,"",'Graduate Preferences'!BE4) ->  | BF4: =IF('Graduate Preferences'!BF4=0,"",'Graduate Preferences'!BF4) ->  | BG4: =IF('Graduate Preferences'!BG4=0,"",'Graduate Preferences'!BG4) ->  | BH4: =IF('Graduate Preferences'!BH4=0,"",'Graduate Preferences'!BH4) ->  | BI4: =IF('Graduate Preferences'!BI4=0,"",'Graduate Preferences'!BI4) ->  | BJ4: =IF('Graduate Preferences'!BJ4=0,"",'Graduate Preferences'!BJ4) ->  | BK4: =IF('Graduate Preferences'!BK4=0,"",'Graduate Preferences'!BK4) ->  | BL4: =IF('Graduate Preferences'!BL4=0,"",'Graduate Preferences'!BL4) ->  | BM4: =IF('Graduate Preferences'!BM4=0,"",'Graduate Preferences'!BM4) ->  | BN4: =IF('Graduate Preferences'!BN4=0,"",'Graduate Preferences'!BN4) ->  | BO4: =IF('Graduate Preferences'!BO4=0,"",'Graduate Preferences'!BO4) ->  | BP4: =IF('Graduate Preferences'!BP4=0,"",'Graduate Preferences'!BP4) ->  | BQ4: =IF('Graduate Preferences'!BQ4=0,"",'Graduate Preferences'!BQ4) ->  | BR4: =IF('Graduate Preferences'!BR4=0,"",'Graduate Preferences'!BR4) ->  | BS4: =IF('Graduate Preferences'!BS4=0,"",'Graduate Preferences'!BS4) ->  | BT4: =IF('Graduate Preferences'!BT4=0,"",'Graduate Preferences'!BT4) ->  | BU4: =IF('Graduate Preferences'!BU4=0,"",'Graduate Preferences'!BU4) ->  | BV4: =IF('Graduate Preferences'!BV4=0,"",'Graduate Preferences'!BV4) ->  | BW4: =IF('Graduate Preferences'!BW4=0,"",'Graduate Preferences'!BW4) ->  | BX4: =IF('Graduate Preferences'!BX4=0,"",'Graduate Preferences'!BX4) ->  | BY4: =IF('Graduate Preferences'!BY4=0,"",'Graduate Preferences'!BY4) ->  | BZ4: =IF('Graduate Preferences'!BZ4=0,"",'Graduate Preferences'!BZ4) ->  | CA4: =IF('Graduate Preferences'!CA4=0,"",'Graduate Preferences'!CA4) ->  | CB4: =IF('Graduate Preferences'!CB4=0,"",'Graduate Preferences'!CB4) ->  | CC4: =IF('Graduate Preferences'!CC4=0,"",'Graduate Preferences'!CC4) ->  | CD4: =IF('Graduate Preferences'!CD4=0,"",'Graduate Preferences'!CD4) ->  | CE4: =IF('Graduate Preferences'!CE4=0,"",'Graduate Preferences'!CE4) ->  | CF4: =IF('Graduate Preferences'!CF4=0,"",'Graduate Preferences'!CF4) ->  | CG4: =IF('Graduate Preferences'!CG4=0,"",'Graduate Preferences'!CG4) ->  | CH4: =IF('Graduate Preferences'!CH4=0,"",'Graduate Preferences'!CH4) ->  | CI4: =IF('Graduate Preferences'!CI4=0,"",'Graduate Preferences'!CI4) ->  | CJ4: =IF('Graduate Preferences'!CJ4=0,"",'Graduate Preferences'!CJ4) ->  | CK4: =IF('Graduate Preferences'!CK4=0,"",'Graduate Preferences'!CK4) ->  | CL4: =IF('Graduate Preferences'!CL4=0,"",'Graduate Preferences'!CL4) ->  | CM4: =IF('Graduate Preferences'!CM4=0,"",'Graduate Preferences'!CM4) ->  | CN4: =IF('Graduate Preferences'!CN4=0,"",'Graduate Preferences'!CN4) ->  | CO4: =IF('Graduate Preferences'!CO4=0,"",'Graduate Preferences'!CO4) ->  | CP4: =IF('Graduate Preferences'!CP4=0,"",'Graduate Preferences'!CP4) ->  | CQ4: =IF('Graduate Preferences'!CQ4=0,"",'Graduate Preferences'!CQ4) ->  | CR4: =IF('Graduate Preferences'!CR4=0,"",'Graduate Preferences'!CR4) ->  | CS4: =IF('Graduate Preferences'!CS4=0,"",'Graduate Preferences'!CS4) ->  | CT4: =IF('Graduate Preferences'!CT4=0,"",'Graduate Preferences'!CT4) ->  | CU4: =IF('Graduate Preferences'!CU4=0,"",'Graduate Preferences'!CU4) ->  | CV4: =IF('Graduate Preferences'!CV4=0,"",'Graduate Preferences'!CV4) ->  | CW4: =IF('Graduate Preferences'!CW4=0,"",'Graduate Preferences'!CW4) ->  | CX4: =IF('Graduate Preferences'!CX4=0,"",'Graduate Preferences'!CX4) ->  | CY4: =IF('Graduate Preferences'!CY4=0,"",'Graduate Preferences'!CY4) ->  | CZ4: =IF('Graduate Preferences'!CZ4=0,"",'Graduate Preferences'!CZ4) ->  | DA4: =IF('Graduate Preferences'!DA4=0,"",'Graduate Preferences'!DA4) ->  | DB4: =IF('Graduate Preferences'!DB4=0,"",'Graduate Preferences'!DB4) ->  | DC4: =IF('Graduate Preferences'!DC4=0,"",'Graduate Preferences'!DC4) ->  | DD4: =IF('Graduate Preferences'!DD4=0,"",'Graduate Preferences'!DD4) ->  | DE4: =IF('Graduate Preferences'!DE4=0,"",'Graduate Preferences'!DE4) ->  | DF4: =IF('Graduate Preferences'!DF4=0,"",'Graduate Preferences'!DF4) ->  | DG4: =IF('Graduate Preferences'!DG4=0,"",'Graduate Preferences'!DG4) ->  | DH4: =IF('Graduate Preferences'!DH4=0,"",'Graduate Preferences'!DH4) ->  | DI4: =IF('Graduate Preferences'!DI4=0,"",'Graduate Preferences'!DI4) ->  | DJ4: =IF('Graduate Preferences'!DJ4=0,"",'Graduate Preferences'!DJ4) ->  | DK4: =IF('Graduate Preferences'!DK4=0,"",'Graduate Preferences'!DK4) ->  | DL4: =IF('Graduate Preferences'!DL4=0,"",'Graduate Preferences'!DL4) ->  | DM4: =IF('Graduate Preferences'!DM4=0,"",'Graduate Preferences'!DM4) ->  | DN4: =IF('Graduate Preferences'!DN4=0,"",'Graduate Preferences'!DN4) ->  | DO4: =IF('Graduate Preferences'!DO4=0,"",'Graduate Preferences'!DO4) ->  | DP4: =IF('Graduate Preferences'!DP4=0,"",'Graduate Preferences'!DP4) ->  | DQ4: =IF('Graduate Preferences'!DQ4=0,"",'Graduate Preferences'!DQ4) ->  | DR4: =IF('Graduate Preferences'!DR4=0,"",'Graduate Preferences'!DR4) ->  | DS4: =IF('Graduate Preferences'!DS4=0,"",'Graduate Preferences'!DS4) ->  | DT4: =IF('Graduate Preferences'!DT4=0,"",'Graduate Preferences'!DT4) ->  | DU4: =IF('Graduate Preferences'!DU4=0,"",'Graduate Preferences'!DU4) ->  | DV4: =IF('Graduate Preferences'!DV4=0,"",'Graduate Preferences'!DV4) ->  | DW4: =IF('Graduate Preferences'!DW4=0,"",'Graduate Preferences'!DW4) ->  | DX4: =IF('Graduate Preferences'!DX4=0,"",'Graduate Preferences'!DX4) ->  | DY4: =IF('Graduate Preferences'!DY4=0,"",'Graduate Preferences'!DY4) ->  | DZ4: =IF('Graduate Preferences'!DZ4=0,"",'Graduate Preferences'!DZ4) ->  | EA4: =IF('Graduate Preferences'!EA4=0,"",'Graduate Preferences'!EA4) ->  | EB4: =IF('Graduate Preferences'!EB4=0,"",'Graduate Preferences'!EB4) ->  | EC4: =IF('Graduate Preferences'!EC4=0,"",'Graduate Preferences'!EC4) ->  | ED4: =IF('Graduate Preferences'!ED4=0,"",'Graduate Preferences'!ED4) ->  | EE4: =IF('Graduate Preferences'!EE4=0,"",'Graduate Preferences'!EE4) ->  | EF4: =IF('Graduate Preferences'!EF4=0,"",'Graduate Preferences'!EF4) ->  | EG4: =IF('Graduate Preferences'!EG4=0,"",'Graduate Preferences'!EG4) ->  | EH4: =IF('Graduate Preferences'!EH4=0,"",'Graduate Preferences'!EH4) ->  | EI4: =IF('Graduate Preferences'!EI4=0,"",'Graduate Preferences'!EI4) ->  | EJ4: =IF('Graduate Preferences'!EJ4=0,"",'Graduate Preferences'!EJ4) ->  | EK4: =IF('Graduate Preferences'!EK4=0,"",'Graduate Preferences'!EK4) ->  | EL4: =IF('Graduate Preferences'!EL4=0,"",'Graduate Preferences'!EL4) ->  | EM4: =IF('Graduate Preferences'!EM4=0,"",'Graduate Preferences'!EM4) ->  | EN4: =IF('Graduate Preferences'!EN4=0,"",'Graduate Preferences'!EN4) ->  | EO4: =IF('Graduate Preferences'!EO4=0,"",'Graduate Preferences'!EO4) ->  | EP4: =IF('Graduate Preferences'!EP4=0,"",'Graduate Preferences'!EP4) ->  | EQ4: =IF('Graduate Preferences'!EQ4=0,"",'Graduate Preferences'!EQ4) ->  | ER4: =IF('Graduate Preferences'!ER4=0,"",'Graduate Preferences'!ER4) ->  | ES4: =IF('Graduate Preferences'!ES4=0,"",'Graduate Preferences'!ES4) ->  | ET4: =IF('Graduate Preferences'!ET4=0,"",'Graduate Preferences'!ET4) ->  | EU4: =IF('Graduate Preferences'!EU4=0,"",'Graduate Preferences'!EU4) ->  | EV4: =IF('Graduate Preferences'!EV4=0,"",'Graduate Preferences'!EV4) ->  | EW4: =IF('Graduate Preferences'!EW4=0,"",'Graduate Preferences'!EW4) ->  | EX4: =IF('Graduate Preferences'!EX4=0,"",'Graduate Preferences'!EX4) ->  | EY4: =IF('Graduate Preferences'!EY4=0,"",'Graduate Preferences'!EY4) ->  | EZ4: =IF('Graduate Preferences'!EZ4=0,"",'Graduate Preferences'!EZ4) ->  | FA4: =IF('Graduate Preferences'!FA4=0,"",'Graduate Preferences'!FA4) ->  | FB4: =IF('Graduate Preferences'!FB4=0,"",'Graduate Preferences'!FB4) ->  | FC4: =IF('Graduate Preferences'!FC4=0,"",'Graduate Preferences'!FC4) ->  | FD4: =IF('Graduate Preferences'!FD4=0,"",'Graduate Preferences'!FD4) ->  | FE4: =IF('Graduate Preferences'!FE4=0,"",'Graduate Preferences'!FE4) ->  | FF4: =IF('Graduate Preferences'!FF4=0,"",'Graduate Preferences'!FF4) ->  | FG4: =IF('Graduate Preferences'!FG4=0,"",'Graduate Preferences'!FG4) ->  | FH4: =IF('Graduate Preferences'!FH4=0,"",'Graduate Preferences'!FH4) ->  | FI4: =IF('Graduate Preferences'!FI4=0,"",'Graduate Preferences'!FI4) ->  | FJ4: =IF('Graduate Preferences'!FJ4=0,"",'Graduate Preferences'!FJ4) ->  | FK4: =IF('Graduate Preferences'!FK4=0,"",'Graduate Preferences'!FK4) ->  | FL4: =IF('Graduate Preferences'!FL4=0,"",'Graduate Preferences'!FL4) ->  | FM4: =IF('Graduate Preferences'!FM4=0,"",'Graduate Preferences'!FM4) ->  | FN4: =IF('Graduate Preferences'!FN4=0,"",'Graduate Preferences'!FN4) ->  | FO4: =IF('Graduate Preferences'!FO4=0,"",'Graduate Preferences'!FO4) ->  | FP4: =IF('Graduate Preferences'!FP4=0,"",'Graduate Preferences'!FP4) ->  | FQ4: =IF('Graduate Preferences'!FQ4=0,"",'Graduate Preferences'!FQ4) ->  | FR4: =IF('Graduate Preferences'!FR4=0,"",'Graduate Preferences'!FR4) ->  | FS4: =IF('Graduate Preferences'!FS4=0,"",'Graduate Preferences'!FS4) ->  | FT4: =IF('Graduate Preferences'!FT4=0,"",'Graduate Preferences'!FT4) ->  | FU4: =IF('Graduate Preferences'!FU4=0,"",'Graduate Preferences'!FU4) ->  | FV4: =IF('Graduate Preferences'!FV4=0,"",'Graduate Preferences'!FV4) ->  | FW4: =IF('Graduate Preferences'!FW4=0,"",'Graduate Preferences'!FW4) ->  | FX4: =IF('Graduate Preferences'!FX4=0,"",'Graduate Preferences'!FX4) ->  | FY4: =IF('Graduate Preferences'!FY4=0,"",'Graduate Preferences'!FY4) ->  | FZ4: =IF('Graduate Preferences'!FZ4=0,"",'Graduate Preferences'!FZ4) ->  | GA4: =IF('Graduate Preferences'!GA4=0,"",'Graduate Preferences'!GA4) ->  | GB4: =IF('Graduate Preferences'!GB4=0,"",'Graduate Preferences'!GB4) ->  | GC4: =IF('Graduate Preferences'!GC4=0,"",'Graduate Preferences'!GC4) ->  | GD4: =IF('Graduate Preferences'!GD4=0,"",'Graduate Preferences'!GD4) ->  | GE4: =IF('Graduate Preferences'!GE4=0,"",'Graduate Preferences'!GE4) ->  | GF4: =IF('Graduate Preferences'!GF4=0,"",'Graduate Preferences'!GF4) ->  | GG4: =IF('Graduate Preferences'!GG4=0,"",'Graduate Preferences'!GG4) ->  | GH4: =IF('Graduate Preferences'!GH4=0,"",'Graduate Preferences'!GH4) ->  | GI4: =IF('Graduate Preferences'!GI4=0,"",'Graduate Preferences'!GI4) ->  | GJ4: =IF('Graduate Preferences'!GJ4=0,"",'Graduate Preferences'!GJ4) ->  | GK4: =IF('Graduate Preferences'!GK4=0,"",'Graduate Preferences'!GK4) ->  | GL4: =IF('Graduate Preferences'!GL4=0,"",'Graduate Preferences'!GL4) ->  | GM4: =IF('Graduate Preferences'!GM4=0,"",'Graduate Preferences'!GM4) ->  | GN4: =IF('Graduate Preferences'!GN4=0,"",'Graduate Preferences'!GN4) ->  | GO4: =IF('Graduate Preferences'!GO4=0,"",'Graduate Preferences'!GO4) ->  | GP4: =IF('Graduate Preferences'!GP4=0,"",'Graduate Preferences'!GP4) ->  | GQ4: =IF('Graduate Preferences'!GQ4=0,"",'Graduate Preferences'!GQ4) ->  | GR4: =IF('Graduate Preferences'!GR4=0,"",'Graduate Preferences'!GR4) ->  | GS4: =IF('Graduate Preferences'!GS4=0,"",'Graduate Preferences'!GS4) ->  | GT4: =IF('Graduate Preferences'!GT4=0,"",'Graduate Preferences'!GT4) ->  | GU4: =IF('Graduate Preferences'!GU4=0,"",'Graduate Preferences'!GU4) ->  | GV4: =IF('Graduate Preferences'!GV4=0,"",'Graduate Preferences'!GV4) ->  | GW4: =IF('Graduate Preferences'!GW4=0,"",'Graduate Preferences'!GW4) ->  | GX4: =IF('Graduate Preferences'!GX4=0,"",'Graduate Preferences'!GX4) ->  | GY4: =IF('Graduate Preferences'!GY4=0,"",'Graduate Preferences'!GY4) ->  | GZ4: =IF('Graduate Preferences'!GZ4=0,"",'Graduate Preferences'!GZ4) ->  | HA4: =IF('Graduate Preferences'!HA4=0,"",'Graduate Preferences'!HA4) ->  | HB4: =IF('Graduate Preferences'!HB4=0,"",'Graduate Preferences'!HB4) ->  | HC4: =IF('Graduate Preferences'!HC4=0,"",'Graduate Preferences'!HC4) ->  | HD4: =IF('Graduate Preferences'!HD4=0,"",'Graduate Preferences'!HD4) ->  | HE4: =IF('Graduate Preferences'!HE4=0,"",'Graduate Preferences'!HE4) ->  | HF4: =IF('Graduate Preferences'!HF4=0,"",'Graduate Preferences'!HF4) ->  | HG4: =IF('Graduate Preferences'!HG4=0,"",'Graduate Preferences'!HG4) ->  | HH4: =IF('Graduate Preferences'!HH4=0,"",'Graduate Preferences'!HH4) ->  | HI4: =IF('Graduate Preferences'!HI4=0,"",'Graduate Preferences'!HI4) ->  | HJ4: =IF('Graduate Preferences'!HJ4=0,"",'Graduate Preferences'!HJ4) ->  | HK4: =IF('Graduate Preferences'!HK4=0,"",'Graduate Preferences'!HK4) ->  | HL4: =IF('Graduate Preferences'!HL4=0,"",'Graduate Preferences'!HL4) ->  | HM4: =IF('Graduate Preferences'!HM4=0,"",'Graduate Preferences'!HM4) ->  | HN4: =IF('Graduate Preferences'!HN4=0,"",'Graduate Preferences'!HN4) ->  | HO4: =IF('Graduate Preferences'!HO4=0,"",'Graduate Preferences'!HO4) ->  | HP4: =IF('Graduate Preferences'!HP4=0,"",'Graduate Preferences'!HP4) ->  | HQ4: =IF('Graduate Preferences'!HQ4=0,"",'Graduate Preferences'!HQ4) ->  | HR4: =IF('Graduate Preferences'!HR4=0,"",'Graduate Preferences'!HR4) ->  | HS4: =IF('Graduate Preferences'!HS4=0,"",'Graduate Preferences'!HS4) ->  | HT4: =IF('Graduate Preferences'!HT4=0,"",'Graduate Preferences'!HT4) ->  | HU4: =IF('Graduate Preferences'!HU4=0,"",'Graduate Preferences'!HU4) ->  | HV4: =IF('Graduate Preferences'!HV4=0,"",'Graduate Preferences'!HV4) ->  | HW4: =IF('Graduate Preferences'!HW4=0,"",'Graduate Preferences'!HW4) ->  | HX4: =IF('Graduate Preferences'!HX4=0,"",'Graduate Preferences'!HX4) ->  | HY4: =IF('Graduate Preferences'!HY4=0,"",'Graduate Preferences'!HY4) ->  | HZ4: =IF('Graduate Preferences'!HZ4=0,"",'Graduate Preferences'!HZ4) ->  | IA4: =IF('Graduate Preferences'!IA4=0,"",'Graduate Preferences'!IA4) ->  | IB4: =IF('Graduate Preferences'!IB4=0,"",'Graduate Preferences'!IB4) ->  | IC4: =IF('Graduate Preferences'!IC4=0,"",'Graduate Preferences'!IC4) ->  | ID4: =IF('Graduate Preferences'!ID4=0,"",'Graduate Preferences'!ID4) ->  | IE4: =IF('Graduate Preferences'!IE4=0,"",'Graduate Preferences'!IE4) ->  | IF4: =IF('Graduate Preferences'!IF4=0,"",'Graduate Preferences'!IF4) ->  | IG4: =IF('Graduate Preferences'!IG4=0,"",'Graduate Preferences'!IG4) ->  | IH4: =IF('Graduate Preferences'!IH4=0,"",'Graduate Preferences'!IH4) ->  | II4: =IF('Graduate Preferences'!II4=0,"",'Graduate Preferences'!II4) ->  | IJ4: =IF('Graduate Preferences'!IJ4=0,"",'Graduate Preferences'!IJ4) ->  | IK4: =IF('Graduate Preferences'!IK4=0,"",'Graduate Preferences'!IK4) ->  | IL4: =IF('Graduate Preferences'!IL4=0,"",'Graduate Preferences'!IL4) ->  | IM4: =IF('Graduate Preferences'!IM4=0,"",'Graduate Preferences'!IM4) ->  | IN4: =IF('Graduate Preferences'!IN4=0,"",'Graduate Preferences'!IN4) ->  | IO4: =IF('Graduate Preferences'!IO4=0,"",'Graduate Preferences'!IO4) ->  | IP4: =IF('Graduate Preferences'!IP4=0,"",'Graduate Preferences'!IP4) ->  | IQ4: =IF('Graduate Preferences'!IQ4=0,"",'Graduate Preferences'!IQ4) ->  | IR4: =IF('Graduate Preferences'!IR4=0,"",'Graduate Preferences'!IR4) ->  | IS4: =IF('Graduate Preferences'!IS4=0,"",'Graduate Preferences'!IS4) ->  | IT4: =IF('Graduate Preferences'!IT4=0,"",'Graduate Preferences'!IT4) ->  | IU4: =IF('Graduate Preferences'!IU4=0,"",'Graduate Preferences'!IU4) ->  | IV4: =IF('Graduate Preferences'!IV4=0,"",'Graduate Preferences'!IV4) ->  | IW4: =IF('Graduate Preferences'!IW4=0,"",'Graduate Preferences'!IW4) ->  | IX4: =IF('Graduate Preferences'!IX4=0,"",'Graduate Preferences'!IX4) ->  | IY4: =IF('Graduate Preferences'!IY4=0,"",'Graduate Preferences'!IY4) ->  | IZ4: =IF('Graduate Preferences'!IZ4=0,"",'Graduate Preferences'!IZ4) ->  | JA4: =IF('Graduate Preferences'!JA4=0,"",'Graduate Preferences'!JA4) ->  | JB4: =IF('Graduate Preferences'!JB4=0,"",'Graduate Preferences'!JB4) ->  | JC4: =IF('Graduate Preferences'!JC4=0,"",'Graduate Preferences'!JC4) ->  | JD4: =IF('Graduate Preferences'!JD4=0,"",'Graduate Preferences'!JD4) ->  | JE4: =IF('Graduate Preferences'!JE4=0,"",'Graduate Preferences'!JE4) ->  | JF4: =IF('Graduate Preferences'!JF4=0,"",'Graduate Preferences'!JF4) ->  | JG4: =IF('Graduate Preferences'!JG4=0,"",'Graduate Preferences'!JG4) ->  | JH4: =IF('Graduate Preferences'!JH4=0,"",'Graduate Preferences'!JH4) ->  | JI4: =IF('Graduate Preferences'!JI4=0,"",'Graduate Preferences'!JI4) ->  | JJ4: =IF('Graduate Preferences'!JJ4=0,"",'Graduate Preferences'!JJ4) ->  | JK4: =IF('Graduate Preferences'!JK4=0,"",'Graduate Preferences'!JK4) ->  | JL4: =IF('Graduate Preferences'!JL4=0,"",'Graduate Preferences'!JL4) ->  | JM4: =IF('Graduate Preferences'!JM4=0,"",'Graduate Preferences'!JM4) ->  | JN4: =IF('Graduate Preferences'!JN4=0,"",'Graduate Preferences'!JN4) ->  | JO4: =IF('Graduate Preferences'!JO4=0,"",'Graduate Preferences'!JO4) ->  | JP4: =IF('Graduate Preferences'!JP4=0,"",'Graduate Preferences'!JP4) ->  | JQ4: =IF('Graduate Preferences'!JQ4=0,"",'Graduate Preferences'!JQ4) ->  | JR4: =IF('Graduate Preferences'!JR4=0,"",'Graduate Preferences'!JR4) ->  | JS4: =IF('Graduate Preferences'!JS4=0,"",'Graduate Preferences'!JS4) ->  | JT4: =IF('Graduate Preferences'!JT4=0,"",'Graduate Preferences'!JT4) ->  | JU4: =IF('Graduate Preferences'!JU4=0,"",'Graduate Preferences'!JU4) ->  | JV4: =IF('Graduate Preferences'!JV4=0,"",'Graduate Preferences'!JV4) ->  | JW4: =IF('Graduate Preferences'!JW4=0,"",'Graduate Preferences'!JW4) ->  | JX4: =IF('Graduate Preferences'!JX4=0,"",'Graduate Preferences'!JX4) ->  | JY4: =IF('Graduate Preferences'!JY4=0,"",'Graduate Preferences'!JY4) ->  | JZ4: =IF('Graduate Preferences'!JZ4=0,"",'Graduate Preferences'!JZ4) ->  | KA4: =IF('Graduate Preferences'!KA4=0,"",'Graduate Preferences'!KA4) ->  | KB4: =IF('Graduate Preferences'!KB4=0,"",'Graduate Preferences'!KB4) ->  | KC4: =IF('Graduate Preferences'!KC4=0,"",'Graduate Preferences'!KC4) ->  | KD4: =IF('Graduate Preferences'!KD4=0,"",'Graduate Preferences'!KD4) ->  | KE4: =IF('Graduate Preferences'!KE4=0,"",'Graduate Preferences'!KE4) ->  | KF4: =IF('Graduate Preferences'!KF4=0,"",'Graduate Preferences'!KF4) ->  | KG4: =IF('Graduate Preferences'!KG4=0,"",'Graduate Preferences'!KG4) ->  | KH4: =IF('Graduate Preferences'!KH4=0,"",'Graduate Preferences'!KH4) ->  | KI4: =IF('Graduate Preferences'!KI4=0,"",'Graduate Preferences'!KI4) ->  | KJ4: =IF('Graduate Preferences'!KJ4=0,"",'Graduate Preferences'!KJ4) ->  | KK4: =IF('Graduate Preferences'!KK4=0,"",'Graduate Preferences'!KK4) ->  | KL4: =IF('Graduate Preferences'!KL4=0,"",'Graduate Preferences'!KL4) ->  | KM4: =IF('Graduate Preferences'!KM4=0,"",'Graduate Preferences'!KM4) ->  | KN4: =IF('Graduate Preferences'!KN4=0,"",'Graduate Preferences'!KN4) ->  | KO4: =IF('Graduate Preferences'!KO4=0,"",'Graduate Preferences'!KO4) ->  | KP4: =IF('Graduate Preferences'!KP4=0,"",'Graduate Preferences'!KP4) ->  | KQ4: =IF('Graduate Preferences'!KQ4=0,"",'Graduate Preferences'!KQ4) ->  | KR4: =IF('Graduate Preferences'!KR4=0,"",'Graduate Preferences'!KR4) ->  | KS4: =IF('Graduate Preferences'!KS4=0,"",'Graduate Preferences'!KS4) ->  | KT4: =IF('Graduate Preferences'!KT4=0,"",'Graduate Preferences'!KT4) ->  | KU4: =IF('Graduate Preferences'!KU4=0,"",'Graduate Preferences'!KU4) ->  | KV4: =IF('Graduate Preferences'!KV4=0,"",'Graduate Preferences'!KV4) ->  | KW4: =IF('Graduate Preferences'!KW4=0,"",'Graduate Preferences'!KW4) ->  | KX4: =IF('Graduate Preferences'!KX4=0,"",'Graduate Preferences'!KX4) ->  | KY4: =IF('Graduate Preferences'!KY4=0,"",'Graduate Preferences'!KY4) ->  | KZ4: =IF('Graduate Preferences'!KZ4=0,"",'Graduate Preferences'!KZ4) ->  | LA4: =IF('Graduate Preferences'!LA4=0,"",'Graduate Preferences'!LA4) ->  | LB4: =IF('Graduate Preferences'!LB4=0,"",'Graduate Preferences'!LB4) ->  | LC4: =IF('Graduate Preferences'!LC4=0,"",'Graduate Preferences'!LC4) ->  | LD4: =IF('Graduate Preferences'!LD4=0,"",'Graduate Preferences'!LD4) ->  | LE4: =IF('Graduate Preferences'!LE4=0,"",'Graduate Preferences'!LE4) ->  | LF4: =IF('Graduate Preferences'!LF4=0,"",'Graduate Preferences'!LF4) ->  | LG4: =IF('Graduate Preferences'!LG4=0,"",'Graduate Preferences'!LG4) ->  | LH4: =IF('Graduate Preferences'!LH4=0,"",'Graduate Preferences'!LH4) ->  | LI4: =IF('Graduate Preferences'!LI4=0,"",'Graduate Preferences'!LI4) ->  | LJ4: =IF('Graduate Preferences'!LJ4=0,"",'Graduate Preferences'!LJ4) ->  | LK4: =IF('Graduate Preferences'!LK4=0,"",'Graduate Preferences'!LK4) ->  | LL4: =IF('Graduate Preferences'!LL4=0,"",'Graduate Preferences'!LL4) ->  | LM4: =IF('Graduate Preferences'!LM4=0,"",'Graduate Preferences'!LM4) ->  | LN4: =IF('Graduate Preferences'!LN4=0,"",'Graduate Preferences'!LN4) ->  | LO4: =IF('Graduate Preferences'!LO4=0,"",'Graduate Preferences'!LO4) ->  | LP4: =IF('Graduate Preferences'!LP4=0,"",'Graduate Preferences'!LP4) ->  | LQ4: =IF('Graduate Preferences'!LQ4=0,"",'Graduate Preferences'!LQ4) ->  | LR4: =IF('Graduate Preferences'!LR4=0,"",'Graduate Preferences'!LR4) ->  | LS4: =IF('Graduate Preferences'!LS4=0,"",'Graduate Preferences'!LS4) ->  | LT4: =IF('Graduate Preferences'!LT4=0,"",'Graduate Preferences'!LT4) ->  | LU4: =IF('Graduate Preferences'!LU4=0,"",'Graduate Preferences'!LU4) ->  | LV4: =IF('Graduate Preferences'!LV4=0,"",'Graduate Preferences'!LV4) ->  | LW4: =IF('Graduate Preferences'!LW4=0,"",'Graduate Preferences'!LW4) ->  | LX4: =IF('Graduate Preferences'!LX4=0,"",'Graduate Preferences'!LX4) ->  | LY4: =IF('Graduate Preferences'!LY4=0,"",'Graduate Preferences'!LY4) ->  | LZ4: =IF('Graduate Preferences'!LZ4=0,"",'Graduate Preferences'!LZ4) ->  | MA4: =IF('Graduate Preferences'!MA4=0,"",'Graduate Preferences'!MA4) ->  | MB4: =IF('Graduate Preferences'!MB4=0,"",'Graduate Preferences'!MB4) ->  | MC4: =IF('Graduate Preferences'!MC4=0,"",'Graduate Preferences'!MC4) ->  | MD4: =IF('Graduate Preferences'!MD4=0,"",'Graduate Preferences'!MD4) ->  | ME4: =IF('Graduate Preferences'!ME4=0,"",'Graduate Preferences'!ME4) ->  | MF4: =IF('Graduate Preferences'!MF4=0,"",'Graduate Preferences'!MF4) ->  | MG4: =IF('Graduate Preferences'!MG4=0,"",'Graduate Preferences'!MG4) ->  | MH4: =IF('Graduate Preferences'!MH4=0,"",'Graduate Preferences'!MH4) ->  | MI4: =IF('Graduate Preferences'!MI4=0,"",'Graduate Preferences'!MI4) ->  | MJ4: =IF('Graduate Preferences'!MJ4=0,"",'Graduate Preferences'!MJ4) ->  | MK4: =IF('Graduate Preferences'!MK4=0,"",'Graduate Preferences'!MK4) ->  | ML4: =IF('Graduate Preferences'!ML4=0,"",'Graduate Preferences'!ML4) ->  | MM4: =IF('Graduate Preferences'!MM4=0,"",'Graduate Preferences'!MM4) ->  | MN4: =IF('Graduate Preferences'!MN4=0,"",'Graduate Preferences'!MN4) ->  | MO4: =IF('Graduate Preferences'!MO4=0,"",'Graduate Preferences'!MO4) ->  | MP4: =IF('Graduate Preferences'!MP4=0,"",'Graduate Preferences'!MP4) ->  | MQ4: =IF('Graduate Preferences'!MQ4=0,"",'Graduate Preferences'!MQ4) ->  | MR4: =IF('Graduate Preferences'!MR4=0,"",'Graduate Preferences'!MR4) ->  | MS4: =IF('Graduate Preferences'!MS4=0,"",'Graduate Preferences'!MS4) ->  | MT4: =IF('Graduate Preferences'!MT4=0,"",'Graduate Preferences'!MT4) ->  | MU4: =IF('Graduate Preferences'!MU4=0,"",'Graduate Preferences'!MU4) ->  | MV4: =IF('Graduate Preferences'!MV4=0,"",'Graduate Preferences'!MV4) ->  | MW4: =IF('Graduate Preferences'!MW4=0,"",'Graduate Preferences'!MW4) ->  | MX4: =IF('Graduate Preferences'!MX4=0,"",'Graduate Preferences'!MX4) ->  | MY4: =IF('Graduate Preferences'!MY4=0,"",'Graduate Preferences'!MY4) ->  | MZ4: =IF('Graduate Preferences'!MZ4=0,"",'Graduate Preferences'!MZ4) ->  | NA4: =IF('Graduate Preferences'!NA4=0,"",'Graduate Preferences'!NA4) ->  | NB4: =IF('Graduate Preferences'!NB4=0,"",'Graduate Preferences'!NB4) ->  | NC4: =IF('Graduate Preferences'!NC4=0,"",'Graduate Preferences'!NC4) ->  | ND4: =IF('Graduate Preferences'!ND4=0,"",'Graduate Preferences'!ND4) ->  | NE4: =IF('Graduate Preferences'!NE4=0,"",'Graduate Preferences'!NE4) ->  | NF4: =IF('Graduate Preferences'!NF4=0,"",'Graduate Preferences'!NF4) ->  | NG4: =IF('Graduate Preferences'!NG4=0,"",'Graduate Preferences'!NG4) ->  | NH4: =IF('Graduate Preferences'!NH4=0,"",'Graduate Preferences'!NH4) ->  | NI4: =IF('Graduate Preferences'!NI4=0,"",'Graduate Preferences'!NI4) ->  | NJ4: =IF('Graduate Preferences'!NJ4=0,"",'Graduate Preferences'!NJ4) ->  | NK4: =IF('Graduate Preferences'!NK4=0,"",'Graduate Preferences'!NK4) ->  | NL4: =IF('Graduate Preferences'!NL4=0,"",'Graduate Preferences'!NL4) ->  | NM4: =IF('Graduate Preferences'!NM4=0,"",'Graduate Preferences'!NM4) ->  | NN4: =IF('Graduate Preferences'!NN4=0,"",'Graduate Preferences'!NN4) ->  | NO4: =IF('Graduate Preferences'!NO4=0,"",'Graduate Preferences'!NO4) ->  | NP4: =IF('Graduate Preferences'!NP4=0,"",'Graduate Preferences'!NP4) ->  | NQ4: =IF('Graduate Preferences'!NQ4=0,"",'Graduate Preferences'!NQ4) ->  | NR4: =IF('Graduate Preferences'!NR4=0,"",'Graduate Preferences'!NR4) ->  | NS4: =IF('Graduate Preferences'!NS4=0,"",'Graduate Preferences'!NS4) ->  | NT4: =IF('Graduate Preferences'!NT4=0,"",'Graduate Preferences'!NT4) ->  | NU4: =IF('Graduate Preferences'!NU4=0,"",'Graduate Preferences'!NU4) ->  | NV4: =IF('Graduate Preferences'!NV4=0,"",'Graduate Preferences'!NV4) ->  | NW4: =IF('Graduate Preferences'!NW4=0,"",'Graduate Preferences'!NW4) ->  | NX4: =IF('Graduate Preferences'!NX4=0,"",'Graduate Preferences'!NX4) ->  | NY4: =IF('Graduate Preferences'!NY4=0,"",'Graduate Preferences'!NY4) ->  | NZ4: =IF('Graduate Preferences'!NZ4=0,"",'Graduate Preferences'!NZ4) ->  | OA4: =IF('Graduate Preferences'!OA4=0,"",'Graduate Preferences'!OA4) ->  | OB4: =IF('Graduate Preferences'!OB4=0,"",'Graduate Preferences'!OB4) ->  | OC4: =IF('Graduate Preferences'!OC4=0,"",'Graduate Preferences'!OC4) ->  | OD4: =IF('Graduate Preferences'!OD4=0,"",'Graduate Preferences'!OD4) ->  | OE4: =IF('Graduate Preferences'!OE4=0,"",'Graduate Preferences'!OE4) ->  | OF4: =IF('Graduate Preferences'!OF4=0,"",'Graduate Preferences'!OF4) ->  | OG4: =IF('Graduate Preferences'!OG4=0,"",'Graduate Preferences'!OG4) ->  | OH4: =IF('Graduate Preferences'!OH4=0,"",'Graduate Preferences'!OH4) ->  | OI4: =IF('Graduate Preferences'!OI4=0,"",'Graduate Preferences'!OI4) ->  | OJ4: =IF('Graduate Preferences'!OJ4=0,"",'Graduate Preferences'!OJ4) ->  | OK4: =IF('Graduate Preferences'!OK4=0,"",'Graduate Preferences'!OK4) ->  | OL4: =IF('Graduate Preferences'!OL4=0,"",'Graduate Preferences'!OL4) ->  | OM4: =IF('Graduate Preferences'!OM4=0,"",'Graduate Preferences'!OM4) ->  | ON4: =IF('Graduate Preferences'!ON4=0,"",'Graduate Preferences'!ON4) ->  | OO4: =IF('Graduate Preferences'!OO4=0,"",'Graduate Preferences'!OO4) ->  | OP4: =IF('Graduate Preferences'!OP4=0,"",'Graduate Preferences'!OP4) ->  | OQ4: =IF('Graduate Preferences'!OQ4=0,"",'Graduate Preferences'!OQ4) ->  | OR4: =IF('Graduate Preferences'!OR4=0,"",'Graduate Preferences'!OR4) ->  | OS4: =IF('Graduate Preferences'!OS4=0,"",'Graduate Preferences'!OS4) ->  | OT4: =IF('Graduate Preferences'!OT4=0,"",'Graduate Preferences'!OT4) ->  | OU4: =IF('Graduate Preferences'!OU4=0,"",'Graduate Preferences'!OU4) ->  | OV4: =IF('Graduate Preferences'!OV4=0,"",'Graduate Preferences'!OV4) ->  | OW4: =IF('Graduate Preferences'!OW4=0,"",'Graduate Preferences'!OW4) ->  | OX4: =IF('Graduate Preferences'!OX4=0,"",'Graduate Preferences'!OX4) ->  | OY4: =IF('Graduate Preferences'!OY4=0,"",'Graduate Preferences'!OY4) ->  | OZ4: =IF('Graduate Preferences'!OZ4=0,"",'Graduate Preferences'!OZ4) ->  | PA4: =IF('Graduate Preferences'!PA4=0,"",'Graduate Preferences'!PA4) ->  | PB4: =IF('Graduate Preferences'!PB4=0,"",'Graduate Preferences'!PB4) ->  | PC4: =IF('Graduate Preferences'!PC4=0,"",'Graduate Preferences'!PC4) ->  | PD4: =IF('Graduate Preferences'!PD4=0,"",'Graduate Preferences'!PD4) ->  | PE4: =IF('Graduate Preferences'!PE4=0,"",'Graduate Preferences'!PE4) ->  | PF4: =IF('Graduate Preferences'!PF4=0,"",'Graduate Preferences'!PF4) ->  | PG4: =IF('Graduate Preferences'!PG4=0,"",'Graduate Preferences'!PG4) ->  | PH4: =IF('Graduate Preferences'!PH4=0,"",'Graduate Preferences'!PH4) ->  | PI4: =IF('Graduate Preferences'!PI4=0,"",'Graduate Preferences'!PI4) ->  | PJ4: =IF('Graduate Preferences'!PJ4=0,"",'Graduate Preferences'!PJ4) ->  | PK4: =IF('Graduate Preferences'!PK4=0,"",'Graduate Preferences'!PK4) ->  | PL4: =IF('Graduate Preferences'!PL4=0,"",'Graduate Preferences'!PL4) ->  | PM4: =IF('Graduate Preferences'!PM4=0,"",'Graduate Preferences'!PM4) ->  | PN4: =IF('Graduate Preferences'!PN4=0,"",'Graduate Preferences'!PN4) ->  | PO4: =IF('Graduate Preferences'!PO4=0,"",'Graduate Preferences'!PO4) ->  | PP4: =IF('Graduate Preferences'!PP4=0,"",'Graduate Preferences'!PP4) ->  | PQ4: =IF('Graduate Preferences'!PQ4=0,"",'Graduate Preferences'!PQ4) ->  | PR4: =IF('Graduate Preferences'!PR4=0,"",'Graduate Preferences'!PR4) ->  | PS4: =IF('Graduate Preferences'!PS4=0,"",'Graduate Preferences'!PS4) ->  | PT4: =IF('Graduate Preferences'!PT4=0,"",'Graduate Preferences'!PT4) ->  | PU4: =IF('Graduate Preferences'!PU4=0,"",'Graduate Preferences'!PU4) ->  | PV4: =IF('Graduate Preferences'!PV4=0,"",'Graduate Preferences'!PV4) ->  | PW4: =IF('Graduate Preferences'!PW4=0,"",'Graduate Preferences'!PW4) ->  | PX4: =IF('Graduate Preferences'!PX4=0,"",'Graduate Preferences'!PX4) ->  | PY4: =IF('Graduate Preferences'!PY4=0,"",'Graduate Preferences'!PY4) ->  | PZ4: =IF('Graduate Preferences'!PZ4=0,"",'Graduate Preferences'!PZ4) ->  | QA4: =IF('Graduate Preferences'!QA4=0,"",'Graduate Preferences'!QA4) ->  | QB4: =IF('Graduate Preferences'!QB4=0,"",'Graduate Preferences'!QB4) ->  | QC4: =IF('Graduate Preferences'!QC4=0,"",'Graduate Preferences'!QC4) ->  | QD4: =IF('Graduate Preferences'!QD4=0,"",'Graduate Preferences'!QD4) ->  | QE4: =IF('Graduate Preferences'!QE4=0,"",'Graduate Preferences'!QE4) ->  | QF4: =IF('Graduate Preferences'!QF4=0,"",'Graduate Preferences'!QF4) ->  | QG4: =IF('Graduate Preferences'!QG4=0,"",'Graduate Preferences'!QG4) ->  | QH4: =IF('Graduate Preferences'!QH4=0,"",'Graduate Preferences'!QH4) ->  | QI4: =IF('Graduate Preferences'!QI4=0,"",'Graduate Preferences'!QI4) ->  | QJ4: =IF('Graduate Preferences'!QJ4=0,"",'Graduate Preferences'!QJ4) ->  | QK4: =IF('Graduate Preferences'!QK4=0,"",'Graduate Preferences'!QK4) ->  | QL4: =IF('Graduate Preferences'!QL4=0,"",'Graduate Preferences'!QL4) ->  | QM4: =IF('Graduate Preferences'!QM4=0,"",'Graduate Preferences'!QM4) ->  | QN4: =IF('Graduate Preferences'!QN4=0,"",'Graduate Preferences'!QN4) ->  | QO4: =IF('Graduate Preferences'!QO4=0,"",'Graduate Preferences'!QO4) ->  | QP4: =IF('Graduate Preferences'!QP4=0,"",'Graduate Preferences'!QP4) ->  | QQ4: =IF('Graduate Preferences'!QQ4=0,"",'Graduate Preferences'!QQ4) ->  | QR4: =IF('Graduate Preferences'!QR4=0,"",'Graduate Preferences'!QR4) ->  | QS4: =IF('Graduate Preferences'!QS4=0,"",'Graduate Preferences'!QS4) ->  | QT4: =IF('Graduate Preferences'!QT4=0,"",'Graduate Preferences'!QT4) ->  | QU4: =IF('Graduate Preferences'!QU4=0,"",'Graduate Preferences'!QU4) ->  | QV4: =IF('Graduate Preferences'!QV4=0,"",'Graduate Preferences'!QV4) ->  | QW4: =IF('Graduate Preferences'!QW4=0,"",'Graduate Preferences'!QW4) ->  | QX4: =IF('Graduate Preferences'!QX4=0,"",'Graduate Preferences'!QX4) ->  | QY4: =IF('Graduate Preferences'!QY4=0,"",'Graduate Preferences'!QY4) ->  | QZ4: =IF('Graduate Preferences'!QZ4=0,"",'Graduate Preferences'!QZ4) ->  | RA4: =IF('Graduate Preferences'!RA4=0,"",'Graduate Preferences'!RA4) ->  | RB4: =IF('Graduate Preferences'!RB4=0,"",'Graduate Preferences'!RB4) ->  | RC4: =IF('Graduate Preferences'!RC4=0,"",'Graduate Preferences'!RC4) ->  | RD4: =IF('Graduate Preferences'!RD4=0,"",'Graduate Preferences'!RD4) ->  | RE4: =IF('Graduate Preferences'!RE4=0,"",'Graduate Preferences'!RE4) ->  | RF4: =IF('Graduate Preferences'!RF4=0,"",'Graduate Preferences'!RF4) ->  | RG4: =IF('Graduate Preferences'!RG4=0,"",'Graduate Preferences'!RG4) ->  | RH4: =IF('Graduate Preferences'!RH4=0,"",'Graduate Preferences'!RH4) ->  | RI4: =IF('Graduate Preferences'!RI4=0,"",'Graduate Preferences'!RI4) ->  | RJ4: =IF('Graduate Preferences'!RJ4=0,"",'Graduate Preferences'!RJ4) ->  | RK4: =IF('Graduate Preferences'!RK4=0,"",'Graduate Preferences'!RK4) ->  | RL4: =IF('Graduate Preferences'!RL4=0,"",'Graduate Preferences'!RL4) ->  | RM4: =IF('Graduate Preferences'!RM4=0,"",'Graduate Preferences'!RM4) ->  | RN4: =IF('Graduate Preferences'!RN4=0,"",'Graduate Preferences'!RN4) ->  | RO4: =IF('Graduate Preferences'!RO4=0,"",'Graduate Preferences'!RO4) ->  | RP4: =IF('Graduate Preferences'!RP4=0,"",'Graduate Preferences'!RP4) ->  | RQ4: =IF('Graduate Preferences'!RQ4=0,"",'Graduate Preferences'!RQ4) ->  | RR4: =IF('Graduate Preferences'!RR4=0,"",'Graduate Preferences'!RR4) ->  | RS4: =IF('Graduate Preferences'!RS4=0,"",'Graduate Preferences'!RS4) ->  | RT4: =IF('Graduate Preferences'!RT4=0,"",'Graduate Preferences'!RT4) ->  | RU4: =IF('Graduate Preferences'!RU4=0,"",'Graduate Preferences'!RU4) ->  | RV4: =IF('Graduate Preferences'!RV4=0,"",'Graduate Preferences'!RV4) ->  | RW4: =IF('Graduate Preferences'!RW4=0,"",'Graduate Preferences'!RW4) ->  | RX4: =IF('Graduate Preferences'!RX4=0,"",'Graduate Preferences'!RX4) ->  | RY4: =IF('Graduate Preferences'!RY4=0,"",'Graduate Preferences'!RY4) ->  | RZ4: =IF('Graduate Preferences'!RZ4=0,"",'Graduate Preferences'!RZ4) ->  | SA4: =IF('Graduate Preferences'!SA4=0,"",'Graduate Preferences'!SA4) ->  | SB4: =IF('Graduate Preferences'!SB4=0,"",'Graduate Preferences'!SB4) ->  | SC4: =IF('Graduate Preferences'!SC4=0,"",'Graduate Preferences'!SC4) ->  | SD4: =IF('Graduate Preferences'!SD4=0,"",'Graduate Preferences'!SD4) ->  | SE4: =IF('Graduate Preferences'!SE4=0,"",'Graduate Preferences'!SE4) ->  | SF4: =IF('Graduate Preferences'!SF4=0,"",'Graduate Preferences'!SF4) ->  | SG4: =IF('Graduate Preferences'!SG4=0,"",'Graduate Preferences'!SG4) ->  | SH4: =IF('Graduate Preferences'!SH4=0,"",'Graduate Preferences'!SH4) ->  | SI4: =IF('Graduate Preferences'!SI4=0,"",'Graduate Preferences'!SI4) ->  | SJ4: =IF('Graduate Preferences'!SJ4=0,"",'Graduate Preferences'!SJ4) ->  | SK4: =IF('Graduate Preferences'!SK4=0,"",'Graduate Preferences'!SK4) ->  | SL4: =IF('Graduate Preferences'!SL4=0,"",'Graduate Preferences'!SL4) ->  | SM4: =IF('Graduate Preferences'!SM4=0,"",'Graduate Preferences'!SM4) ->  | SN4: =IF('Graduate Preferences'!SN4=0,"",'Graduate Preferences'!SN4) ->  | SO4: =IF('Graduate Preferences'!SO4=0,"",'Graduate Preferences'!SO4) ->  | SP4: =IF('Graduate Preferences'!SP4=0,"",'Graduate Preferences'!SP4) ->  | SQ4: =IF('Graduate Preferences'!SQ4=0,"",'Graduate Preferences'!SQ4) ->  | SR4: =IF('Graduate Preferences'!SR4=0,"",'Graduate Preferences'!SR4) ->  | SS4: =IF('Graduate Preferences'!SS4=0,"",'Graduate Preferences'!SS4) ->  | ST4: =IF('Graduate Preferences'!ST4=0,"",'Graduate Preferences'!ST4) ->  | SU4: =IF('Graduate Preferences'!SU4=0,"",'Graduate Preferences'!SU4) ->  | SV4: =IF('Graduate Preferences'!SV4=0,"",'Graduate Preferences'!SV4) ->  | SW4: =IF('Graduate Preferences'!SW4=0,"",'Graduate Preferences'!SW4) ->  | SX4: =IF('Graduate Preferences'!SX4=0,"",'Graduate Preferences'!SX4) ->  | SY4: =IF('Graduate Preferences'!SY4=0,"",'Graduate Preferences'!SY4) ->  | SZ4: =IF('Graduate Preferences'!SZ4=0,"",'Graduate Preferences'!SZ4) ->  | TA4: =IF('Graduate Preferences'!TA4=0,"",'Graduate Preferences'!TA4) ->  | TB4: =IF('Graduate Preferences'!TB4=0,"",'Graduate Preferences'!TB4) ->  | TC4: =IF('Graduate Preferences'!TC4=0,"",'Graduate Preferences'!TC4) ->  | TD4: =IF('Graduate Preferences'!TD4=0,"",'Graduate Preferences'!TD4) ->  | TE4: =IF('Graduate Preferences'!TE4=0,"",'Graduate Preferences'!TE4) ->  | TF4: =IF('Graduate Preferences'!TF4=0,"",'Graduate Preferences'!TF4) ->  | TG4: =IF('Graduate Preferences'!TG4=0,"",'Graduate Preferences'!TG4) ->  | TH4: =IF('Graduate Preferences'!TH4=0,"",'Graduate Preferences'!TH4) ->  | TI4: =IF('Graduate Preferences'!TI4=0,"",'Graduate Preferences'!TI4) ->  | TJ4: =IF('Graduate Preferences'!TJ4=0,"",'Graduate Preferences'!TJ4) ->  | TK4: =IF('Graduate Preferences'!TK4=0,"",'Graduate Preferences'!TK4) ->  | TL4: =IF('Graduate Preferences'!TL4=0,"",'Graduate Preferences'!TL4) ->  | TM4: =IF('Graduate Preferences'!TM4=0,"",'Graduate Preferences'!TM4) ->  | TN4: =IF('Graduate Preferences'!TN4=0,"",'Graduate Preferences'!TN4) ->  | TO4: =IF('Graduate Preferences'!TO4=0,"",'Graduate Preferences'!TO4) ->  | TP4: =IF('Graduate Preferences'!TP4=0,"",'Graduate Preferences'!TP4) ->  | TQ4: =IF('Graduate Preferences'!TQ4=0,"",'Graduate Preferences'!TQ4) ->  | TR4: =IF('Graduate Preferences'!TR4=0,"",'Graduate Preferences'!TR4) ->  | TS4: =IF('Graduate Preferences'!TS4=0,"",'Graduate Preferences'!TS4) ->  | TT4: =IF('Graduate Preferences'!TT4=0,"",'Graduate Preferences'!TT4) ->  | TU4: =IF('Graduate Preferences'!TU4=0,"",'Graduate Preferences'!TU4) ->  | TV4: =IF('Graduate Preferences'!TV4=0,"",'Graduate Preferences'!TV4) ->  | TW4: =IF('Graduate Preferences'!TW4=0,"",'Graduate Preferences'!TW4) ->  | TX4: =IF('Graduate Preferences'!TX4=0,"",'Graduate Preferences'!TX4) ->  | TY4: =IF('Graduate Preferences'!TY4=0,"",'Graduate Preferences'!TY4) ->  | TZ4: =IF('Graduate Preferences'!TZ4=0,"",'Graduate Preferences'!TZ4) ->  | UA4: =IF('Graduate Preferences'!UA4=0,"",'Graduate Preferences'!UA4) ->  | UB4: =IF('Graduate Preferences'!UB4=0,"",'Graduate Preferences'!UB4) ->  | UC4: =IF('Graduate Preferences'!UC4=0,"",'Graduate Preferences'!UC4) ->  | UD4: =IF('Graduate Preferences'!UD4=0,"",'Graduate Preferences'!UD4) ->  | UE4: =IF('Graduate Preferences'!UE4=0,"",'Graduate Preferences'!UE4) ->  | UF4: =IF('Graduate Preferences'!UF4=0,"",'Graduate Preferences'!UF4) ->  | UG4: =IF('Graduate Preferences'!UG4=0,"",'Graduate Preferences'!UG4) ->  | UH4: =IF('Graduate Preferences'!UH4=0,"",'Graduate Preferences'!UH4) ->  | UI4: =IF('Graduate Preferences'!UI4=0,"",'Graduate Preferences'!UI4) ->  | UJ4: =IF('Graduate Preferences'!UJ4=0,"",'Graduate Preferences'!UJ4) ->  | UK4: =IF('Graduate Preferences'!UK4=0,"",'Graduate Preferences'!UK4) ->  | UL4: =IF('Graduate Preferences'!UL4=0,"",'Graduate Preferences'!UL4) ->  | UM4: =IF('Graduate Preferences'!UM4=0,"",'Graduate Preferences'!UM4) ->  | UN4: =IF('Graduate Preferences'!UN4=0,"",'Graduate Preferences'!UN4) ->  | UO4: =IF('Graduate Preferences'!UO4=0,"",'Graduate Preferences'!UO4) ->  | UP4: =IF('Graduate Preferences'!UP4=0,"",'Graduate Preferences'!UP4) ->  | UQ4: =IF('Graduate Preferences'!UQ4=0,"",'Graduate Preferences'!UQ4) ->  | UR4: =IF('Graduate Preferences'!UR4=0,"",'Graduate Preferences'!UR4) ->  | US4: =IF('Graduate Preferences'!US4=0,"",'Graduate Preferences'!US4) ->  | UT4: =IF('Graduate Preferences'!UT4=0,"",'Graduate Preferences'!UT4) ->  | UU4: =IF('Graduate Preferences'!UU4=0,"",'Graduate Preferences'!UU4) ->  | UV4: =IF('Graduate Preferences'!UV4=0,"",'Graduate Preferences'!UV4) ->  | UW4: =IF('Graduate Preferences'!UW4=0,"",'Graduate Preferences'!UW4) ->  | UX4: =IF('Graduate Preferences'!UX4=0,"",'Graduate Preferences'!UX4) ->  | UY4: =IF('Graduate Preferences'!UY4=0,"",'Graduate Preferences'!UY4) ->  | UZ4: =IF('Graduate Preferences'!UZ4=0,"",'Graduate Preferences'!UZ4) ->  | VA4: =IF('Graduate Preferences'!VA4=0,"",'Graduate Preferences'!VA4) ->  | VB4: =IF('Graduate Preferences'!VB4=0,"",'Graduate Preferences'!VB4) ->  | VC4: =IF('Graduate Preferences'!VC4=0,"",'Graduate Preferences'!VC4) ->  | VD4: =IF('Graduate Preferences'!VD4=0,"",'Graduate Preferences'!VD4) ->  | VE4: =IF('Graduate Preferences'!VE4=0,"",'Graduate Preferences'!VE4) ->  | VF4: =IF('Graduate Preferences'!VF4=0,"",'Graduate Preferences'!VF4) ->  | VG4: =IF('Graduate Preferences'!VG4=0,"",'Graduate Preferences'!VG4) ->  | VH4: =IF('Graduate Preferences'!VH4=0,"",'Graduate Preferences'!VH4) ->  | VI4: =IF('Graduate Preferences'!VI4=0,"",'Graduate Preferences'!VI4) ->  | VJ4: =IF('Graduate Preferences'!VJ4=0,"",'Graduate Preferences'!VJ4) ->  | VK4: =IF('Graduate Preferences'!VK4=0,"",'Graduate Preferences'!VK4) ->  | VL4: =IF('Graduate Preferences'!VL4=0,"",'Graduate Preferences'!VL4) ->  | VM4: =IF('Graduate Preferences'!VM4=0,"",'Graduate Preferences'!VM4) ->  | VN4: =IF('Graduate Preferences'!VN4=0,"",'Graduate Preferences'!VN4) ->  | VO4: =IF('Graduate Preferences'!VO4=0,"",'Graduate Preferences'!VO4) ->  | VP4: =IF('Graduate Preferences'!VP4=0,"",'Graduate Preferences'!VP4) ->  | VQ4: =IF('Graduate Preferences'!VQ4=0,"",'Graduate Preferences'!VQ4) ->  | VR4: =IF('Graduate Preferences'!VR4=0,"",'Graduate Preferences'!VR4) ->  | VS4: =IF('Graduate Preferences'!VS4=0,"",'Graduate Preferences'!VS4) ->  | VT4: =IF('Graduate Preferences'!VT4=0,"",'Graduate Preferences'!VT4) ->  | VU4: =IF('Graduate Preferences'!VU4=0,"",'Graduate Preferences'!VU4) ->  | VV4: =IF('Graduate Preferences'!VV4=0,"",'Graduate Preferences'!VV4) ->  | VW4: =IF('Graduate Preferences'!VW4=0,"",'Graduate Preferences'!VW4) ->  | VX4: =IF('Graduate Preferences'!VX4=0,"",'Graduate Preferences'!VX4) ->  | VY4: =IF('Graduate Preferences'!VY4=0,"",'Graduate Preferences'!VY4) ->  | VZ4: =IF('Graduate Preferences'!VZ4=0,"",'Graduate Preferences'!VZ4) ->  | WA4: =IF('Graduate Preferences'!WA4=0,"",'Graduate Preferences'!WA4) ->  | WB4: =IF('Graduate Preferences'!WB4=0,"",'Graduate Preferences'!WB4) ->  | WC4: =IF('Graduate Preferences'!WC4=0,"",'Graduate Preferences'!WC4) ->  | WD4: =IF('Graduate Preferences'!WD4=0,"",'Graduate Preferences'!WD4) ->  | WE4: =IF('Graduate Preferences'!WE4=0,"",'Graduate Preferences'!WE4) ->  | WF4: =IF('Graduate Preferences'!WF4=0,"",'Graduate Preferences'!WF4) ->  | WG4: =IF('Graduate Preferences'!WG4=0,"",'Graduate Preferences'!WG4) ->  | WH4: =IF('Graduate Preferences'!WH4=0,"",'Graduate Preferences'!WH4) ->  | WI4: =IF('Graduate Preferences'!WI4=0,"",'Graduate Preferences'!WI4) ->  | WJ4: =IF('Graduate Preferences'!WJ4=0,"",'Graduate Preferences'!WJ4) ->  | WK4: =IF('Graduate Preferences'!WK4=0,"",'Graduate Preferences'!WK4) ->  | WL4: =IF('Graduate Preferences'!WL4=0,"",'Graduate Preferences'!WL4) ->  | WM4: =IF('Graduate Preferences'!WM4=0,"",'Graduate Preferences'!WM4) ->  | WN4: =IF('Graduate Preferences'!WN4=0,"",'Graduate Preferences'!WN4) ->  | WO4: =IF('Graduate Preferences'!WO4=0,"",'Graduate Preferences'!WO4) ->  | WP4: =IF('Graduate Preferences'!WP4=0,"",'Graduate Preferences'!WP4) ->  | WQ4: =IF('Graduate Preferences'!WQ4=0,"",'Graduate Preferences'!WQ4) ->  | WR4: =IF('Graduate Preferences'!WR4=0,"",'Graduate Preferences'!WR4) ->  | WS4: =IF('Graduate Preferences'!WS4=0,"",'Graduate Preferences'!WS4) ->  | WT4: =IF('Graduate Preferences'!WT4=0,"",'Graduate Preferences'!WT4) ->  | WU4: =IF('Graduate Preferences'!WU4=0,"",'Graduate Preferences'!WU4) ->  | WV4: =IF('Graduate Preferences'!WV4=0,"",'Graduate Preferences'!WV4) ->  | WW4: =IF('Graduate Preferences'!WW4=0,"",'Graduate Preferences'!WW4) ->  | WX4: =IF('Graduate Preferences'!WX4=0,"",'Graduate Preferences'!WX4) ->  | WY4: =IF('Graduate Preferences'!WY4=0,"",'Graduate Preferences'!WY4) ->  | WZ4: =IF('Graduate Preferences'!WZ4=0,"",'Graduate Preferences'!WZ4) ->  | XA4: =IF('Graduate Preferences'!XA4=0,"",'Graduate Preferences'!XA4) ->  | XB4: =IF('Graduate Preferences'!XB4=0,"",'Graduate Preferences'!XB4) ->  | XC4: =IF('Graduate Preferences'!XC4=0,"",'Graduate Preferences'!XC4) ->  | XD4: =IF('Graduate Preferences'!XD4=0,"",'Graduate Preferences'!XD4) ->  | XE4: =IF('Graduate Preferences'!XE4=0,"",'Graduate Preferences'!XE4) ->  | XF4: =IF('Graduate Preferences'!XF4=0,"",'Graduate Preferences'!XF4) ->  | XG4: =IF('Graduate Preferences'!XG4=0,"",'Graduate Preferences'!XG4) ->  | XH4: =IF('Graduate Preferences'!XH4=0,"",'Graduate Preferences'!XH4) ->  | XI4: =IF('Graduate Preferences'!XI4=0,"",'Graduate Preferences'!XI4) ->  | XJ4: =IF('Graduate Preferences'!XJ4=0,"",'Graduate Preferences'!XJ4) ->  | XK4: =IF('Graduate Preferences'!XK4=0,"",'Graduate Preferences'!XK4) ->  | XL4: =IF('Graduate Preferences'!XL4=0,"",'Graduate Preferences'!XL4) ->  | XM4: =IF('Graduate Preferences'!XM4=0,"",'Graduate Preferences'!XM4) ->  | XN4: =IF('Graduate Preferences'!XN4=0,"",'Graduate Preferences'!XN4) ->  | XO4: =IF('Graduate Preferences'!XO4=0,"",'Graduate Preferences'!XO4) ->  | XP4: =IF('Graduate Preferences'!XP4=0,"",'Graduate Preferences'!XP4) ->  | XQ4: =IF('Graduate Preferences'!XQ4=0,"",'Graduate Preferences'!XQ4) ->  | XR4: =IF('Graduate Preferences'!XR4=0,"",'Graduate Preferences'!XR4) ->  | XS4: =IF('Graduate Preferences'!XS4=0,"",'Graduate Preferences'!XS4) ->  | XT4: =IF('Graduate Preferences'!XT4=0,"",'Graduate Preferences'!XT4) ->  | XU4: =IF('Graduate Preferences'!XU4=0,"",'Graduate Preferences'!XU4) ->  | XV4: =IF('Graduate Preferences'!XV4=0,"",'Graduate Preferences'!XV4) ->  | XW4: =IF('Graduate Preferences'!XW4=0,"",'Graduate Preferences'!XW4) ->  | XX4: =IF('Graduate Preferences'!XX4=0,"",'Graduate Preferences'!XX4) ->  | XY4: =IF('Graduate Preferences'!XY4=0,"",'Graduate Preferences'!XY4) ->  | XZ4: =IF('Graduate Preferences'!XZ4=0,"",'Graduate Preferences'!XZ4) ->  | YA4: =IF('Graduate Preferences'!YA4=0,"",'Graduate Preferences'!YA4) ->  | YB4: =IF('Graduate Preferences'!YB4=0,"",'Graduate Preferences'!YB4) ->  | YC4: =IF('Graduate Preferences'!YC4=0,"",'Graduate Preferences'!YC4) ->  | YD4: =IF('Graduate Preferences'!YD4=0,"",'Graduate Preferences'!YD4) ->  | YE4: =IF('Graduate Preferences'!YE4=0,"",'Graduate Preferences'!YE4) ->  | YF4: =IF('Graduate Preferences'!YF4=0,"",'Graduate Preferences'!YF4) ->  | YG4: =IF('Graduate Preferences'!YG4=0,"",'Graduate Preferences'!YG4) ->  | YH4: =IF('Graduate Preferences'!YH4=0,"",'Graduate Preferences'!YH4) ->  | YI4: =IF('Graduate Preferences'!YI4=0,"",'Graduate Preferences'!YI4) ->  | YJ4: =IF('Graduate Preferences'!YJ4=0,"",'Graduate Preferences'!YJ4) ->  | YK4: =IF('Graduate Preferences'!YK4=0,"",'Graduate Preferences'!YK4) -> 
A5: Capacities | B5: 6 | C5: 3 | D5: 3 | E5: 1 | F5: 5 | G5: 6 | H5: 4 | U5: 1 | V5: 1
A6: =IF('Graduate Preferences'!A5=0,"",'Graduate Preferences'!A5) -> Alvin | B6: 5 | C6: 7 | D6: 22 | E6: 4 | F6: 25 | G6: 5 | H6: 19 | U6: 6 | V6: 12
A7: =IF('Graduate Preferences'!A6=0,"",'Graduate Preferences'!A6) -> Bob | B7: 14 | C7: 10 | D7: 23 | E7: 6 | F7: 19 | G7: 26 | H7: 5
A8: =IF('Graduate Preferences'!A7=0,"",'Graduate Preferences'!A7) -> Chelsea | B8: 22 | C8: 5 | D8: 25 | E8: 8 | F8: 17 | G8: 3 | H8: 3 | U8: 7 | V8: 11
A9: =IF('Graduate Preferences'!A8=0,"",'Graduate Preferences'!A8) -> Daniel | B9: 26 | C9: 26 | D9: 10 | E9: 14 | F9: 5 | G9: 1 | H9: 9
A10: =IF('Graduate Preferences'!A9=0,"",'Graduate Preferences'!A9) -> Emily | B10: 3 | C10: 19 | D10: 15 | E10: 17 | F10: 18 | G10: 15 | H10: 8 | U10: 5
A11: =IF('Graduate Preferences'!A10=0,"",'Graduate Preferences'!A10) -> Frank | B11: 21 | C11: 20 | D11: 26 | E11: 26 | F11: 16 | G11: 19 | H11: 6 | V11: 13
A12: =IF('Graduate Preferences'!A11=0,"",'Graduate Preferences'!A11) -> Geraldine | B12: 23 | C12: 14 | D12: 6 | E12: 25 | F12: 4 | G12: 18 | H12: 11
A13: =IF('Graduate Preferences'!A12=0,"",'Graduate Preferences'!A12) -> Haley | B13: 8 | C13: 23 | D13: 24 | E13: 5 | F13: 15 | G13: 22 | H13: 2 | U13: 4
A14: =IF('Graduate Preferences'!A13=0,"",'Graduate Preferences'!A13) -> Ian | B14: 25 | C14: 4 | D14: 13 | E14: 15 | F14: 26 | G14: 8 | H14: 14 | V14: 14
A15: =IF('Graduate Preferences'!A14=0,"",'Graduate Preferences'!A14) -> Jeffrey | B15: 24 | C15: 18 | D15: 8 | E15: 18 | F15: 14 | G15: 24 | H15: 22
A16: =IF('Graduate Preferences'!A15=0,"",'Graduate Preferences'!A15) -> Kevin | B16: 20 | C16: 22 | D16: 4 | E16: 23 | F16: 10 | G16: 14 | H16: 7 | V16: 3
A17: =IF('Graduate Preferences'!A16=0,"",'Graduate Preferences'!A16) -> Leia | B17: 18 | C17: 24 | D17: 14 | E17: 21 | F17: 2 | G17: 16 | H17: 21
A18: =IF('Graduate Preferences'!A17=0,"",'Graduate Preferences'!A17) -> Macey | B18: 7 | C18: 17 | D18: 19 | E18: 13 | F18: 23 | G18: 4 | H18: 10 | U18: 8 | V18: 15
A19: =IF('Graduate Preferences'!A18=0,"",'Graduate Preferences'!A18) -> Natalie | B19: 16 | C19: 15 | D19: 18 | E19: 3 | F19: 9 | G19: 17 | H19: 18
A20: =IF('Graduate Preferences'!A19=0,"",'Graduate Preferences'!A19) -> Oliver | B20: 11 | C20: 25 | D20: 20 | E20: 22 | F20: 22 | G20: 7 | H20: 15 | V20: 2
A21: =IF('Graduate Preferences'!A20=0,"",'Graduate Preferences'!A20) -> Phoebe | B21: 10 | C21: 16 | D21: 12 | E21: 10 | F21: 20 | G21: 9 | H21: 13 | U21: 3
A22: =IF('Graduate Preferences'!A21=0,"",'Graduate Preferences'!A21) -> Quentin | B22: 19 | C22: 6 | D22: 9 | E22: 24 | F22: 3 | G22: 10 | H22: 16 | V22: 1
A23: =IF('Graduate Preferences'!A22=0,"",'Graduate Preferences'!A22) -> Rachael | B23: 4 | C23: 12 | D23: 3 | E23: 19 | F23: 24 | G23: 21 | H23: 17 | V23: 16
A24: =IF('Graduate Preferences'!A23=0,"",'Graduate Preferences'!A23) -> Stuart | B24: 2 | C24: 11 | D24: 17 | E24: 16 | F24: 11 | G24: 6 | H24: 1 | U24: 16
A25: =IF('Graduate Preferences'!A24=0,"",'Graduate Preferences'!A24) -> Theodore | B25: 13 | C25: 9 | D25: 16 | E25: 1 | F25: 1 | G25: 23 | H25: 12
A26: =IF('Graduate Preferences'!A25=0,"",'Graduate Preferences'!A25) -> Ursula | B26: 1 | C26: 8 | D26: 21 | E26: 12 | F26: 13 | G26: 13 | H26: 26 | V26: 4
A27: =IF('Graduate Preferences'!A26=0,"",'Graduate Preferences'!A26) -> Victor | B27: 6 | C27: 21 | D27: 1 | E27: 7 | F27: 21 | G27: 11 | H27: 23 | U27: 9 | V27: 6
A28: =IF('Graduate Preferences'!A27=0,"",'Graduate Preferences'!A27) -> Wendy | B28: 15 | C28: 2 | D28: 11 | E28: 11 | F28: 6 | G28: 12 | H28: 25 | V28: 5
A29: =IF('Graduate Preferences'!A28=0,"",'Graduate Preferences'!A28) -> Xavier | B29: 12 | C29: 13 | D29: 7 | E29: 2 | F29: 7 | G29: 25 | H29: 20 | U29: 10
A30: =IF('Graduate Preferences'!A29=0,"",'Graduate Preferences'!A29) -> Yasmin | B30: 9 | C30: 3 | D30: 2 | E30: 9 | F30: 12 | G30: 2 | H30: 4
A31: =IF('Graduate Preferences'!A30=0,"",'Graduate Preferences'!A30) -> Zelda | B31: 17 | C31: 1 | D31: 5 | E31: 20 | F31: 8 | G31: 20 | H31: 24 | U31: 11 | V31: 7
A32: =IF('Graduate Preferences'!A31=0,"",'Graduate Preferences'!A31) ->  | U32: 15
A33: =IF('Graduate Preferences'!A32=0,"",'Graduate Preferences'!A32) ->  | V33: 18
A34: =IF('Graduate Preferences'!A33=0,"",'Graduate Preferences'!A33) ->  | U34: 14
A35: =IF('Graduate Preferences'!A34=0,"",'Graduate Preferences'!A34) ->  | V35: 9
A36: =IF('Graduate Preferences'!A35=0,"",'Graduate Preferences'!A35) -> 
A37: =IF('Graduate Preferences'!A36=0,"",'Graduate Preferences'!A36) ->  | U37: 12 | V37: 8
A38: =IF('Graduate Preferences'!A37=0,"",'Graduate Preferences'!A37) ->  | U38: 1
A39: =IF('Graduate Preferences'!A38=0,"",'Graduate Preferences'!A38) ->  | U39: 13 | V39: 10
A40: =IF('Graduate Preferences'!A39=0,"",'Graduate Preferences'!A39) ->  | U40: 2
A41: =IF('Graduate Preferences'!A40=0,"",'Graduate Preferences'!A40) ->  | V41: 17
A42: =IF('Graduate Preferences'!A41=0,"",'Graduate Preferences'!A41) -> 
A43: =IF('Graduate Preferences'!A42=0,"",'Graduate Preferences'!A42) -> 
A44: =IF('Graduate Preferences'!A43=0,"",'Graduate Preferences'!A43) -> 
A45: =IF('Graduate Preferences'!A44=0,"",'Graduate Preferences'!A44) -> 
A46: =IF('Graduate Preferences'!A45=0,"",'Graduate Preferences'!A45) -> 
A47: =IF('Graduate Preferences'!A46=0,"",'Graduate Preferences'!A46) -> 
A48: =IF('Graduate Preferences'!A47=0,"",'Graduate Preferences'!A47) -> 
A49: =IF('Graduate Preferences'!A48=0,"",'Graduate Preferences'!A48) -> 
A50: =IF('Graduate Preferences'!A49=0,"",'Graduate Preferences'!A49) -> 
A51: =IF('Graduate Preferences'!A50=0,"",'Graduate Preferences'!A50) -> 
A52: =IF('Graduate Preferences'!A51=0,"",'Graduate Preferences'!A51) -> 
A53: =IF('Graduate Preferences'!A52=0,"",'Graduate Preferences'!A52) -> 
A54: =IF('Graduate Preferences'!A53=0,"",'Graduate Preferences'!A53) -> 
A55: =IF('Graduate Preferences'!A54=0,"",'Graduate Preferences'!A54) -> 
A56: =IF('Graduate Preferences'!A55=0,"",'Graduate Preferences'!A55) -> 
A57: =IF('Graduate Preferences'!A56=0,"",'Graduate Preferences'!A56) -> 
A58: =IF('Graduate Preferences'!A57=0,"",'Graduate Preferences'!A57) -> 
A59: =IF('Graduate Preferences'!A58=0,"",'Graduate Preferences'!A58) -> 
A60: =IF('Graduate Preferences'!A59=0,"",'Graduate Preferences'!A59) -> 
A61: =IF('Graduate Preferences'!A60=0,"",'Graduate Preferences'!A60) -> 
A62: =IF('Graduate Preferences'!A61=0,"",'Graduate Preferences'!A61) -> 
A63: =IF('Graduate Preferences'!A62=0,"",'Graduate Preferences'!A62) -> 
A64: =IF('Graduate Preferences'!A63=0,"",'Graduate Preferences'!A63) -> 
A65: =IF('Graduate Preferences'!A64=0,"",'Graduate Preferences'!A64) -> 
A66: =IF('Graduate Preferences'!A65=0,"",'Graduate Preferences'!A65) -> 
A67: =IF('Graduate Preferences'!A66=0,"",'Graduate Preferences'!A66) -> 
A68: =IF('Graduate Preferences'!A67=0,"",'Graduate Preferences'!A67) -> 
A69: =IF('Graduate Preferences'!A68=0,"",'Graduate Preferences'!A68) -> 
A70: =IF('Graduate Preferences'!A69=0,"",'Graduate Preferences'!A69) -> 
A71: =IF('Graduate Preferences'!A70=0,"",'Graduate Preferences'!A70) -> 
A72: =IF('Graduate Preferences'!A71=0,"",'Graduate Preferences'!A71) -> 
A73: =IF('Graduate Preferences'!A72=0,"",'Graduate Preferences'!A72) -> 
A74: =IF('Graduate Preferences'!A73=0,"",'Graduate Preferences'!A73) -> 
A75: =IF('Graduate Preferences'!A74=0,"",'Graduate Preferences'!A74) -> 
A76: =IF('Graduate Preferences'!A75=0,"",'Graduate Preferences'!A75) -> 
A77: =IF('Graduate Preferences'!A76=0,"",'Graduate Preferences'!A76) -> 
A78: =IF('Graduate Preferences'!A77=0,"",'Graduate Preferences'!A77) -> 
A79: =IF('Graduate Preferences'!A78=0,"",'Graduate Preferences'!A78) -> 
A80: =IF('Graduate Preferences'!A79=0,"",'Graduate Preferences'!A79) -> 
A81: =IF('Graduate Preferences'!A80=0,"",'Graduate Preferences'!A80) -> 
A82: =IF('Graduate Preferences'!A81=0,"",'Graduate Preferences'!A81) -> 
A83: =IF('Graduate Preferences'!A82=0,"",'Graduate Preferences'!A82) -> 
A84: =IF('Graduate Preferences'!A83=0,"",'Graduate Preferences'!A83) -> 
A85: =IF('Graduate Preferences'!A84=0,"",'Graduate Preferences'!A84) -> 
A86: =IF('Graduate Preferences'!A85=0,"",'Graduate Preferences'!A85) -> 
A87: =IF('Graduate Preferences'!A86=0,"",'Graduate Preferences'!A86) -> 
A88: =IF('Graduate Preferences'!A87=0,"",'Graduate Preferences'!A87) -> 
A89: =IF('Graduate Preferences'!A88=0,"",'Graduate Preferences'!A88) -> 
A90: =IF('Graduate Preferences'!A89=0,"",'Graduate Preferences'!A89) -> 
A91: =IF('Graduate Preferences'!A90=0,"",'Graduate Preferences'!A90) -> 
A92: =IF('Graduate Preferences'!A91=0,"",'Graduate Preferences'!A91) -> 
A93: =IF('Graduate Preferences'!A92=0,"",'Graduate Preferences'!A92) -> 
A94: =IF('Graduate Preferences'!A93=0,"",'Graduate Preferences'!A93) -> 
A95: =IF('Graduate Preferences'!A94=0,"",'Graduate Preferences'!A94) -> 
A96: =IF('Graduate Preferences'!A95=0,"",'Graduate Preferences'!A95) -> 
A97: =IF('Graduate Preferences'!A96=0,"",'Graduate Preferences'!A96) -> 
A98: =IF('Graduate Preferences'!A97=0,"",'Graduate Preferences'!A97) -> 
A99: =IF('Graduate Preferences'!A98=0,"",'Graduate Preferences'!A98) -> 
A100: =IF('Graduate Preferences'!A99=0,"",'Graduate Preferences'!A99) -> 
A101: =IF('Graduate Preferences'!A100=0,"",'Graduate Preferences'!A100) -> 
A102: =IF('Graduate Preferences'!A101=0,"",'Graduate Preferences'!A101) -> 
A103: =IF('Graduate Preferences'!A102=0,"",'Graduate Preferences'!A102) -> 
A104: =IF('Graduate Preferences'!A103=0,"",'Graduate Preferences'!A103) -> 
A105: =IF('Graduate Preferences'!A104=0,"",'Graduate Preferences'!A104) -> 
A106: =IF('Graduate Preferences'!A105=0,"",'Graduate Preferences'!A105) -> 
A107: =IF('Graduate Preferences'!A106=0,"",'Graduate Preferences'!A106) -> 
A108: =IF('Graduate Preferences'!A107=0,"",'Graduate Preferences'!A107) -> 
A109: =IF('Graduate Preferences'!A108=0,"",'Graduate Preferences'!A108) -> 
A110: =IF('Graduate Preferences'!A109=0,"",'Graduate Preferences'!A109) -> 
A111: =IF('Graduate Preferences'!A110=0,"",'Graduate Preferences'!A110) -> 
A112: =IF('Graduate Preferences'!A111=0,"",'Graduate Preferences'!A111) -> 
A113: =IF('Graduate Preferences'!A112=0,"",'Graduate Preferences'!A112) -> 
A114: =IF('Graduate Preferences'!A113=0,"",'Graduate Preferences'!A113) -> 
A115: =IF('Graduate Preferences'!A114=0,"",'Graduate Preferences'!A114) -> 
A116: =IF('Graduate Preferences'!A115=0,"",'Graduate Preferences'!A115) -> 
A117: =IF('Graduate Preferences'!A116=0,"",'Graduate Preferences'!A116) -> 
A118: =IF('Graduate Preferences'!A117=0,"",'Graduate Preferences'!A117) -> 
A119: =IF('Graduate Preferences'!A118=0,"",'Graduate Preferences'!A118) -> 
A120: =IF('Graduate Preferences'!A119=0,"",'Graduate Preferences'!A119) -> 
A121: =IF('Graduate Preferences'!A120=0,"",'Graduate Preferences'!A120) -> 
A122: =IF('Graduate Preferences'!A121=0,"",'Graduate Preferences'!A121) -> 
A123: =IF('Graduate Preferences'!A122=0,"",'Graduate Preferences'!A122) -> 
A124: =IF('Graduate Preferences'!A123=0,"",'Graduate Preferences'!A123) -> 
A125: =IF('Graduate Preferences'!A124=0,"",'Graduate Preferences'!A124) -> 
A126: =IF('Graduate Preferences'!A125=0,"",'Graduate Preferences'!A125) -> 
A127: =IF('Graduate Preferences'!A126=0,"",'Graduate Preferences'!A126) -> 
A128: =IF('Graduate Preferences'!A127=0,"",'Graduate Preferences'!A127) -> 
A129: =IF('Graduate Preferences'!A128=0,"",'Graduate Preferences'!A128) -> 
A130: =IF('Graduate Preferences'!A129=0,"",'Graduate Preferences'!A129) -> 
A131: =IF('Graduate Preferences'!A130=0,"",'Graduate Preferences'!A130) -> 
A132: =IF('Graduate Preferences'!A131=0,"",'Graduate Preferences'!A131) -> 
A133: =IF('Graduate Preferences'!A132=0,"",'Graduate Preferences'!A132) -> 
A134: =IF('Graduate Preferences'!A133=0,"",'Graduate Preferences'!A133) -> 
A135: =IF('Graduate Preferences'!A134=0,"",'Graduate Preferences'!A134) -> 
A136: =IF('Graduate Preferences'!A135=0,"",'Graduate Preferences'!A135) -> 
A137: =IF('Graduate Preferences'!A136=0,"",'Graduate Preferences'!A136) -> 
A138: =IF('Graduate Preferences'!A137=0,"",'Graduate Preferences'!A137) -> 
A139: =IF('Graduate Preferences'!A138=0,"",'Graduate Preferences'!A138) -> 
A140: =IF('Graduate Preferences'!A139=0,"",'Graduate Preferences'!A139) -> 
A141: =IF('Graduate Preferences'!A140=0,"",'Graduate Preferences'!A140) -> 
A142: =IF('Graduate Preferences'!A141=0,"",'Graduate Preferences'!A141) -> 
A143: =IF('Graduate Preferences'!A142=0,"",'Graduate Preferences'!A142) -> 
A144: =IF('Graduate Preferences'!A143=0,"",'Graduate Preferences'!A143) -> 
A145: =IF('Graduate Preferences'!A144=0,"",'Graduate Preferences'!A144) -> 
A146: =IF('Graduate Preferences'!A145=0,"",'Graduate Preferences'!A145) -> 
A147: =IF('Graduate Preferences'!A146=0,"",'Graduate Preferences'!A146) -> 
A148: =IF('Graduate Preferences'!A147=0,"",'Graduate Preferences'!A147) -> 
A149: =IF('Graduate Preferences'!A148=0,"",'Graduate Preferences'!A148) -> 
A150: =IF('Graduate Preferences'!A149=0,"",'Graduate Preferences'!A149) -> 
A151: =IF('Graduate Preferences'!A150=0,"",'Graduate Preferences'!A150) -> 
A152: =IF('Graduate Preferences'!A151=0,"",'Graduate Preferences'!A151) -> 
A153: =IF('Graduate Preferences'!A152=0,"",'Graduate Preferences'!A152) -> 
A154: =IF('Graduate Preferences'!A153=0,"",'Graduate Preferences'!A153) -> 
A155: =IF('Graduate Preferences'!A154=0,"",'Graduate Preferences'!A154) -> 
A156: =IF('Graduate Preferences'!A155=0,"",'Graduate Preferences'!A155) -> 
A157: =IF('Graduate Preferences'!A156=0,"",'Graduate Preferences'!A156) -> 
A158: =IF('Graduate Preferences'!A157=0,"",'Graduate Preferences'!A157) -> 
A159: =IF('Graduate Preferences'!A158=0,"",'Graduate Preferences'!A158) -> 
A160: =IF('Graduate Preferences'!A159=0,"",'Graduate Preferences'!A159) -> 
A161: =IF('Graduate Preferences'!A160=0,"",'Graduate Preferences'!A160) -> 
A162: =IF('Graduate Preferences'!A161=0,"",'Graduate Preferences'!A161) -> 
A163: =IF('Graduate Preferences'!A162=0,"",'Graduate Preferences'!A162) -> 
A164: =IF('Graduate Preferences'!A163=0,"",'Graduate Preferences'!A163) -> 
A165: =IF('Graduate Preferences'!A164=0,"",'Graduate Preferences'!A164) -> 
A166: =IF('Graduate Preferences'!A165=0,"",'Graduate Preferences'!A165) -> 
A167: =IF('Graduate Preferences'!A166=0,"",'Graduate Preferences'!A166) -> 
A168: =IF('Graduate Preferences'!A167=0,"",'Graduate Preferences'!A167) -> 
A169: =IF('Graduate Preferences'!A168=0,"",'Graduate Preferences'!A168) -> 
A170: =IF('Graduate Preferences'!A169=0,"",'Graduate Preferences'!A169) -> 
A171: =IF('Graduate Preferences'!A170=0,"",'Graduate Preferences'!A170) -> 
A172: =IF('Graduate Preferences'!A171=0,"",'Graduate Preferences'!A171) -> 
A173: =IF('Graduate Preferences'!A172=0,"",'Graduate Preferences'!A172) -> 
A174: =IF('Graduate Preferences'!A173=0,"",'Graduate Preferences'!A173) -> 
A175: =IF('Graduate Preferences'!A174=0,"",'Graduate Preferences'!A174) -> 
A176: =IF('Graduate Preferences'!A175=0,"",'Graduate Preferences'!A175) -> 
A177: =IF('Graduate Preferences'!A176=0,"",'Graduate Preferences'!A176) -> 
A178: =IF('Graduate Preferences'!A177=0,"",'Graduate Preferences'!A177) -> 
A179: =IF('Graduate Preferences'!A178=0,"",'Graduate Preferences'!A178) -> 
A180: =IF('Graduate Preferences'!A179=0,"",'Graduate Preferences'!A179) -> 
A181: =IF('Graduate Preferences'!A180=0,"",'Graduate Preferences'!A180) -> 
A182: =IF('Graduate Preferences'!A181=0,"",'Graduate Preferences'!A181) -> 
A183: =IF('Graduate Preferences'!A182=0,"",'Graduate Preferences'!A182) -> 
A184: =IF('Graduate Preferences'!A183=0,"",'Graduate Preferences'!A183) -> 
A185: =IF('Graduate Preferences'!A184=0,"",'Graduate Preferences'!A184) -> 
A186: =IF('Graduate Preferences'!A185=0,"",'Graduate Preferences'!A185) -> 
A187: =IF('Graduate Preferences'!A186=0,"",'Graduate Preferences'!A186) -> 
A188: =IF('Graduate Preferences'!A187=0,"",'Graduate Preferences'!A187) -> 
A189: =IF('Graduate Preferences'!A188=0,"",'Graduate Preferences'!A188) -> 
A190: =IF('Graduate Preferences'!A189=0,"",'Graduate Preferences'!A189) -> 
A191: =IF('Graduate Preferences'!A190=0,"",'Graduate Preferences'!A190) -> 
A192: =IF('Graduate Preferences'!A191=0,"",'Graduate Preferences'!A191) -> 
A193: =IF('Graduate Preferences'!A192=0,"",'Graduate Preferences'!A192) -> 
A194: =IF('Graduate Preferences'!A193=0,"",'Graduate Preferences'!A193) -> 
A195: =IF('Graduate Preferences'!A194=0,"",'Graduate Preferences'!A194) -> 
A196: =IF('Graduate Preferences'!A195=0,"",'Graduate Preferences'!A195) -> 
A197: =IF('Graduate Preferences'!A196=0,"",'Graduate Preferences'!A196) -> 
A198: =IF('Graduate Preferences'!A197=0,"",'Graduate Preferences'!A197) -> 
A199: =IF('Graduate Preferences'!A198=0,"",'Graduate Preferences'!A198) -> 
A200: =IF('Graduate Preferences'!A199=0,"",'Graduate Preferences'!A199) -> 
... 75 more rows

Sheet Final Matching
A2: Graduate | B2: Division | D2: Division | E2: Capacity | F2: =IF(Work!A1<=MAX('Division Preferences'!$B$5:$ZZ$5),CONCATENATE("Graduate ", Work!A1),"") -> Graduate 1 | G2: =IF(Work!B1<=MAX('Division Preferences'!$B$5:$ZZ$5),CONCATENATE("Graduate ", Work!B1),"") -> Graduate 2 | H2: =IF(Work!C1<=MAX('Division Preferences'!$B$5:$ZZ$5),CONCATENATE("Graduate ", Work!C1),"") -> Graduate 3 | I2: =IF(Work!D1<=MAX('Division Preferences'!$B$5:$ZZ$5),CONCATENATE("Graduate ", Work!D1),"") -> Graduate 4 | J2: =IF(Work!E1<=MAX('Division Preferences'!$B$5:$ZZ$5),CONCATENATE("Graduate ", Work!E1),"") -> Graduate 5 | K2: =IF(Work!F1<=MAX('Division Preferences'!$B$5:$ZZ$5),CONCATENATE("Graduate ", Work!F1),"") -> Graduate 6 | L2: =IF(Work!G1<=MAX('Division Preferences'!$B$5:$ZZ$5),CONCATENATE("Graduate ", Work!G1),"") ->  | M2: =IF(Work!H1<=MAX('Division Preferences'!$B$5:$ZZ$5),CONCATENATE("Graduate ", Work!H1),"") ->  | N2: =IF(Work!I1<=MAX('Division Preferences'!$B$5:$ZZ$5),CONCATENATE("Graduate ", Work!I1),"") ->  | O2: =IF(Work!J1<=MAX('Division Preferences'!$B$5:$ZZ$5),CONCATENATE("Graduate ", Work!J1),"") ->  | P2: =IF(Work!K1<=MAX('Division Preferences'!$B$5:$ZZ$5),CONCATENATE("Graduate ", Work!K1),"") ->  | Q2: =IF(Work!L1<=MAX('Division Preferences'!$B$5:$ZZ$5),CONCATENATE("Graduate ", Work!L1),"") ->  | R2: =IF(Work!M1<=MAX('Division Preferences'!$B$5:$ZZ$5),CONCATENATE("Graduate ", Work!M1),"") ->  | S2: =IF(Work!N1<=MAX('Division Preferences'!$B$5:$ZZ$5),CONCATENATE("Graduate ", Work!N1),"") ->  | T2: =IF(Work!O1<=MAX('Division Preferences'!$B$5:$ZZ$5),CONCATENATE("Graduate ", Work!O1),"") ->  | U2: =IF(Work!P1<=MAX('Division Preferences'!$B$5:$ZZ$5),CONCATENATE("Graduate ", Work!P1),"") ->  | V2: =IF(Work!Q1<=MAX('Division Preferences'!$B$5:$ZZ$5),CONCATENATE("Graduate ", Work!Q1),"") ->  | W2: =IF(Work!R1<=MAX('Division Preferences'!$B$5:$ZZ$5),CONCATENATE("Graduate ", Work!R1),"") ->  | X2: =IF(Work!S1<=MAX('Division Preferences'!$B$5:$ZZ$5),CONCATENATE("Graduate ", Work!S1),"") ->  | Y2: =IF(Work!T1<=MAX('Division Preferences'!$B$5:$ZZ$5),CONCATENATE("Graduate ", Work!T1),"") ->  | Z2: =IF(Work!U1<=MAX('Division Preferences'!$B$5:$ZZ$5),CONCATENATE("Graduate ", Work!U1),"") ->  | AA2: =IF(Work!V1<=MAX('Division Preferences'!$B$5:$ZZ$5),CONCATENATE("Graduate ", Work!V1),"") ->  | AB2: =IF(Work!W1<=MAX('Division Preferences'!$B$5:$ZZ$5),CONCATENATE("Graduate ", Work!W1),"") ->  | AC2: =IF(Work!X1<=MAX('Division Preferences'!$B$5:$ZZ$5),CONCATENATE("Graduate ", Work!X1),"") ->  | AD2: =IF(Work!Y1<=MAX('Division Preferences'!$B$5:$ZZ$5),CONCATENATE("Graduate ", Work!Y1),"") ->  | AE2: =IF(Work!Z1<=MAX('Division Preferences'!$B$5:$ZZ$5),CONCATENATE("Graduate ", Work!Z1),"") ->  | AF2: =IF(Work!AA1<=MAX('Division Preferences'!$B$5:$ZZ$5),CONCATENATE("Graduate ", Work!AA1),"") ->  | AG2: =IF(Work!AB1<=MAX('Division Preferences'!$B$5:$ZZ$5),CONCATENATE("Graduate ", Work!AB1),"") ->  | AH2: =IF(Work!AC1<=MAX('Division Preferences'!$B$5:$ZZ$5),CONCATENATE("Graduate ", Work!AC1),"") ->  | AI2: =IF(Work!AD1<=MAX('Division Preferences'!$B$5:$ZZ$5),CONCATENATE("Graduate ", Work!AD1),"") ->  | AJ2: =IF(Work!AE1<=MAX('Division Preferences'!$B$5:$ZZ$5),CONCATENATE("Graduate ", Work!AE1),"") ->  | AK2: =IF(Work!AF1<=MAX('Division Preferences'!$B$5:$ZZ$5),CONCATENATE("Graduate ", Work!AF1),"") ->  | AL2: =IF(Work!AG1<=MAX('Division Preferences'!$B$5:$ZZ$5),CONCATENATE("Graduate ", Work!AG1),"") ->  | AM2: =IF(Work!AH1<=MAX('Division Preferences'!$B$5:$ZZ$5),CONCATENATE("Graduate ", Work!AH1),"") ->  | AN2: =IF(Work!AI1<=MAX('Division Preferences'!$B$5:$ZZ$5),CONCATENATE("Graduate ", Work!AI1),"") ->  | AO2: =IF(Work!AJ1<=MAX('Division Preferences'!$B$5:$ZZ$5),CONCATENATE("Graduate ", Work!AJ1),"") ->  | AP2: =IF(Work!AK1<=MAX('Division Preferences'!$B$5:$ZZ$5),CONCATENATE("Graduate ", Work!AK1),"") ->  | AQ2: =IF(Work!AL1<=MAX('Division Preferences'!$B$5:$ZZ$5),CONCATENATE("Graduate ", Work!AL1),"") ->  | AR2: =IF(Work!AM1<=MAX('Division Preferences'!$B$5:$ZZ$5),CONCATENATE("Graduate ", Work!AM1),"") ->  | AS2: =IF(Work!AN1<=MAX('Division Preferences'!$B$5:$ZZ$5),CONCATENATE("Graduate ", Work!AN1),"") ->  | AT2: =IF(Work!AO1<=MAX('Division Preferences'!$B$5:$ZZ$5),CONCATENATE("Graduate ", Work!AO1),"") ->  | AU2: =IF(Work!AP1<=MAX('Division Preferences'!$B$5:$ZZ$5),CONCATENATE("Graduate ", Work!AP1),"") ->  | AV2: =IF(Work!AQ1<=MAX('Division Preferences'!$B$5:$ZZ$5),CONCATENATE("Graduate ", Work!AQ1),"") ->  | AW2: =IF(Work!AR1<=MAX('Division Preferences'!$B$5:$ZZ$5),CONCATENATE("Graduate ", Work!AR1),"") ->  | AX2: =IF(Work!AS1<=MAX('Division Preferences'!$B$5:$ZZ$5),CONCATENATE("Graduate ", Work!AS1),"") ->  | AY2: =IF(Work!AT1<=MAX('Division Preferences'!$B$5:$ZZ$5),CONCATENATE("Graduate ", Work!AT1),"") ->  | AZ2: =IF(Work!AU1<=MAX('Division Preferences'!$B$5:$ZZ$5),CONCATENATE("Graduate ", Work!AU1),"") ->  | BA2: =IF(Work!AV1<=MAX('Division Preferences'!$B$5:$ZZ$5),CONCATENATE("Graduate ", Work!AV1),"") ->  | BB2: =IF(Work!AW1<=MAX('Division Preferences'!$B$5:$ZZ$5),CONCATENATE("Graduate ", Work!AW1),"") ->  | BC2: =IF(Work!AX1<=MAX('Division Preferences'!$B$5:$ZZ$5),CONCATENATE("Graduate ", Work!AX1),"") ->  | BD2: =IF(Work!AZ1<=MAX('Division Preferences'!$B$5:$ZZ$5),CONCATENATE("Graduate ", Work!AZ1),"") ->  | BE2: =IF(Work!BA1<=MAX('Division Preferences'!$B$5:$ZZ$5),CONCATENATE("Graduate ", Work!BA1),"") -> 
A3: Alvin | B3: Finance | D3: Finance | E3: 6 | F3: Stuart | G3: Rachael | H3: Alvin | I3: Yasmin | J3: Chelsea | K3: Jeffrey
A4: Bob | B4: Jedi | D4: Marketing | E4: 3 | F4: Ian | G4: Quentin | H4: Ursula
A5: Chelsea | B5: Finance | D5: Law | E5: 3 | F5: Victor | G5: Xavier | H5: Haley
A6: Daniel | B6: Economics | D6: Jedi | E6: 1 | F6: Bob
A7: Emily | B7: Economics | D7: Economics | E7: 5 | F7: Theodore | G7: Daniel | H7: Wendy | I7: Kevin | J7: Emily
A8: Frank | B8: Research | D8: Budget | E8: 6 | F8: Macey | G8: Oliver | H8: Natalie | I8: Zelda
A9: Geraldine | B9: Research | D9: Research | E9: 4 | F9: Frank | G9: Geraldine | H9: Phoebe | I9: Leia
A10: Haley | B10: Law
A11: Ian | B11: Marketing
A12: Jeffrey | B12: Finance
A13: Kevin | B13: Economics
A14: Leia | B14: Research
A15: Macey | B15: Budget
A16: Natalie | B16: Budget
A17: Oliver | B17: Budget
A18: Phoebe | B18: Research
A19: Quentin | B19: Marketing
A20: Rachael | B20: Finance
A21: Stuart | B21: Finance
A22: Theodore | B22: Economics
A23: Ursula | B23: Marketing
A24: Victor | B24: Law
A25: Wendy | B25: Economics
A26: Xavier | B26: Law
A27: Yasmin | B27: Finance
A28: Zelda | B28: Budget

Sheet Process
A2: 1 | B2: =CONCATENATE("Round ",A2) -> Round 1 | H2: =A2+1 -> 2 | I2: =CONCATENATE("Round ",H2) -> Round 2 | O2: =H2+1 -> 3 | P2: =CONCATENATE("Round ",O2) -> Round 3 | V2: =O2+1 -> 4 | W2: =CONCATENATE("Round ",V2) -> Round 4 | AC2: =V2+1 -> 5 | AD2: =CONCATENATE("Round ",AC2) -> Round 5 | AJ2: =AC2+1 -> 6 | AK2: =CONCATENATE("Round ",AJ2) -> Round 6 | AQ2: =AJ2+1 -> 7 | AR2: =CONCATENATE("Round ",AQ2) -> Round 7 | AX2: =AQ2+1 -> 8 | AY2: =CONCATENATE("Round ",AX2) -> Round 8 | BE2: =AX2+1 -> 9 | BF2: =CONCATENATE("Round ",BE2) -> Round 9 | BL2: =BE2+1 -> 10 | BM2: =CONCATENATE("Round ",BL2) -> Round 10 | BS2: =BL2+1 -> 11 | BT2: =CONCATENATE("Round ",BS2) -> Round 11 | BZ2: =BS2+1 -> 12 | CA2: =CONCATENATE("Round ",BZ2) -> Round 12 | CG2: =BZ2+1 -> 13 | CH2: =CONCATENATE("Round ",CG2) -> Round 13 | CN2: =CG2+1 -> 14 | CO2: =CONCATENATE("Round ",CN2) -> Round 14 | CU2: =CN2+1 -> 15 | CV2: =CONCATENATE("Round ",CU2) -> Round 15 | DB2: =CU2+1 -> 16 | DC2: =CONCATENATE("Round ",DB2) -> Round 16 | DI2: =DB2+1 -> 17 | DJ2: =CONCATENATE("Round ",DI2) -> Round 17 | DP2: =DI2+1 -> 18 | DQ2: =CONCATENATE("Round ",DP2) -> Round 18 | DW2: =DP2+1 -> 19 | DX2: =CONCATENATE("Round ",DW2) -> Round 19 | ED2: =DW2+1 -> 20 | EE2: =CONCATENATE("Round ",ED2) -> Round 20 | EK2: =ED2+1 -> 21 | EL2: =CONCATENATE("Round ",EK2) -> Round 21 | ER2: =EK2+1 -> 22 | ES2: =CONCATENATE("Round ",ER2) -> Round 22 | EY2: =ER2+1 -> 23 | EZ2: =CONCATENATE("Round ",EY2) -> Round 23 | FF2: =EY2+1 -> 24 | FG2: =CONCATENATE("Round ",FF2) -> Round 24 | FM2: =FF2+1 -> 25 | FN2: =CONCATENATE("Round ",FM2) -> Round 25 | FT2: =FM2+1 -> 26 | FU2: =CONCATENATE("Round ",FT2) -> Round 26 | GA2: =FT2+1 -> 27 | GB2: =CONCATENATE("Round ",GA2) -> Round 27 | GH2: =GA2+1 -> 28 | GI2: =CONCATENATE("Round ",GH2) -> Round 28 | GO2: =GH2+1 -> 29 | GP2: =CONCATENATE("Round ",GO2) -> Round 29 | GV2: =GO2+1 -> 30 | GW2: =CONCATENATE("Round ",GV2) -> Round 30 | HC2: =GV2+1 -> 31 | HD2: =CONCATENATE("Round ",HC2) -> Round 31 | HJ2: =HC2+1 -> 32 | HK2: =CONCATENATE("Round ",HJ2) -> Round 32 | HQ2: =HJ2+1 -> 33 | HR2: =CONCATENATE("Round ",HQ2) -> Round 33 | HX2: =HQ2+1 -> 34 | HY2: =CONCATENATE("Round ",HX2) -> Round 34 | IE2: =HX2+1 -> 35 | IF2: =CONCATENATE("Round ",IE2) -> Round 35 | IL2: =IE2+1 -> 36 | IM2: =CONCATENATE("Round ",IL2) -> Round 36 | IS2: =IL2+1 -> 37 | IT2: =CONCATENATE("Round ",IS2) -> Round 37 | IZ2: =IS2+1 -> 38 | JA2: =CONCATENATE("Round ",IZ2) -> Round 38 | JG2: =IZ2+1 -> 39 | JH2: =CONCATENATE("Round ",JG2) -> Round 39 | JN2: =JG2+1 -> 40 | JO2: =CONCATENATE("Round ",JN2) -> Round 40 | JU2: =JN2+1 -> 41 | JV2: =CONCATENATE("Round ",JU2) -> Round 41 | KB2: =JU2+1 -> 42 | KC2: =CONCATENATE("Round ",KB2) -> Round 42 | KI2: =KB2+1 -> 43 | KJ2: =CONCATENATE("Round ",KI2) -> Round 43 | KP2: =KI2+1 -> 44 | KQ2: =CONCATENATE("Round ",KP2) -> Round 44 | KW2: =KP2+1 -> 45 | KX2: =CONCATENATE("Round ",KW2) -> Round 45 | LD2: =KW2+1 -> 46 | LE2: =CONCATENATE("Round ",LD2) -> Round 46 | LK2: =LD2+1 -> 47 | LL2: =CONCATENATE("Round ",LK2) -> Round 47 | LR2: =LK2+1 -> 48 | LS2: =CONCATENATE("Round ",LR2) -> Round 48 | LY2: =LR2+1 -> 49 | LZ2: =CONCATENATE("Round ",LY2) -> Round 49 | MF2: =LY2+1 -> 50 | MG2: =CONCATENATE("Round ",MF2) -> Round 50 | MM2: =MF2+1 -> 51 | MN2: =CONCATENATE("Round ",MM2) -> Round 51 | MT2: =MM2+1 -> 52 | MU2: =CONCATENATE("Round ",MT2) -> Round 52 | NA2: =MT2+1 -> 53 | NB2: =CONCATENATE("Round ",NA2) -> Round 53 | NH2: =NA2+1 -> 54 | NI2: =CONCATENATE("Round ",NH2) -> Round 54 | NO2: =NH2+1 -> 55 | NP2: =CONCATENATE("Round ",NO2) -> Round 55 | NV2: =NO2+1 -> 56 | NW2: =CONCATENATE("Round ",NV2) -> Round 56 | OC2: =NV2+1 -> 57 | OD2: =CONCATENATE("Round ",OC2) -> Round 57 | OJ2: =OC2+1 -> 58 | OK2: =CONCATENATE("Round ",OJ2) -> Round 58 | OQ2: =OJ2+1 -> 59 | OR2: =CONCATENATE("Round ",OQ2) -> Round 59 | OX2: =OQ2+1 -> 60 | OY2: =CONCATENATE("Round ",OX2) -> Round 60 | PE2: =OX2+1 -> 61 | PF2: =CONCATENATE("Round ",PE2) -> Round 61 | PL2: =PE2+1 -> 62 | PM2: =CONCATENATE("Round ",PL2) -> Round 62 | PS2: =PL2+1 -> 63 | PT2: =CONCATENATE("Round ",PS2) -> Round 63 | PZ2: =PS2+1 -> 64 | QA2: =CONCATENATE("Round ",PZ2) -> Round 64 | QG2: =PZ2+1 -> 65 | QH2: =CONCATENATE("Round ",QG2) -> Round 65 | QN2: =QG2+1 -> 66 | QO2: =CONCATENATE("Round ",QN2) -> Round 66 | QU2: =QN2+1 -> 67 | QV2: =CONCATENATE("Round ",QU2) -> Round 67 | RB2: =QU2+1 -> 68 | RC2: =CONCATENATE("Round ",RB2) -> Round 68 | RI2: =RB2+1 -> 69 | RJ2: =CONCATENATE("Round ",RI2) -> Round 69 | RP2: =RI2+1 -> 70 | RQ2: =CONCATENATE("Round ",RP2) -> Round 70 | RW2: =RP2+1 -> 71 | RX2: =CONCATENATE("Round ",RW2) -> Round 71 | SD2: =RW2+1 -> 72 | SE2: =CONCATENATE("Round ",SD2) -> Round 72 | SK2: =SD2+1 -> 73 | SL2: =CONCATENATE("Round ",SK2) -> Round 73 | SR2: =SK2+1 -> 74 | SS2: =CONCATENATE("Round ",SR2) -> Round 74 | SY2: =SR2+1 -> 75 | SZ2: =CONCATENATE("Round ",SY2) -> Round 75 | TF2: =SY2+1 -> 76 | TG2: =CONCATENATE("Round ",TF2) -> Round 76 | TM2: =TF2+1 -> 77 | TN2: =CONCATENATE("Round ",TM2) -> Round 77 | TT2: =TM2+1 -> 78 | TU2: =CONCATENATE("Round ",TT2) -> Round 78 | UA2: =TT2+1 -> 79 | UB2: =CONCATENATE("Round ",UA2) -> Round 79 | UH2: =UA2+1 -> 80 | UI2: =CONCATENATE("Round ",UH2) -> Round 80 | UO2: =UH2+1 -> 81 | UP2: =CONCATENATE("Round ",UO2) -> Round 81 | UV2: =UO2+1 -> 82 | UW2: =CONCATENATE("Round ",UV2) -> Round 82 | VC2: =UV2+1 -> 83 | VD2: =CONCATENATE("Round ",VC2) -> Round 83 | VJ2: =VC2+1 -> 84 | VK2: =CONCATENATE("Round ",VJ2) -> Round 84 | VQ2: =VJ2+1 -> 85 | VR2: =CONCATENATE("Round ",VQ2) -> Round 85 | VX2: =VQ2+1 -> 86 | VY2: =CONCATENATE("Round ",VX2) -> Round 86 | WE2: =VX2+1 -> 87 | WF2: =CONCATENATE("Round ",WE2) -> Round 87 | WL2: =WE2+1 -> 88 | WM2: =CONCATENATE("Round ",WL2) -> Round 88 | WS2: =WL2+1 -> 89 | WT2: =CONCATENATE("Round ",WS2) -> Round 89 | WZ2: =WS2+1 -> 90 | XA2: =CONCATENATE("Round ",WZ2) -> Round 90 | XG2: =WZ2+1 -> 91 | XH2: =CONCATENATE("Round ",XG2) -> Round 91 | XN2: =XG2+1 -> 92 | XO2: =CONCATENATE("Round ",XN2) -> Round 92 | XU2: =XN2+1 -> 93 | XV2: =CONCATENATE("Round ",XU2) -> Round 93 | YB2: =XU2+1 -> 94 | YC2: =CONCATENATE("Round ",YB2) -> Round 94 | YI2: =YB2+1 -> 95 | YJ2: =CONCATENATE("Round ",YI2) -> Round 95 | YP2: =YI2+1 -> 96 | YQ2: =CONCATENATE("Round ",YP2) -> Round 96 | YW2: =YP2+1 -> 97 | YX2: =CONCATENATE("Round ",YW2) -> Round 97 | ZD2: =YW2+1 -> 98 | ZE2: =CONCATENATE("Round ",ZD2) -> Round 98 | ZK2: =ZD2+1 -> 99 | ZL2: =CONCATENATE("Round ",ZK2) -> Round 99 | ZR2: =ZK2+1 -> 100 | ZS2: =CONCATENATE("Round ",ZR2) -> Round 100 | ZY2: =ZR2+1 -> 101 | ZZ2: =CONCATENATE("Round ",ZY2) -> Round 101 | AAF2: =ZY2+1 -> 102 | AAG2: =CONCATENATE("Round ",AAF2) -> Round 102 | AAM2: =AAF2+1 -> 103 | AAN2: =CONCATENATE("Round ",AAM2) -> Round 103 | AAT2: =AAM2+1 -> 104 | AAU2: =CONCATENATE("Round ",AAT2) -> Round 104 | ABA2: =AAT2+1 -> 105 | ABB2: =CONCATENATE("Round ",ABA2) -> Round 105 | ABH2: =ABA2+1 -> 106 | ABI2: =CONCATENATE("Round ",ABH2) -> Round 106 | ABO2: =ABH2+1 -> 107 | ABP2: =CONCATENATE("Round ",ABO2) -> Round 107 | ABV2: =ABO2+1 -> 108 | ABW2: =CONCATENATE("Round ",ABV2) -> Round 108 | ACC2: =ABV2+1 -> 109 | ACD2: =CONCATENATE("Round ",ACC2) -> Round 109 | ACJ2: =ACC2+1 -> 110 | ACK2: =CONCATENATE("Round ",ACJ2) -> Round 110 | ACQ2: =ACJ2+1 -> 111 | ACR2: =CONCATENATE("Round ",ACQ2) -> Round 111 | ACX2: =ACQ2+1 -> 112 | ACY2: =CONCATENATE("Round ",ACX2) -> Round 112 | ADE2: =ACX2+1 -> 113 | ADF2: =CONCATENATE("Round ",ADE2) -> Round 113 | ADL2: =ADE2+1 -> 114 | ADM2: =CONCATENATE("Round ",ADL2) -> Round 114 | ADS2: =ADL2+1 -> 115 | ADT2: =CONCATENATE("Round ",ADS2) -> Round 115 | ADZ2: =ADS2+1 -> 116 | AEA2: =CONCATENATE("Round ",ADZ2) -> Round 116 | AEG2: =ADZ2+1 -> 117 | AEH2: =CONCATENATE("Round ",AEG2) -> Round 117 | AEN2: =AEG2+1 -> 118 | AEO2: =CONCATENATE("Round ",AEN2) -> Round 118 | AEU2: =AEN2+1 -> 119 | AEV2: =CONCATENATE("Round ",AEU2) -> Round 119 | AFB2: =AEU2+1 -> 120 | AFC2: =CONCATENATE("Round ",AFB2) -> Round 120 | AFI2: =AFB2+1 -> 121 | AFJ2: =CONCATENATE("Round ",AFI2) -> Round 121 | AFP2: =AFI2+1 -> 122 | AFQ2: =CONCATENATE("Round ",AFP2) -> Round 122 | AFW2: =AFP2+1 -> 123 | AFX2: =CONCATENATE("Round ",AFW2) -> Round 123 | AGD2: =AFW2+1 -> 124 | AGE2: =CONCATENATE("Round ",AGD2) -> Round 124 | AGK2: =AGD2+1 -> 125 | AGL2: =CONCATENATE("Round ",AGK2) -> Round 125 | AGR2: =AGK2+1 -> 126 | AGS2: =CONCATENATE("Round ",AGR2) -> Round 126 | AGY2: =AGR2+1 -> 127 | AGZ2: =CONCATENATE("Round ",AGY2) -> Round 127 | AHF2: =AGY2+1 -> 128 | AHG2: =CONCATENATE("Round ",AHF2) -> Round 128 | AHM2: =AHF2+1 -> 129 | AHN2: =CONCATENATE("Round ",AHM2) -> Round 129
A3: =SUM(G4:G625) -> 0 | B3: Graduate | C3: Choice # | D3: Proposes to | E3: Ranking | F3: Relative Ranking | G3: Decision | I3: =B3 -> Graduate | J3: =C3 -> Choice # | K3: Proposes to | L3: Ranking | M3: Relative Ranking | N3: Decision | P3: =I3 -> Graduate | Q3: =J3 -> Choice # | R3: =K3 -> Proposes to | S3: =L3 -> Ranking | T3: =M3 -> Relative Ranking | U3: =N3 -> Decision | W3: =P3 -> Graduate | X3: =Q3 -> Choice # | Y3: =R3 -> Proposes to | Z3: =S3 -> Ranking | AA3: =T3 -> Relative Ranking | AB3: =U3 -> Decision | AD3: =W3 -> Graduate | AE3: =X3 -> Choice # | AF3: =Y3 -> Proposes to | AG3: =Z3 -> Ranking | AH3: =AA3 -> Relative Ranking | AI3: =AB3 -> Decision | AK3: =AD3 -> Graduate | AL3: =AE3 -> Choice # | AM3: =AF3 -> Proposes to | AN3: =AG3 -> Ranking | AO3: =AH3 -> Relative Ranking | AP3: =AI3 -> Decision | AR3: =AK3 -> Graduate | AS3: =AL3 -> Choice # | AT3: =AM3 -> Proposes to | AU3: =AN3 -> Ranking | AV3: =AO3 -> Relative Ranking | AW3: =AP3 -> Decision | AY3: =AR3 -> Graduate | AZ3: =AS3 -> Choice # | BA3: =AT3 -> Proposes to | BB3: =AU3 -> Ranking | BC3: =AV3 -> Relative Ranking | BD3: =AW3 -> Decision | BF3: =AY3 -> Graduate | BG3: =AZ3 -> Choice # | BH3: =BA3 -> Proposes to | BI3: =BB3 -> Ranking | BJ3: =BC3 -> Relative Ranking | BK3: =BD3 -> Decision | BM3: =BF3 -> Graduate | BN3: =BG3 -> Choice # | BO3: =BH3 -> Proposes to | BP3: =BI3 -> Ranking | BQ3: =BJ3 -> Relative Ranking | BR3: =BK3 -> Decision | BT3: =BM3 -> Graduate | BU3: =BN3 -> Choice # | BV3: =BO3 -> Proposes to | BW3: =BP3 -> Ranking | BX3: =BQ3 -> Relative Ranking | BY3: =BR3 -> Decision | CA3: =BT3 -> Graduate | CB3: =BU3 -> Choice # | CC3: =BV3 -> Proposes to | CD3: =BW3 -> Ranking | CE3: =BX3 -> Relative Ranking | CF3: =BY3 -> Decision | CH3: =CA3 -> Graduate | CI3: =CB3 -> Choice # | CJ3: =CC3 -> Proposes to | CK3: =CD3 -> Ranking | CL3: =CE3 -> Relative Ranking | CM3: =CF3 -> Decision | CO3: =CH3 -> Graduate | CP3: =CI3 -> Choice # | CQ3: =CJ3 -> Proposes to | CR3: =CK3 -> Ranking | CS3: =CL3 -> Relative Ranking | CT3: =CM3 -> Decision | CV3: =CO3 -> Graduate | CW3: =CP3 -> Choice # | CX3: =CQ3 -> Proposes to | CY3: =CR3 -> Ranking | CZ3: =CS3 -> Relative Ranking | DA3: =CT3 -> Decision | DC3: =CV3 -> Graduate | DD3: =CW3 -> Choice # | DE3: =CX3 -> Proposes to | DF3: =CY3 -> Ranking | DG3: =CZ3 -> Relative Ranking | DH3: =DA3 -> Decision | DJ3: =DC3 -> Graduate | DK3: =DD3 -> Choice # | DL3: =DE3 -> Proposes to | DM3: =DF3 -> Ranking | DN3: =DG3 -> Relative Ranking | DO3: =DH3 -> Decision | DQ3: =DJ3 -> Graduate | DR3: =DK3 -> Choice # | DS3: =DL3 -> Proposes to | DT3: =DM3 -> Ranking | DU3: =DN3 -> Relative Ranking | DV3: =DO3 -> Decision | DX3: =DQ3 -> Graduate | DY3: =DR3 -> Choice # | DZ3: =DS3 -> Proposes to | EA3: =DT3 -> Ranking | EB3: =DU3 -> Relative Ranking | EC3: =DV3 -> Decision | EE3: =DX3 -> Graduate | EF3: =DY3 -> Choice # | EG3: =DZ3 -> Proposes to | EH3: =EA3 -> Ranking | EI3: =EB3 -> Relative Ranking | EJ3: =EC3 -> Decision | EL3: =EE3 -> Graduate | EM3: =EF3 -> Choice # | EN3: =EG3 -> Proposes to | EO3: =EH3 -> Ranking | EP3: =EI3 -> Relative Ranking | EQ3: =EJ3 -> Decision | ES3: =EL3 -> Graduate | ET3: =EM3 -> Choice # | EU3: =EN3 -> Proposes to | EV3: =EO3 -> Ranking | EW3: =EP3 -> Relative Ranking | EX3: =EQ3 -> Decision | EZ3: =ES3 -> Graduate | FA3: =ET3 -> Choice # | FB3: =EU3 -> Proposes to | FC3: =EV3 -> Ranking | FD3: =EW3 -> Relative Ranking | FE3: =EX3 -> Decision | FG3: =EZ3 -> Graduate | FH3: =FA3 -> Choice # | FI3: =FB3 -> Proposes to | FJ3: =FC3 -> Ranking | FK3: =FD3 -> Relative Ranking | FL3: =FE3 -> Decision | FN3: =FG3 -> Graduate | FO3: =FH3 -> Choice # | FP3: =FI3 -> Proposes to | FQ3: =FJ3 -> Ranking | FR3: =FK3 -> Relative Ranking | FS3: =FL3 -> Decision | FU3: =FN3 -> Graduate | FV3: =FO3 -> Choice # | FW3: =FP3 -> Proposes to | FX3: =FQ3 -> Ranking | FY3: =FR3 -> Relative Ranking | FZ3: =FS3 -> Decision | GB3: =FU3 -> Graduate | GC3: =FV3 -> Choice # | GD3: =FW3 -> Proposes to | GE3: =FX3 -> Ranking | GF3: =FY3 -> Relative Ranking | GG3: =FZ3 -> Decision | GI3: =GB3 -> Graduate | GJ3: =GC3 -> Choice # | GK3: =GD3 -> Proposes to | GL3: =GE3 -> Ranking | GM3: =GF3 -> Relative Ranking | GN3: =GG3 -> Decision | GP3: =GI3 -> Graduate | GQ3: =GJ3 -> Choice # | GR3: =GK3 -> Proposes to | GS3: =GL3 -> Ranking | GT3: =GM3 -> Relative Ranking | GU3: =GN3 -> Decision | GW3: =GP3 -> Graduate | GX3: =GQ3 -> Choice # | GY3: =GR3 -> Proposes to | GZ3: =GS3 -> Ranking | HA3: =GT3 -> Relative Ranking | HB3: =GU3 -> Decision | HD3: =GW3 -> Graduate | HE3: =GX3 -> Choice # | HF3: =GY3 -> Proposes to | HG3: =GZ3 -> Ranking | HH3: =HA3 -> Relative Ranking | HI3: =HB3 -> Decision | HK3: =HD3 -> Graduate | HL3: =HE3 -> Choice # | HM3: =HF3 -> Proposes to | HN3: =HG3 -> Ranking | HO3: =HH3 -> Relative Ranking | HP3: =HI3 -> Decision | HR3: =HK3 -> Graduate | HS3: =HL3 -> Choice # | HT3: =HM3 -> Proposes to | HU3: =HN3 -> Ranking | HV3: =HO3 -> Relative Ranking | HW3: =HP3 -> Decision | HY3: =HR3 -> Graduate | HZ3: =HS3 -> Choice # | IA3: =HT3 -> Proposes to | IB3: =HU3 -> Ranking | IC3: =HV3 -> Relative Ranking | ID3: =HW3 -> Decision | IF3: =HY3 -> Graduate | IG3: =HZ3 -> Choice # | IH3: =IA3 -> Proposes to | II3: =IB3 -> Ranking | IJ3: =IC3 -> Relative Ranking | IK3: =ID3 -> Decision | IM3: =IF3 -> Graduate | IN3: =IG3 -> Choice # | IO3: =IH3 -> Proposes to | IP3: =II3 -> Ranking | IQ3: =IJ3 -> Relative Ranking | IR3: =IK3 -> Decision | IT3: =IM3 -> Graduate | IU3: =IN3 -> Choice # | IV3: =IO3 -> Proposes to | IW3: =IP3 -> Ranking | IX3: =IQ3 -> Relative Ranking | IY3: =IR3 -> Decision | JA3: =IT3 -> Graduate | JB3: =IU3 -> Choice # | JC3: =IV3 -> Proposes to | JD3: =IW3 -> Ranking | JE3: =IX3 -> Relative Ranking | JF3: =IY3 -> Decision | JH3: =JA3 -> Graduate | JI3: =JB3 -> Choice # | JJ3: =JC3 -> Proposes to | JK3: =JD3 -> Ranking | JL3: =JE3 -> Relative Ranking | JM3: =JF3 -> Decision | JO3: =JH3 -> Graduate | JP3: =JI3 -> Choice # | JQ3: =JJ3 -> Proposes to | JR3: =JK3 -> Ranking | JS3: =JL3 -> Relative Ranking | JT3: =JM3 -> Decision | JV3: =JO3 -> Graduate | JW3: =JP3 -> Choice # | JX3: =JQ3 -> Proposes to | JY3: =JR3 -> Ranking | JZ3: =JS3 -> Relative Ranking | KA3: =JT3 -> Decision | KC3: =JV3 -> Graduate | KD3: =JW3 -> Choice # | KE3: =JX3 -> Proposes to | KF3: =JY3 -> Ranking | KG3: =JZ3 -> Relative Ranking | KH3: =KA3 -> Decision | KJ3: =KC3 -> Graduate | KK3: =KD3 -> Choice # | KL3: =KE3 -> Proposes to | KM3: =KF3 -> Ranking | KN3: =KG3 -> Relative Ranking | KO3: =KH3 -> Decision | KQ3: =KJ3 -> Graduate | KR3: =KK3 -> Choice # | KS3: =KL3 -> Proposes to | KT3: =KM3 -> Ranking | KU3: =KN3 -> Relative Ranking | KV3: =KO3 -> Decision | KX3: =KQ3 -> Graduate | KY3: =KR3 -> Choice # | KZ3: =KS3 -> Proposes to | LA3: =KT3 -> Ranking | LB3: =KU3 -> Relative Ranking | LC3: =KV3 -> Decision | LE3: =KX3 -> Graduate | LF3: =KY3 -> Choice # | LG3: =KZ3 -> Proposes to | LH3: =LA3 -> Ranking | LI3: =LB3 -> Relative Ranking | LJ3: =LC3 -> Decision | LL3: =LE3 -> Graduate | LM3: =LF3 -> Choice # | LN3: =LG3 -> Proposes to | LO3: =LH3 -> Ranking | LP3: =LI3 -> Relative Ranking | LQ3: =LJ3 -> Decision | LS3: =LL3 -> Graduate | LT3: =LM3 -> Choice # | LU3: =LN3 -> Proposes to | LV3: =LO3 -> Ranking | LW3: =LP3 -> Relative Ranking | LX3: =LQ3 -> Decision | LZ3: =LS3 -> Graduate | MA3: =LT3 -> Choice # | MB3: =LU3 -> Proposes to | MC3: =LV3 -> Ranking | MD3: =LW3 -> Relative Ranking | ME3: =LX3 -> Decision | MG3: =LZ3 -> Graduate | MH3: =MA3 -> Choice # | MI3: =MB3 -> Proposes to | MJ3: =MC3 -> Ranking | MK3: =MD3 -> Relative Ranking | ML3: =ME3 -> Decision | MN3: =MG3 -> Graduate | MO3: =MH3 -> Choice # | MP3: =MI3 -> Proposes to | MQ3: =MJ3 -> Ranking | MR3: =MK3 -> Relative Ranking | MS3: =ML3 -> Decision | MU3: =MN3 -> Graduate | MV3: =MO3 -> Choice # | MW3: =MP3 -> Proposes to | MX3: =MQ3 -> Ranking | MY3: =MR3 -> Relative Ranking | MZ3: =MS3 -> Decision | NB3: =MU3 -> Graduate | NC3: =MV3 -> Choice # | ND3: =MW3 -> Proposes to | NE3: =MX3 -> Ranking | NF3: =MY3 -> Relative Ranking | NG3: =MZ3 -> Decision | NI3: =NB3 -> Graduate | NJ3: =NC3 -> Choice # | NK3: =ND3 -> Proposes to | NL3: =NE3 -> Ranking | NM3: =NF3 -> Relative Ranking | NN3: =NG3 -> Decision | NP3: =NI3 -> Graduate | NQ3: =NJ3 -> Choice # | NR3: =NK3 -> Proposes to | NS3: =NL3 -> Ranking | NT3: =NM3 -> Relative Ranking | NU3: =NN3 -> Decision | NW3: =NP3 -> Graduate | NX3: =NQ3 -> Choice # | NY3: =NR3 -> Proposes to | NZ3: =NS3 -> Ranking | OA3: =NT3 -> Relative Ranking | OB3: =NU3 -> Decision | OD3: =NW3 -> Graduate | OE3: =NX3 -> Choice # | OF3: =NY3 -> Proposes to | OG3: =NZ3 -> Ranking | OH3: =OA3 -> Relative Ranking | OI3: =OB3 -> Decision | OK3: =OD3 -> Graduate | OL3: =OE3 -> Choice # | OM3: =OF3 -> Proposes to | ON3: =OG3 -> Ranking | OO3: =OH3 -> Relative Ranking | OP3: =OI3 -> Decision | OR3: =OK3 -> Graduate | OS3: =OL3 -> Choice # | OT3: =OM3 -> Proposes to | OU3: =ON3 -> Ranking | OV3: =OO3 -> Relative Ranking | OW3: =OP3 -> Decision | OY3: =OR3 -> Graduate | OZ3: =OS3 -> Choice # | PA3: =OT3 -> Proposes to | PB3: =OU3 -> Ranking | PC3: =OV3 -> Relative Ranking | PD3: =OW3 -> Decision | PF3: =OY3 -> Graduate | PG3: =OZ3 -> Choice # | PH3: =PA3 -> Proposes to | PI3: =PB3 -> Ranking | PJ3: =PC3 -> Relative Ranking | PK3: =PD3 -> Decision | PM3: =PF3 -> Graduate | PN3: =PG3 -> Choice # | PO3: =PH3 -> Proposes to | PP3: =PI3 -> Ranking | PQ3: =PJ3 -> Relative Ranking | PR3: =PK3 -> Decision | PT3: =PM3 -> Graduate | PU3: =PN3 -> Choice # | PV3: =PO3 -> Proposes to | PW3: =PP3 -> Ranking | PX3: =PQ3 -> Relative Ranking | PY3: =PR3 -> Decision | QA3: =PT3 -> Graduate | QB3: =PU3 -> Choice # | QC3: =PV3 -> Proposes to | QD3: =PW3 -> Ranking | QE3: =PX3 -> Relative Ranking | QF3: =PY3 -> Decision | QH3: =QA3 -> Graduate | QI3: =QB3 -> Choice # | QJ3: =QC3 -> Proposes to | QK3: =QD3 -> Ranking | QL3: =QE3 -> Relative Ranking | QM3: =QF3 -> Decision | QO3: =QH3 -> Graduate | QP3: =QI3 -> Choice # | QQ3: =QJ3 -> Proposes to | QR3: =QK3 -> Ranking | QS3: =QL3 -> Relative Ranking | QT3: =QM3 -> Decision | QV3: =QO3 -> Graduate | QW3: =QP3 -> Choice # | QX3: =QQ3 -> Proposes to | QY3: =QR3 -> Ranking | QZ3: =QS3 -> Relative Ranking | RA3: =QT3 -> Decision | RC3: =QV3 -> Graduate | RD3: =QW3 -> Choice # | RE3: =QX3 -> Proposes to | RF3: =QY3 -> Ranking | RG3: =QZ3 -> Relative Ranking | RH3: =RA3 -> Decision | RJ3: =RC3 -> Graduate | RK3: =RD3 -> Choice # | RL3: =RE3 -> Proposes to | RM3: =RF3 -> Ranking | RN3: =RG3 -> Relative Ranking | RO3: =RH3 -> Decision | RQ3: =RJ3 -> Graduate | RR3: =RK3 -> Choice # | RS3: =RL3 -> Proposes to | RT3: =RM3 -> Ranking | RU3: =RN3 -> Relative Ranking | RV3: =RO3 -> Decision | RX3: =RQ3 -> Graduate | RY3: =RR3 -> Choice # | RZ3: =RS3 -> Proposes to | SA3: =RT3 -> Ranking | SB3: =RU3 -> Relative Ranking | SC3: =RV3 -> Decision | SE3: =RX3 -> Graduate | SF3: =RY3 -> Choice # | SG3: =RZ3 -> Proposes to | SH3: =SA3 -> Ranking | SI3: =SB3 -> Relative Ranking | SJ3: =SC3 -> Decision | SL3: =SE3 -> Graduate | SM3: =SF3 -> Choice # | SN3: =SG3 -> Proposes to | SO3: =SH3 -> Ranking | SP3: =SI3 -> Relative Ranking | SQ3: =SJ3 -> Decision | SS3: =SL3 -> Graduate | ST3: =SM3 -> Choice # | SU3: =SN3 -> Proposes to | SV3: =SO3 -> Ranking | SW3: =SP3 -> Relative Ranking | SX3: =SQ3 -> Decision | SZ3: =SS3 -> Graduate | TA3: =ST3 -> Choice # | TB3: =SU3 -> Proposes to | TC3: =SV3 -> Ranking | TD3: =SW3 -> Relative Ranking | TE3: =SX3 -> Decision | TG3: =SZ3 -> Graduate | TH3: =TA3 -> Choice # | TI3: =TB3 -> Proposes to | TJ3: =TC3 -> Ranking | TK3: =TD3 -> Relative Ranking | TL3: =TE3 -> Decision | TN3: =TG3 -> Graduate | TO3: =TH3 -> Choice # | TP3: =TI3 -> Proposes to | TQ3: =TJ3 -> Ranking | TR3: =TK3 -> Relative Ranking | TS3: =TL3 -> Decision | TU3: =TN3 -> Graduate | TV3: =TO3 -> Choice # | TW3: =TP3 -> Proposes to | TX3: =TQ3 -> Ranking | TY3: =TR3 -> Relative Ranking | TZ3: =TS3 -> Decision | UB3: =TU3 -> Graduate | UC3: =TV3 -> Choice # | UD3: =TW3 -> Proposes to | UE3: =TX3 -> Ranking | UF3: =TY3 -> Relative Ranking | UG3: =TZ3 -> Decision | UI3: =UB3 -> Graduate | UJ3: =UC3 -> Choice # | UK3: =UD3 -> Proposes to | UL3: =UE3 -> Ranking | UM3: =UF3 -> Relative Ranking | UN3: =UG3 -> Decision | UP3: =UI3 -> Graduate | UQ3: =UJ3 -> Choice # | UR3: =UK3 -> Proposes to | US3: =UL3 -> Ranking | UT3: =UM3 -> Relative Ranking | UU3: =UN3 -> Decision | UW3: =UP3 -> Graduate | UX3: =UQ3 -> Choice # | UY3: =UR3 -> Proposes to | UZ3: =US3 -> Ranking | VA3: =UT3 -> Relative Ranking | VB3: =UU3 -> Decision | VD3: =UW3 -> Graduate | VE3: =UX3 -> Choice # | VF3: =UY3 -> Proposes to | VG3: =UZ3 -> Ranking | VH3: =VA3 -> Relative Ranking | VI3: =VB3 -> Decision | VK3: =VD3 -> Graduate | VL3: =VE3 -> Choice # | VM3: =VF3 -> Proposes to | VN3: =VG3 -> Ranking | VO3: =VH3 -> Relative Ranking | VP3: =VI3 -> Decision | VR3: =VK3 -> Graduate | VS3: =VL3 -> Choice # | VT3: =VM3 -> Proposes to | VU3: =VN3 -> Ranking | VV3: =VO3 -> Relative Ranking | VW3: =VP3 -> Decision | VY3: =VR3 -> Graduate | VZ3: =VS3 -> Choice # | WA3: =VT3 -> Proposes to | WB3: =VU3 -> Ranking | WC3: =VV3 -> Relative Ranking | WD3: =VW3 -> Decision | WF3: =VY3 -> Graduate | WG3: =VZ3 -> Choice # | WH3: =WA3 -> Proposes to | WI3: =WB3 -> Ranking | WJ3: =WC3 -> Relative Ranking | WK3: =WD3 -> Decision | WM3: =WF3 -> Graduate | WN3: =WG3 -> Choice # | WO3: =WH3 -> Proposes to | WP3: =WI3 -> Ranking | WQ3: =WJ3 -> Relative Ranking | WR3: =WK3 -> Decision | WT3: =WM3 -> Graduate | WU3: =WN3 -> Choice # | WV3: =WO3 -> Proposes to | WW3: =WP3 -> Ranking | WX3: =WQ3 -> Relative Ranking | WY3: =WR3 -> Decision | XA3: =WT3 -> Graduate | XB3: =WU3 -> Choice # | XC3: =WV3 -> Proposes to | XD3: =WW3 -> Ranking | XE3: =WX3 -> Relative Ranking | XF3: =WY3 -> Decision | XH3: =XA3 -> Graduate | XI3: =XB3 -> Choice # | XJ3: =XC3 -> Proposes to | XK3: =XD3 -> Ranking | XL3: =XE3 -> Relative Ranking | XM3: =XF3 -> Decision | XO3: =XH3 -> Graduate | XP3: =XI3 -> Choice # | XQ3: =XJ3 -> Proposes to | XR3: =XK3 -> Ranking | XS3: =XL3 -> Relative Ranking | XT3: =XM3 -> Decision | XV3: =XO3 -> Graduate | XW3: =XP3 -> Choice # | XX3: =XQ3 -> Proposes to | XY3: =XR3 -> Ranking | XZ3: =XS3 -> Relative Ranking | YA3: =XT3 -> Decision | YC3: =XV3 -> Graduate | YD3: =XW3 -> Choice # | YE3: =XX3 -> Proposes to | YF3: =XY3 -> Ranking | YG3: =XZ3 -> Relative Ranking | YH3: =YA3 -> Decision | YJ3: =YC3 -> Graduate | YK3: =YD3 -> Choice # | YL3: =YE3 -> Proposes to | YM3: =YF3 -> Ranking | YN3: =YG3 -> Relative Ranking | YO3: =YH3 -> Decision | YQ3: =YJ3 -> Graduate | YR3: =YK3 -> Choice # | YS3: =YL3 -> Proposes to | YT3: =YM3 -> Ranking | YU3: =YN3 -> Relative Ranking | YV3: =YO3 -> Decision | YX3: =YQ3 -> Graduate | YY3: =YR3 -> Choice # | YZ3: =YS3 -> Proposes to | ZA3: =YT3 -> Ranking | ZB3: =YU3 -> Relative Ranking | ZC3: =YV3 -> Decision | ZE3: =YX3 -> Graduate | ZF3: =YY3 -> Choice # | ZG3: =YZ3 -> Proposes to | ZH3: =ZA3 -> Ranking | ZI3: =ZB3 -> Relative Ranking | ZJ3: =ZC3 -> Decision | ZL3: =ZE3 -> Graduate | ZM3: =ZF3 -> Choice # | ZN3: =ZG3 -> Proposes to | ZO3: =ZH3 -> Ranking | ZP3: =ZI3 -> Relative Ranking | ZQ3: =ZJ3 -> Decision | ZS3: =ZL3 -> Graduate | ZT3: =ZM3 -> Choice # | ZU3: =ZN3 -> Proposes to | ZV3: =ZO3 -> Ranking | ZW3: =ZP3 -> Relative Ranking | ZX3: =ZQ3 -> Decision | ZZ3: =ZS3 -> Graduate | AAA3: =ZT3 -> Choice # | AAB3: =ZU3 -> Proposes to | AAC3: =ZV3 -> Ranking | AAD3: =ZW3 -> Relative Ranking | AAE3: =ZX3 -> Decision | AAG3: =ZZ3 -> Graduate | AAH3: =AAA3 -> Choice # | AAI3: =AAB3 -> Proposes to | AAJ3: =AAC3 -> Ranking | AAK3: =AAD3 -> Relative Ranking | AAL3: =AAE3 -> Decision | AAN3: =AAG3 -> Graduate | AAO3: =AAH3 -> Choice # | AAP3: =AAI3 -> Proposes to | AAQ3: =AAJ3 -> Ranking | AAR3: =AAK3 -> Relative Ranking | AAS3: =AAL3 -> Decision | AAU3: =AAN3 -> Graduate | AAV3: =AAO3 -> Choice # | AAW3: =AAP3 -> Proposes to | AAX3: =AAQ3 -> Ranking | AAY3: =AAR3 -> Relative Ranking | AAZ3: =AAS3 -> Decision | ABB3: =AAU3 -> Graduate | ABC3: =AAV3 -> Choice # | ABD3: =AAW3 -> Proposes to | ABE3: =AAX3 -> Ranking | ABF3: =AAY3 -> Relative Ranking | ABG3: =AAZ3 -> Decision | ABI3: =ABB3 -> Graduate | ABJ3: =ABC3 -> Choice # | ABK3: =ABD3 -> Proposes to | ABL3: =ABE3 -> Ranking | ABM3: =ABF3 -> Relative Ranking | ABN3: =ABG3 -> Decision | ABP3: =ABI3 -> Graduate | ABQ3: =ABJ3 -> Choice # | ABR3: =ABK3 -> Proposes to | ABS3: =ABL3 -> Ranking | ABT3: =ABM3 -> Relative Ranking | ABU3: =ABN3 -> Decision | ABW3: =ABP3 -> Graduate | ABX3: =ABQ3 -> Choice # | ABY3: =ABR3 -> Proposes to | ABZ3: =ABS3 -> Ranking | ACA3: =ABT3 -> Relative Ranking | ACB3: =ABU3 -> Decision | ACD3: =ABW3 -> Graduate | ACE3: =ABX3 -> Choice # | ACF3: =ABY3 -> Proposes to | ACG3: =ABZ3 -> Ranking | ACH3: =ACA3 -> Relative Ranking | ACI3: =ACB3 -> Decision | ACK3: =ACD3 -> Graduate | ACL3: =ACE3 -> Choice # | ACM3: =ACF3 -> Proposes to | ACN3: =ACG3 -> Ranking | ACO3: =ACH3 -> Relative Ranking | ACP3: =ACI3 -> Decision | ACR3: =ACK3 -> Graduate | ACS3: =ACL3 -> Choice # | ACT3: =ACM3 -> Proposes to | ACU3: =ACN3 -> Ranking | ACV3: =ACO3 -> Relative Ranking | ACW3: =ACP3 -> Decision | ACY3: =ACR3 -> Graduate | ACZ3: =ACS3 -> Choice # | ADA3: =ACT3 -> Proposes to | ADB3: =ACU3 -> Ranking | ADC3: =ACV3 -> Relative Ranking | ADD3: =ACW3 -> Decision | ADF3: =ACY3 -> Graduate | ADG3: =ACZ3 -> Choice # | ADH3: =ADA3 -> Proposes to | ADI3: =ADB3 -> Ranking | ADJ3: =ADC3 -> Relative Ranking | ADK3: =ADD3 -> Decision | ADM3: =ADF3 -> Graduate | ADN3: =ADG3 -> Choice # | ADO3: =ADH3 -> Proposes to | ADP3: =ADI3 -> Ranking | ADQ3: =ADJ3 -> Relative Ranking | ADR3: =ADK3 -> Decision | ADT3: =ADM3 -> Graduate | ADU3: =ADN3 -> Choice # | ADV3: =ADO3 -> Proposes to | ADW3: =ADP3 -> Ranking | ADX3: =ADQ3 -> Relative Ranking | ADY3: =ADR3 -> Decision | AEA3: =ADT3 -> Graduate | AEB3: =ADU3 -> Choice # | AEC3: =ADV3 -> Proposes to | AED3: =ADW3 -> Ranking | AEE3: =ADX3 -> Relative Ranking | AEF3: =ADY3 -> Decision | AEH3: =AEA3 -> Graduate | AEI3: =AEB3 -> Choice # | AEJ3: =AEC3 -> Proposes to | AEK3: =AED3 -> Ranking | AEL3: =AEE3 -> Relative Ranking | AEM3: =AEF3 -> Decision | AEO3: =AEH3 -> Graduate | AEP3: =AEI3 -> Choice # | AEQ3: =AEJ3 -> Proposes to | AER3: =AEK3 -> Ranking | AES3: =AEL3 -> Relative Ranking | AET3: =AEM3 -> Decision | AEV3: =AEO3 -> Graduate | AEW3: =AEP3 -> Choice # | AEX3: =AEQ3 -> Proposes to | AEY3: =AER3 -> Ranking | AEZ3: =AES3 -> Relative Ranking | AFA3: =AET3 -> Decision | AFC3: =AEV3 -> Graduate | AFD3: =AEW3 -> Choice # | AFE3: =AEX3 -> Proposes to | AFF3: =AEY3 -> Ranking | AFG3: =AEZ3 -> Relative Ranking | AFH3: =AFA3 -> Decision | AFJ3: =AFC3 -> Graduate | AFK3: =AFD3 -> Choice # | AFL3: =AFE3 -> Proposes to | AFM3: =AFF3 -> Ranking | AFN3: =AFG3 -> Relative Ranking | AFO3: =AFH3 -> Decision | AFQ3: =AFJ3 -> Graduate | AFR3: =AFK3 -> Choice # | AFS3: =AFL3 -> Proposes to | AFT3: =AFM3 -> Ranking | AFU3: =AFN3 -> Relative Ranking | AFV3: =AFO3 -> Decision | AFX3: =AFQ3 -> Graduate | AFY3: =AFR3 -> Choice # | AFZ3: =AFS3 -> Proposes to | AGA3: =AFT3 -> Ranking | AGB3: =AFU3 -> Relative Ranking | AGC3: =AFV3 -> Decision | AGE3: =AFX3 -> Graduate | AGF3: =AFY3 -> Choice # | AGG3: =AFZ3 -> Proposes to | AGH3: =AGA3 -> Ranking | AGI3: =AGB3 -> Relative Ranking | AGJ3: =AGC3 -> Decision | AGL3: =AGE3 -> Graduate | AGM3: =AGF3 -> Choice # | AGN3: =AGG3 -> Proposes to | AGO3: =AGH3 -> Ranking | AGP3: =AGI3 -> Relative Ranking | AGQ3: =AGJ3 -> Decision | AGS3: =AGL3 -> Graduate | AGT3: =AGM3 -> Choice # | AGU3: =AGN3 -> Proposes to | AGV3: =AGO3 -> Ranking | AGW3: =AGP3 -> Relative Ranking | AGX3: =AGQ3 -> Decision | AGZ3: =AGS3 -> Graduate | AHA3: =AGT3 -> Choice # | AHB3: =AGU3 -> Proposes to | AHC3: =AGV3 -> Ranking | AHD3: =AGW3 -> Relative Ranking | AHE3: =AGX3 -> Decision | AHG3: =AGZ3 -> Graduate | AHH3: =AHA3 -> Choice # | AHI3: =AHB3 -> Proposes to | AHJ3: =AHC3 -> Ranking | AHK3: =AHD3 -> Relative Ranking | AHL3: =AHE3 -> Decision | AHN3: =AHG3 -> Graduate | AHO3: =AHH3 -> Choice # | AHP3: =AHI3 -> Proposes to | AHQ3: =AHJ3 -> Ranking | AHR3: =AHK3 -> Relative Ranking | AHS3: =AHL3 -> Decision
A4: 1 | B4: Alvin | C4: 1 | D4: Finance | E4: 5 | F4: 1 | G4: Accepted | I4: Alvin | J4: 1 | K4: Finance | L4: 5 | M4: 3 | N4: Accepted | P4: Alvin | Q4: 1 | R4: Finance | S4: 5 | T4: 3 | U4: Accepted | W4: Alvin | X4: 1 | Y4: Finance | Z4: 5 | AA4: 3 | AB4: Accepted | AD4: Alvin | AE4: 1 | AF4: Finance | AG4: 5 | AH4: 3 | AI4: Accepted
A5: 1 | B5: Bob | C5: 1 | D5: Jedi | E5: 6 | F5: 1 | G5: Accepted | I5: Bob | J5: 1 | K5: Jedi | L5: 6 | M5: 1 | N5: Accepted | P5: Bob | Q5: 1 | R5: Jedi | S5: 6 | T5: 1 | U5: Accepted | W5: Bob | X5: 1 | Y5: Jedi | Z5: 6 | AA5: 1 | AB5: Accepted | AD5: Bob | AE5: 1 | AF5: Jedi | AG5: 6 | AH5: 1 | AI5: Accepted
A6: 2 | B6: Chelsea | C6: 1 | D6: Jedi | E6: 8 | F6: 2 | G6: Rejected | I6: Chelsea | J6: 2 | K6: Finance | L6: 22 | M6: 5 | N6: Accepted | P6: Chelsea | Q6: 2 | R6: Finance | S6: 22 | T6: 5 | U6: Accepted | W6: Chelsea | X6: 2 | Y6: Finance | Z6: 22 | AA6: 5 | AB6: Accepted | AD6: Chelsea | AE6: 2 | AF6: Finance | AG6: 22 | AH6: 5 | AI6: Accepted
A7: 1 | B7: Daniel | C7: 1 | D7: Economics | E7: 5 | F7: 1 | G7: Accepted | I7: Daniel | J7: 1 | K7: Economics | L7: 5 | M7: 1 | N7: Accepted | P7: Daniel | Q7: 1 | R7: Economics | S7: 5 | T7: 1 | U7: Accepted | W7: Daniel | X7: 1 | Y7: Economics | Z7: 5 | AA7: 2 | AB7: Accepted | AD7: Daniel | AE7: 1 | AF7: Economics | AG7: 5 | AH7: 2 | AI7: Accepted
A8: 2 | B8: Emily | C8: 1 | D8: Jedi | E8: 17 | F8: 4 | G8: Rejected | I8: Emily | J8: 2 | K8: Economics | L8: 18 | M8: 4 | N8: Accepted | P8: Emily | Q8: 2 | R8: Economics | S8: 18 | T8: 4 | U8: Accepted | W8: Emily | X8: 2 | Y8: Economics | Z8: 18 | AA8: 5 | AB8: Accepted | AD8: Emily | AE8: 2 | AF8: Economics | AG8: 18 | AH8: 5 | AI8: Accepted
A9: 3 | B9: Frank | C9: 1 | D9: Marketing | E9: 20 | F9: 6 | G9: Rejected | I9: Frank | J9: 2 | K9: Jedi | L9: 26 | M9: 2 | N9: Rejected | P9: Frank | Q9: 3 | R9: Research | S9: 6 | T9: 1 | U9: Accepted | W9: Frank | X9: 3 | Y9: Research | Z9: 6 | AA9: 1 | AB9: Accepted | AD9: Frank | AE9: 3 | AF9: Research | AG9: 6 | AH9: 1 | AI9: Accepted
A10: 1 | B10: Geraldine | C10: 1 | D10: Research | E10: 11 | F10: 1 | G10: Accepted | I10: Geraldine | J10: 1 | K10: Research | L10: 11 | M10: 1 | N10: Accepted | P10: Geraldine | Q10: 1 | R10: Research | S10: 11 | T10: 2 | U10: Accepted | W10: Geraldine | X10: 1 | Y10: Research | Z10: 11 | AA10: 2 | AB10: Accepted | AD10: Geraldine | AE10: 1 | AF10: Research | AG10: 11 | AH10: 2 | AI10: Accepted
A11: 1 | B11: Haley | C11: 1 | D11: Law | E11: 24 | F11: 2 | G11: Accepted | I11: Haley | J11: 1 | K11: Law | L11: 24 | M11: 2 | N11: Accepted | P11: Haley | Q11: 1 | R11: Law | S11: 24 | T11: 2 | U11: Accepted | W11: Haley | X11: 1 | Y11: Law | Z11: 24 | AA11: 2 | AB11: Accepted | AD11: Haley | AE11: 1 | AF11: Law | AG11: 24 | AH11: 3 | AI11: Accepted
A12: 2 | B12: Ian | C12: 1 | D12: Finance | E12: 25 | F12: 3 | G12: Accepted | I12: Ian | J12: 1 | K12: Finance | L12: 25 | M12: 7 | N12: Rejected | P12: Ian | Q12: 2 | R12: Marketing | S12: 4 | T12: 1 | U12: Accepted | W12: Ian | X12: 2 | Y12: Marketing | Z12: 4 | AA12: 1 | AB12: Accepted | AD12: Ian | AE12: 2 | AF12: Marketing | AG12: 4 | AH12: 1 | AI12: Accepted
A13: 1 | B13: Jeffrey | C13: 1 | D13: Finance | E13: 24 | F13: 2 | G13: Accepted | I13: Jeffrey | J13: 1 | K13: Finance | L13: 24 | M13: 6 | N13: Accepted | P13: Jeffrey | Q13: 1 | R13: Finance | S13: 24 | T13: 6 | U13: Accepted | W13: Jeffrey | X13: 1 | Y13: Finance | Z13: 24 | AA13: 6 | AB13: Accepted | AD13: Jeffrey | AE13: 1 | AF13: Finance | AG13: 24 | AH13: 6 | AI13: Accepted
A14: 1 | B14: Kevin | C14: 1 | D14: Economics | E14: 10 | F14: 3 | G14: Accepted | I14: Kevin | J14: 1 | K14: Economics | L14: 10 | M14: 3 | N14: Accepted | P14: Kevin | Q14: 1 | R14: Economics | S14: 10 | T14: 3 | U14: Accepted | W14: Kevin | X14: 1 | Y14: Economics | Z14: 10 | AA14: 4 | AB14: Accepted | AD14: Kevin | AE14: 1 | AF14: Economics | AG14: 10 | AH14: 4 | AI14: Accepted
A15: 1 | B15: Leia | C15: 1 | D15: Research | E15: 21 | F15: 2 | G15: Accepted | I15: Leia | J15: 1 | K15: Research | L15: 21 | M15: 3 | N15: Accepted | P15: Leia | Q15: 1 | R15: Research | S15: 21 | T15: 4 | U15: Accepted | W15: Leia | X15: 1 | Y15: Research | Z15: 21 | AA15: 4 | AB15: Accepted | AD15: Leia | AE15: 1 | AF15: Research | AG15: 21 | AH15: 4 | AI15: Accepted
A16: 1 | B16: Macey | C16: 1 | D16: Budget | E16: 4 | F16: 1 | G16: Accepted | I16: Macey | J16: 1 | K16: Budget | L16: 4 | M16: 1 | N16: Accepted | P16: Macey | Q16: 1 | R16: Budget | S16: 4 | T16: 1 | U16: Accepted | W16: Macey | X16: 1 | Y16: Budget | Z16: 4 | AA16: 1 | AB16: Accepted | AD16: Macey | AE16: 1 | AF16: Budget | AG16: 4 | AH16: 1 | AI16: Accepted
A17: 1 | B17: Natalie | C17: 1 | D17: Budget | E17: 17 | F17: 3 | G17: Accepted | I17: Natalie | J17: 1 | K17: Budget | L17: 17 | M17: 3 | N17: Accepted | P17: Natalie | Q17: 1 | R17: Budget | S17: 17 | T17: 3 | U17: Accepted | W17: Natalie | X17: 1 | Y17: Budget | Z17: 17 | AA17: 3 | AB17: Accepted | AD17: Natalie | AE17: 1 | AF17: Budget | AG17: 17 | AH17: 3 | AI17: Accepted
A18: 1 | B18: Oliver | C18: 1 | D18: Budget | E18: 7 | F18: 2 | G18: Accepted | I18: Oliver | J18: 1 | K18: Budget | L18: 7 | M18: 2 | N18: Accepted | P18: Oliver | Q18: 1 | R18: Budget | S18: 7 | T18: 2 | U18: Accepted | W18: Oliver | X18: 1 | Y18: Budget | Z18: 7 | AA18: 2 | AB18: Accepted | AD18: Oliver | AE18: 1 | AF18: Budget | AG18: 7 | AH18: 2 | AI18: Accepted
A19: 2 | B19: Phoebe | C19: 1 | D19: Marketing | E19: 16 | F19: 5 | G19: Rejected | I19: Phoebe | J19: 2 | K19: Research | L19: 13 | M19: 2 | N19: Accepted | P19: Phoebe | Q19: 2 | R19: Research | S19: 13 | T19: 3 | U19: Accepted | W19: Phoebe | X19: 2 | Y19: Research | Z19: 13 | AA19: 3 | AB19: Accepted | AD19: Phoebe | AE19: 2 | AF19: Research | AG19: 13 | AH19: 3 | AI19: Accepted
A20: 1 | B20: Quentin | C20: 1 | D20: Marketing | E20: 6 | F20: 1 | G20: Accepted | I20: Quentin | J20: 1 | K20: Marketing | L20: 6 | M20: 1 | N20: Accepted | P20: Quentin | Q20: 1 | R20: Marketing | S20: 6 | T20: 2 | U20: Accepted | W20: Quentin | X20: 1 | Y20: Marketing | Z20: 6 | AA20: 2 | AB20: Accepted | AD20: Quentin | AE20: 1 | AF20: Marketing | AG20: 6 | AH20: 2 | AI20: Accepted
A21: 2 | B21: Rachael | C21: 1 | D21: Jedi | E21: 19 | F21: 5 | G21: Rejected | I21: Rachael | J21: 2 | K21: Finance | L21: 4 | M21: 2 | N21: Accepted | P21: Rachael | Q21: 2 | R21: Finance | S21: 4 | T21: 2 | U21: Accepted | W21: Rachael | X21: 2 | Y21: Finance | Z21: 4 | AA21: 2 | AB21: Accepted | AD21: Rachael | AE21: 2 | AF21: Finance | AG21: 4 | AH21: 2 | AI21: Accepted
A22: 2 | B22: Stuart | C22: 1 | D22: Marketing | E22: 11 | F22: 4 | G22: Rejected | I22: Stuart | J22: 2 | K22: Finance | L22: 2 | M22: 1 | N22: Accepted | P22: Stuart | Q22: 2 | R22: Finance | S22: 2 | T22: 1 | U22: Accepted | W22: Stuart | X22: 2 | Y22: Finance | Z22: 2 | AA22: 1 | AB22: Accepted | AD22: Stuart | AE22: 2 | AF22: Finance | AG22: 2 | AH22: 1 | AI22: Accepted
A23: 2 | B23: Theodore | C23: 1 | D23: Marketing | E23: 9 | F23: 3 | G23: Accepted | I23: Theodore | J23: 1 | K23: Marketing | L23: 9 | M23: 3 | N23: Accepted | P23: Theodore | Q23: 1 | R23: Marketing | S23: 9 | T23: 4 | U23: Rejected | W23: Theodore | X23: 2 | Y23: Economics | Z23: 1 | AA23: 1 | AB23: Accepted | AD23: Theodore | AE23: 2 | AF23: Economics | AG23: 1 | AH23: 1 | AI23: Accepted
A24: 1 | B24: Ursula | C24: 1 | D24: Marketing | E24: 8 | F24: 2 | G24: Accepted | I24: Ursula | J24: 1 | K24: Marketing | L24: 8 | M24: 2 | N24: Accepted | P24: Ursula | Q24: 1 | R24: Marketing | S24: 8 | T24: 3 | U24: Accepted | W24: Ursula | X24: 1 | Y24: Marketing | Z24: 8 | AA24: 3 | AB24: Accepted | AD24: Ursula | AE24: 1 | AF24: Marketing | AG24: 8 | AH24: 3 | AI24: Accepted
A25: 3 | B25: Victor | C25: 1 | D25: Research | E25: 23 | F25: 3 | G25: Accepted | I25: Victor | J25: 1 | K25: Research | L25: 23 | M25: 4 | N25: Accepted | P25: Victor | Q25: 1 | R25: Research | S25: 23 | T25: 5 | U25: Rejected | W25: Victor | X25: 2 | Y25: Marketing | Z25: 21 | AA25: 4 | AB25: Rejected | AD25: Victor | AE25: 3 | AF25: Law | AG25: 1 | AH25: 1 | AI25: Accepted
A26: 1 | B26: Wendy | C26: 1 | D26: Economics | E26: 6 | F26: 2 | G26: Accepted | I26: Wendy | J26: 1 | K26: Economics | L26: 6 | M26: 2 | N26: Accepted | P26: Wendy | Q26: 1 | R26: Economics | S26: 6 | T26: 2 | U26: Accepted | W26: Wendy | X26: 1 | Y26: Economics | Z26: 6 | AA26: 3 | AB26: Accepted | AD26: Wendy | AE26: 1 | AF26: Economics | AG26: 6 | AH26: 3 | AI26: Accepted
A27: 1 | B27: Xavier | C27: 1 | D27: Law | E27: 7 | F27: 1 | G27: Accepted | I27: Xavier | J27: 1 | K27: Law | L27: 7 | M27: 1 | N27: Accepted | P27: Xavier | Q27: 1 | R27: Law | S27: 7 | T27: 1 | U27: Accepted | W27: Xavier | X27: 1 | Y27: Law | Z27: 7 | AA27: 1 | AB27: Accepted | AD27: Xavier | AE27: 1 | AF27: Law | AG27: 7 | AH27: 2 | AI27: Accepted
A28: 2 | B28: Yasmin | C28: 1 | D28: Jedi | E28: 9 | F28: 3 | G28: Rejected | I28: Yasmin | J28: 2 | K28: Finance | L28: 9 | M28: 4 | N28: Accepted | P28: Yasmin | Q28: 2 | R28: Finance | S28: 9 | T28: 4 | U28: Accepted | W28: Yasmin | X28: 2 | Y28: Finance | Z28: 9 | AA28: 4 | AB28: Accepted | AD28: Yasmin | AE28: 2 | AF28: Finance | AG28: 9 | AH28: 4 | AI28: Accepted
A29: 2 | B29: Zelda | C29: 1 | D29: Research | E29: 24 | F29: 4 | G29: Accepted | I29: Zelda | J29: 1 | K29: Research | L29: 24 | M29: 5 | N29: Rejected | P29: Zelda | Q29: 2 | R29: Budget | S29: 20 | T29: 4 | U29: Accepted | W29: Zelda | X29: 2 | Y29: Budget | Z29: 20 | AA29: 4 | AB29: Accepted | AD29: Zelda | AE29: 2 | AF29: Budget | AG29: 20 | AH29: 4 | AI29: Accepted

Sheet Work
A1: 1 | B1: 2 | C1: 3 | D1: 4 | E1: 5 | F1: 6 | G1: 7 | H1: 8 | I1: 9 | J1: 10 | K1: 11 | L1: 12 | M1: 13 | N1: 14 | O1: 15 | P1: 16 | Q1: 17 | R1: 18 | S1: 19 | T1: 20 | U1: 21 | V1: 22 | W1: 23 | X1: 24 | Y1: 25 | Z1: 26 | AA1: 27 | AB1: 28 | AC1: 29 | AD1: 30 | AE1: 31 | AF1: 32 | AG1: 33 | AH1: 34 | AI1: 35 | AJ1: 36 | AK1: 37 | AL1: 38 | AM1: 39 | AN1: 40 | AO1: 41 | AP1: 42 | AQ1: 43 | AR1: 44 | AS1: 45 | AT1: 46 | AU1: 47 | AV1: 48 | AW1: 49 | AX1: 50 | AY1: 51 | AZ1: 52 | BA1: 53 | BB1: 54 | BC1: 55 | BD1: 56 | BE1: 57 | BF1: 58 | BG1: 59 | BH1: 60 | BI1: 61 | BJ1: 62 | BK1: 63 | BL1: 64 | BM1: 65 | BN1: 66 | BO1: 67 | BP1: 68 | BQ1: 69 | BR1: 70 | BS1: 71 | BT1: 72 | BU1: 73 | BV1: 74 | BW1: 75 | BX1: 76 | BY1: 77 | BZ1: 78 | CA1: 79 | CB1: 80 | CC1: 81 | CD1: 82 | CE1: 83 | CF1: 84 | CG1: 85 | CH1: 86 | CI1: 87 | CJ1: 88 | CK1: 89 | CL1: 90 | CM1: 91 | CN1: 92 | CO1: 93 | CP1: 94 | CQ1: 95 | CR1: 96 | CS1: 97 | CT1: 98 | CU1: 99 | CV1: 100 | CW1: 101 | CX1: 102 | CY1: 103 | CZ1: 104 | DA1: 105 | DB1: 106 | DC1: 107 | DD1: 108 | DE1: 109 | DF1: 110 | DG1: 111 | DH1: 112 | DI1: 113 | DJ1: 114 | DK1: 115 | DL1: 116 | DM1: 117 | DN1: 118 | DO1: 119 | DP1: 120 | DQ1: 121 | DR1: 122 | DS1: 123 | DT1: 124 | DU1: 125 | DV1: 126 | DW1: 127 | DX1: 128 | DY1: 129 | DZ1: 130 | EA1: 131 | EB1: 132 | EC1: 133 | ED1: 134 | EE1: 135 | EF1: 136 | EG1: 137 | EH1: 138 | EI1: 139 | EJ1: 140 | EK1: 141 | EL1: 142 | EM1: 143 | EN1: 144 | EO1: 145 | EP1: 146 | EQ1: 147 | ER1: 148 | ES1: 149 | ET1: 150 | EU1: 151 | EV1: 152 | EW1: 153 | EX1: 154 | EY1: 155 | EZ1: 156 | FA1: 157 | FB1: 158 | FC1: 159 | FD1: 160 | FE1: 161 | FF1: 162 | FG1: 163 | FH1: 164 | FI1: 165 | FJ1: 166 | FK1: 167 | FL1: 168 | FM1: 169 | FN1: 170 | FO1: 171 | FP1: 172 | FQ1: 173 | FR1: 174 | FS1: 175 | FT1: 176 | FU1: 177 | FV1: 178 | FW1: 179 | FX1: 180 | FY1: 181 | FZ1: 182 | GA1: 183 | GB1: 184 | GC1: 185 | GD1: 186 | GE1: 187 | GF1: 188 | GG1: 189 | GH1: 190 | GI1: 191 | GJ1: 192 | GK1: 193 | GL1: 194 | GM1: 195 | GN1: 196 | GO1: 197 | GP1: 198 | GQ1: 199 | GR1: 200 | GS1: 201 | GT1: 202 | GU1: 203 | GV1: 204 | GW1: 205 | GX1: 206 | GY1: 207 | GZ1: 208 | HA1: 209 | HB1: 210 | HC1: 211 | HD1: 212 | HE1: 213 | HF1: 214 | HG1: 215 | HH1: 216 | HI1: 217 | HJ1: 218 | HK1: 219 | HL1: 220 | HM1: 221 | HN1: 222 | HO1: 223 | HP1: 224 | HQ1: 225 | HR1: 226 | HS1: 227 | HT1: 228 | HU1: 229 | HV1: 230 | HW1: 231 | HX1: 232 | HY1: 233 | HZ1: 234 | IA1: 235 | IB1: 236 | IC1: 237 | ID1: 238 | IE1: 239 | IF1: 240 | IG1: 241 | IH1: 242 | II1: 243 | IJ1: 244 | IK1: 245 | IL1: 246 | IM1: 247 | IN1: 248 | IO1: 249 | IP1: 250 | IQ1: 251 | IR1: 252 | IS1: 253 | IT1: 254 | IU1: 255 | IV1: 256 | IW1: 257 | IX1: 258 | IY1: 259 | IZ1: 260 | JA1: 261 | JB1: 262 | JC1: 263 | JD1: 264 | JE1: 265 | JF1: 266 | JG1: 267 | JH1: 268 | JI1: 269 | JJ1: 270 | JK1: 271 | JL1: 272 | JM1: 273 | JN1: 274 | JO1: 275 | JP1: 276 | JQ1: 277 | JR1: 278 | JS1: 279 | JT1: 280 | JU1: 281 | JV1: 282 | JW1: 283 | JX1: 284 | JY1: 285 | JZ1: 286 | KA1: 287 | KB1: 288 | KC1: 289 | KD1: 290 | KE1: 291 | KF1: 292 | KG1: 293 | KH1: 294 | KI1: 295 | KJ1: 296 | KK1: 297 | KL1: 298 | KM1: 299 | KN1: 300 | KO1: 301 | KP1: 302 | KQ1: 303 | KR1: 304 | KS1: 305 | KT1: 306 | KU1: 307 | KV1: 308 | KW1: 309 | KX1: 310 | KY1: 311 | KZ1: 312 | LA1: 313 | LB1: 314 | LC1: 315 | LD1: 316 | LE1: 317 | LF1: 318 | LG1: 319 | LH1: 320 | LI1: 321 | LJ1: 322 | LK1: 323 | LL1: 324 | LM1: 325 | LN1: 326 | LO1: 327 | LP1: 328 | LQ1: 329 | LR1: 330 | LS1: 331 | LT1: 332 | LU1: 333 | LV1: 334 | LW1: 335 | LX1: 336 | LY1: 337 | LZ1: 338 | MA1: 339 | MB1: 340 | MC1: 341 | MD1: 342 | ME1: 343 | MF1: 344 | MG1: 345 | MH1: 346 | MI1: 347 | MJ1: 348 | MK1: 349 | ML1: 350 | MM1: 351 | MN1: 352 | MO1: 353 | MP1: 354 | MQ1: 355 | MR1: 356 | MS1: 357 | MT1: 358 | MU1: 359 | MV1: 360 | MW1: 361 | MX1: 362 | MY1: 363 | MZ1: 364 | NA1: 365 | NB1: 366 | NC1: 367 | ND1: 368 | NE1: 369 | NF1: 370 | NG1: 371 | NH1: 372 | NI1: 373 | NJ1: 374 | NK1: 375 | NL1: 376 | NM1: 377 | NN1: 378 | NO1: 379 | NP1: 380 | NQ1: 381 | NR1: 382 | NS1: 383 | NT1: 384 | NU1: 385 | NV1: 386 | NW1: 387 | NX1: 388 | NY1: 389 | NZ1: 390 | OA1: 391 | OB1: 392 | OC1: 393 | OD1: 394 | OE1: 395 | OF1: 396 | OG1: 397 | OH1: 398 | OI1: 399 | OJ1: 400 | OK1: 401 | OL1: 402 | OM1: 403 | ON1: 404 | OO1: 405 | OP1: 406 | OQ1: 407 | OR1: 408 | OS1: 409 | OT1: 410 | OU1: 411 | OV1: 412 | OW1: 413 | OX1: 414 | OY1: 415 | OZ1: 416 | PA1: 417 | PB1: 418 | PC1: 419 | PD1: 420 | PE1: 421 | PF1: 422 | PG1: 423 | PH1: 424 | PI1: 425 | PJ1: 426 | PK1: 427 | PL1: 428 | PM1: 429 | PN1: 430 | PO1: 431 | PP1: 432 | PQ1: 433 | PR1: 434 | PS1: 435 | PT1: 436 | PU1: 437 | PV1: 438 | PW1: 439 | PX1: 440 | PY1: 441 | PZ1: 442 | QA1: 443 | QB1: 444 | QC1: 445 | QD1: 446 | QE1: 447 | QF1: 448 | QG1: 449 | QH1: 450 | QI1: 451 | QJ1: 452 | QK1: 453 | QL1: 454 | QM1: 455 | QN1: 456 | QO1: 457 | QP1: 458 | QQ1: 459 | QR1: 460 | QS1: 461 | QT1: 462 | QU1: 463 | QV1: 464 | QW1: 465 | QX1: 466 | QY1: 467 | QZ1: 468 | RA1: 469 | RB1: 470 | RC1: 471 | RD1: 472 | RE1: 473 | RF1: 474 | RG1: 475 | RH1: 476 | RI1: 477 | RJ1: 478 | RK1: 479 | RL1: 480 | RM1: 481 | RN1: 482 | RO1: 483 | RP1: 484 | RQ1: 485 | RR1: 486 | RS1: 487 | RT1: 488 | RU1: 489 | RV1: 490 | RW1: 491 | RX1: 492 | RY1: 493 | RZ1: 494 | SA1: 495 | SB1: 496 | SC1: 497 | SD1: 498 | SE1: 499 | SF1: 500 | SG1: 501 | SH1: 502 | SI1: 503 | SJ1: 504 | SK1: 505 | SL1: 506 | SM1: 507 | SN1: 508 | SO1: 509 | SP1: 510 | SQ1: 511 | SR1: 512 | SS1: 513 | ST1: 514 | SU1: 515 | SV1: 516 | SW1: 517 | SX1: 518 | SY1: 519 | SZ1: 520 | TA1: 521 | TB1: 522 | TC1: 523 | TD1: 524 | TE1: 525 | TF1: 526 | TG1: 527 | TH1: 528 | TI1: 529 | TJ1: 530 | TK1: 531 | TL1: 532 | TM1: 533 | TN1: 534 | TO1: 535 | TP1: 536 | TQ1: 537 | TR1: 538 | TS1: 539 | TT1: 540 | TU1: 541 | TV1: 542 | TW1: 543 | TX1: 544 | TY1: 545 | TZ1: 546 | UA1: 547 | UB1: 548 | UC1: 549 | UD1: 550 | UE1: 551 | UF1: 552 | UG1: 553 | UH1: 554 | UI1: 555 | UJ1: 556 | UK1: 557 | UL1: 558 | UM1: 559 | UN1: 560 | UO1: 561 | UP1: 562 | UQ1: 563 | UR1: 564 | US1: 565 | UT1: 566 | UU1: 567 | UV1: 568 | UW1: 569 | UX1: 570 | UY1: 571 | UZ1: 572 | VA1: 573 | VB1: 574 | VC1: 575 | VD1: 576 | VE1: 577 | VF1: 578 | VG1: 579 | VH1: 580 | VI1: 581 | VJ1: 582 | VK1: 583 | VL1: 584 | VM1: 585 | VN1: 586 | VO1: 587 | VP1: 588 | VQ1: 589 | VR1: 590 | VS1: 591 | VT1: 592 | VU1: 593 | VV1: 594 | VW1: 595 | VX1: 596 | VY1: 597 | VZ1: 598 | WA1: 599 | WB1: 600 | WC1: 601 | WD1: 602 | WE1: 603 | WF1: 604 | WG1: 605 | WH1: 606 | WI1: 607 | WJ1: 608 | WK1: 609 | WL1: 610 | WM1: 611 | WN1: 612 | WO1: 613 | WP1: 614 | WQ1: 615 | WR1: 616 | WS1: 617 | WT1: 618 | WU1: 619 | WV1: 620 | WW1: 621 | WX1: 622 | WY1: 623 | WZ1: 624 | XA1: 625 | XB1: 626 | XC1: 627 | XD1: 628 | XE1: 629 | XF1: 630 | XG1: 631 | XH1: 632 | XI1: 633 | XJ1: 634 | XK1: 635 | XL1: 636 | XM1: 637 | XN1: 638 | XO1: 639 | XP1: 640 | XQ1: 641 | XR1: 642 | XS1: 643 | XT1: 644 | XU1: 645 | XV1: 646 | XW1: 647 | XX1: 648 | XY1: 649 | XZ1: 650 | YA1: 651 | YB1: 652 | YC1: 653 | YD1: 654 | YE1: 655 | YF1: 656 | YG1: 657 | YH1: 658 | YI1: 659 | YJ1: 660 | YK1: 661 | YL1: 662 | YM1: 663 | YN1: 664 | YO1: 665 | YP1: 666 | YQ1: 667 | YR1: 668 | YS1: 669 | YT1: 670 | YU1: 671 | YV1: 672 | YW1: 673 | YX1: 674 | YY1: 675 | YZ1: 676 | ZA1: 677 | ZB1: 678 | ZC1: 679 | ZD1: 680 | ZE1: 681 | ZF1: 682 | ZG1: 683 | ZH1: 684 | ZI1: 685 | ZJ1: 686 | ZK1: 687 | ZL1: 688 | ZM1: 689 | ZN1: 690 | ZO1: 691 | ZP1: 692 | ZQ1: 693 | ZR1: 694 | ZS1: 695 | ZT1: 696 | ZU1: 697 | ZV1: 698 | ZW1: 699 | ZX1: 700 | ZY1: 701 | ZZ1: 702 | AAA1: 703 | AAB1: 704 | AAC1: 705 | AAD1: 706 | AAE1: 707 | AAF1: 708 | AAG1: 709 | AAH1: 710 | AAI1: 711 | AAJ1: 712 | AAK1: 713 | AAL1: 714 | AAM1: 715 | AAN1: 716 | AAO1: 717 | AAP1: 718 | AAQ1: 719 | AAR1: 720 | AAS1: 721 | AAT1: 722 | AAU1: 723 | AAV1: 724 | AAW1: 725 | AAX1: 726 | AAY1: 727 | AAZ1: 728 | ABA1: 729 | ABB1: 730 | ABC1: 731 | ABD1: 732 | ABE1: 733 | ABF1: 734 | ABG1: 735 | ABH1: 736 | ABI1: 737 | ABJ1: 738 | ABK1: 739 | ABL1: 740 | ABM1: 741 | ABN1: 742 | ABO1: 743 | ABP1: 744 | ABQ1: 745 | ABR1: 746 | ABS1: 747 | ABT1: 748 | ABU1: 749 | ABV1: 750 | ABW1: 751 | ABX1: 752 | ABY1: 753 | ABZ1: 754 | ACA1: 755 | ACB1: 756 | ACC1: 757 | ACD1: 758 | ACE1: 759 | ACF1: 760 | ACG1: 761 | ACH1: 762 | ACI1: 763 | ACJ1: 764 | ACK1: 765 | ACL1: 766 | ACM1: 767 | ACN1: 768 | ACO1: 769 | ACP1: 770 | ACQ1: 771 | ACR1: 772 | ACS1: 773 | ACT1: 774 | ACU1: 775 | ACV1: 776 | ACW1: 777 | ACX1: 778 | ACY1: 779 | ACZ1: 780 | ADA1: 781 | ADB1: 782 | ADC1: 783 | ADD1: 784 | ADE1: 785 | ADF1: 786 | ADG1: 787 | ADH1: 788 | ADI1: 789 | ADJ1: 790 | ADK1: 791 | ADL1: 792 | ADM1: 793 | ADN1: 794 | ADO1: 795 | ADP1: 796 | ADQ1: 797 | ADR1: 798 | ADS1: 799 | ADT1: 800 | ADU1: 801 | ADV1: 802 | ADW1: 803 | ADX1: 804 | ADY1: 805 | ADZ1: 806 | AEA1: 807 | AEB1: 808 | AEC1: 809 | AED1: 810 | AEE1: 811 | AEF1: 812 | AEG1: 813 | AEH1: 814 | AEI1: 815 | AEJ1: 816 | AEK1: 817 | AEL1: 818 | AEM1: 819 | AEN1: 820 | AEO1: 821 | AEP1: 822 | AEQ1: 823 | AER1: 824 | AES1: 825 | AET1: 826 | AEU1: 827 | AEV1: 828 | AEW1: 829 | AEX1: 830 | AEY1: 831 | AEZ1: 832 | AFA1: 833 | AFB1: 834 | AFC1: 835 | AFD1: 836 | AFE1: 837 | AFF1: 838 | AFG1: 839 | AFH1: 840 | AFI1: 841 | AFJ1: 842 | AFK1: 843 | AFL1: 844 | AFM1: 845 | AFN1: 846 | AFO1: 847 | AFP1: 848 | AFQ1: 849 | AFR1: 850 | AFS1: 851 | AFT1: 852 | AFU1: 853 | AFV1: 854 | AFW1: 855 | AFX1: 856 | AFY1: 857 | AFZ1: 858 | AGA1: 859 | AGB1: 860 | AGC1: 861 | AGD1: 862 | AGE1: 863 | AGF1: 864 | AGG1: 865 | AGH1: 866 | AGI1: 867 | AGJ1: 868 | AGK1: 869 | AGL1: 870 | AGM1: 871 | AGN1: 872 | AGO1: 873 | AGP1: 874 | AGQ1: 875 | AGR1: 876 | AGS1: 877 | AGT1: 878 | AGU1: 879 | AGV1: 880 | AGW1: 881 | AGX1: 882 | AGY1: 883 | AGZ1: 884 | AHA1: 885 | AHB1: 886 | AHC1: 887 | AHD1: 888 | AHE1: 889 | AHF1: 890 | AHG1: 891 | AHH1: 892 | AHI1: 893 | AHJ1: 894 | AHK1: 895 | AHL1: 896 | AHM1: 897 | AHN1: 898 | AHO1: 899 | AHP1: 900 | AHQ1: 901 | AHR1: 902 | AHS1: 903 | AHT1: 904 | AHU1: 905 | AHV1: 906 | AHW1: 907 | AHX1: 908 | AHY1: 909 | AHZ1: 910 | AIA1: 911 | AIB1: 912 | AIC1: 913 | AID1: 914 | AIE1: 915 | AIF1: 916 | AIG1: 917 | AIH1: 918 | AII1: 919 | AIJ1: 920 | AIK1: 921 | AIL1: 922 | AIM1: 923 | AIN1: 924 | AIO1: 925 | AIP1: 926 | AIQ1: 927 | AIR1: 928 | AIS1: 929 | AIT1: 930 | AIU1: 931 | AIV1: 932 | AIW1: 933 | AIX1: 934 | AIY1: 935 | AIZ1: 936 | AJA1: 937 | AJB1: 938 | AJC1: 939 | AJD1: 940 | AJE1: 941 | AJF1: 942 | AJG1: 943 | AJH1: 944 | AJI1: 945 | AJJ1: 946 | AJK1: 947 | AJL1: 948 | AJM1: 949 | AJN1: 950 | AJO1: 951 | AJP1: 952 | AJQ1: 953 | AJR1: 954 | AJS1: 955 | AJT1: 956 | AJU1: 957 | AJV1: 958 | AJW1: 959 | AJX1: 960 | AJY1: 961 | AJZ1: 962 | AKA1: 963 | AKB1: 964 | AKC1: 965 | AKD1: 966 | AKE1: 967 | AKF1: 968 | AKG1: 969 | AKH1: 970 | AKI1: 971 | AKJ1: 972 | AKK1: 973 | AKL1: 974 | AKM1: 975 | AKN1: 976 | AKO1: 977 | AKP1: 978 | AKQ1: 979 | AKR1: 980 | AKS1: 981 | AKT1: 982 | AKU1: 983 | AKV1: 984 | AKW1: 985 | AKX1: 986 | AKY1: 987 | AKZ1: 988 | ALA1: 989 | ALB1: 990 | ALC1: 991 | ALD1: 992 | ALE1: 993 | ALF1: 994 | ALG1: 995 | ALH1: 996 | ALI1: 997 | ALJ1: 998 | ALK1: 999 | ALL1: 1000 | ALM1: 1001 | ALN1: 1002 | ALO1: 1003 | ALP1: 1004 | ALQ1: 1005
F2: Research | I2: max capacity | J2: =MAX('Division Preferences'!B5:ZZ5) -> 6 | L2: =COUNTIFS(H$4:H$1000,">0") -> 4 | M2: # of matches
A3: # | B3: Grad. | C3: Pref. | D3: Check | E3: Pos. | F3: Rank | G3: RR Inv | H3: Rel. Rank | I3: Proposes to | J3: Complete Ranking | L3: List of Matches
A4: 1 | B4: =IF(A4<=NGrad,'Graduate Preferences'!A5,"") -> Alvin | C4: =IF(A4<=NGrad,Process!A4,"") -> 1 | D4: =IF(A4<=NGrad,COUNTIFS('Graduate Preferences'!B5:ZZ5,C4),"") -> 1 | E4: =IF(A4<=NGrad,IF(D4=0,0,MATCH(C4,'Graduate Preferences'!B5:ZZ5,0)),"") -> 1 | F4: =IF(AND(J4<>"-",J4>0,I4=F$2),J4,"") ->  | G4: =IF(F4="","",RANK(F4,F$4:F$1000)) ->  | H4: =IF(F4="","",MAX(G$4:G$1000)-G4+1) ->  | I4: Finance | J4: 5 | L4: =IF(MAX(H$4:H$1000)>=A4,MATCH(A4,H$4:H$1000,0),"") -> 6
A5: 2 | B5: =IF(A5<=NGrad,'Graduate Preferences'!A6,"") -> Bob | C5: =IF(A5<=NGrad,Process!A5,"") -> 1 | D5: =IF(A5<=NGrad,COUNTIFS('Graduate Preferences'!B6:ZZ6,C5),"") -> 1 | E5: =IF(A5<=NGrad,IF(D5=0,0,MATCH(C5,'Graduate Preferences'!B6:ZZ6,0)),"") -> 4 | F5: =IF(AND(J5<>"-",J5>0,I5=F$2),J5,"") ->  | G5: =IF(F5="","",RANK(F5,F$4:F$1000)) ->  | H5: =IF(F5="","",MAX(G$4:G$1000)-G5+1) ->  | I5: Jedi | J5: 6 | L5: =IF(MAX(H$4:H$1000)>=A5,MATCH(A5,H$4:H$1000,0),"") -> 7
A6: 3 | B6: =IF(A6<=NGrad,'Graduate Preferences'!A7,"") -> Chelsea | C6: =IF(A6<=NGrad,Process!A6,"") -> 2 | D6: =IF(A6<=NGrad,COUNTIFS('Graduate Preferences'!B7:ZZ7,C6),"") -> 1 | E6: =IF(A6<=NGrad,IF(D6=0,0,MATCH(C6,'Graduate Preferences'!B7:ZZ7,0)),"") -> 1 | I6: Finance | J6: 22 | L6: 16
A7: 4 | B7: =IF(A7<=NGrad,'Graduate Preferences'!A8,"") -> Daniel | C7: =IF(A7<=NGrad,Process!A7,"") -> 1 | D7: =IF(A7<=NGrad,COUNTIFS('Graduate Preferences'!B8:ZZ8,C7),"") -> 1 | E7: =IF(A7<=NGrad,IF(D7=0,0,MATCH(C7,'Graduate Preferences'!B8:ZZ8,0)),"") -> 5 | I7: Economics | J7: 5 | L7: 12
A8: 5 | B8: =IF(A8<=NGrad,'Graduate Preferences'!A9,"") -> Emily | C8: =IF(A8<=NGrad,Process!A8,"") -> 2 | D8: =IF(A8<=NGrad,COUNTIFS('Graduate Preferences'!B9:ZZ9,C8),"") -> 1 | E8: =IF(A8<=NGrad,IF(D8=0,0,MATCH(C8,'Graduate Preferences'!B9:ZZ9,0)),"") -> 5 | I8: Economics | J8: 18
A9: 6 | B9: =IF(A9<=NGrad,'Graduate Preferences'!A10,"") -> Frank | C9: =IF(A9<=NGrad,Process!A9,"") -> 3 | D9: =IF(A9<=NGrad,COUNTIFS('Graduate Preferences'!B10:ZZ10,C9),"") -> 1 | E9: =IF(A9<=NGrad,IF(D9=0,0,MATCH(C9,'Graduate Preferences'!B10:ZZ10,0)),"") -> 7 | F9: 6 | G9: 4 | H9: 1 | I9: Research | J9: 6
A10: 7 | B10: =IF(A10<=NGrad,'Graduate Preferences'!A11,"") -> Geraldine | C10: =IF(A10<=NGrad,Process!A10,"") -> 1 | D10: =IF(A10<=NGrad,COUNTIFS('Graduate Preferences'!B11:ZZ11,C10),"") -> 1 | E10: =IF(A10<=NGrad,IF(D10=0,0,MATCH(C10,'Graduate Preferences'!B11:ZZ11,0)),"") -> 7 | F10: 11 | G10: 3 | H10: 2 | I10: Research | J10: 11
A11: 8 | B11: =IF(A11<=NGrad,'Graduate Preferences'!A12,"") -> Haley | C11: =IF(A11<=NGrad,Process!A11,"") -> 1 | D11: =IF(A11<=NGrad,COUNTIFS('Graduate Preferences'!B12:ZZ12,C11),"") -> 1 | E11: =IF(A11<=NGrad,IF(D11=0,0,MATCH(C11,'Graduate Preferences'!B12:ZZ12,0)),"") -> 3 | I11: Law | J11: 24
A12: 9 | B12: =IF(A12<=NGrad,'Graduate Preferences'!A13,"") -> Ian | C12: =IF(A12<=NGrad,Process!A12,"") -> 2 | D12: =IF(A12<=NGrad,COUNTIFS('Graduate Preferences'!B13:ZZ13,C12),"") -> 1 | E12: =IF(A12<=NGrad,IF(D12=0,0,MATCH(C12,'Graduate Preferences'!B13:ZZ13,0)),"") -> 2 | I12: Marketing | J12: 4
A13: 10 | B13: =IF(A13<=NGrad,'Graduate Preferences'!A14,"") -> Jeffrey | C13: =IF(A13<=NGrad,Process!A13,"") -> 1 | D13: =IF(A13<=NGrad,COUNTIFS('Graduate Preferences'!B14:ZZ14,C13),"") -> 1 | E13: =IF(A13<=NGrad,IF(D13=0,0,MATCH(C13,'Graduate Preferences'!B14:ZZ14,0)),"") -> 1 | I13: Finance | J13: 24
A14: 11 | B14: =IF(A14<=NGrad,'Graduate Preferences'!A15,"") -> Kevin | C14: =IF(A14<=NGrad,Process!A14,"") -> 1 | D14: =IF(A14<=NGrad,COUNTIFS('Graduate Preferences'!B15:ZZ15,C14),"") -> 1 | E14: =IF(A14<=NGrad,IF(D14=0,0,MATCH(C14,'Graduate Preferences'!B15:ZZ15,0)),"") -> 5 | I14: Economics | J14: 10
A15: 12 | B15: =IF(A15<=NGrad,'Graduate Preferences'!A16,"") -> Leia | C15: =IF(A15<=NGrad,Process!A15,"") -> 1 | D15: =IF(A15<=NGrad,COUNTIFS('Graduate Preferences'!B16:ZZ16,C15),"") -> 1 | E15: =IF(A15<=NGrad,IF(D15=0,0,MATCH(C15,'Graduate Preferences'!B16:ZZ16,0)),"") -> 7 | F15: 21 | G15: 1 | H15: 4 | I15: Research | J15: 21
A16: 13 | B16: =IF(A16<=NGrad,'Graduate Preferences'!A17,"") -> Macey | C16: =IF(A16<=NGrad,Process!A16,"") -> 1 | D16: =IF(A16<=NGrad,COUNTIFS('Graduate Preferences'!B17:ZZ17,C16),"") -> 1 | E16: =IF(A16<=NGrad,IF(D16=0,0,MATCH(C16,'Graduate Preferences'!B17:ZZ17,0)),"") -> 6 | I16: Budget | J16: 4
A17: 14 | B17: =IF(A17<=NGrad,'Graduate Preferences'!A18,"") -> Natalie | C17: =IF(A17<=NGrad,Process!A17,"") -> 1 | D17: =IF(A17<=NGrad,COUNTIFS('Graduate Preferences'!B18:ZZ18,C17),"") -> 1 | E17: =IF(A17<=NGrad,IF(D17=0,0,MATCH(C17,'Graduate Preferences'!B18:ZZ18,0)),"") -> 6 | I17: Budget | J17: 17
A18: 15 | B18: =IF(A18<=NGrad,'Graduate Preferences'!A19,"") -> Oliver | C18: =IF(A18<=NGrad,Process!A18,"") -> 1 | D18: =IF(A18<=NGrad,COUNTIFS('Graduate Preferences'!B19:ZZ19,C18),"") -> 1 | E18: =IF(A18<=NGrad,IF(D18=0,0,MATCH(C18,'Graduate Preferences'!B19:ZZ19,0)),"") -> 6 | F18: =IF(AND(J18<>"-",J18>0,I18=F$2),J18,"") ->  | G18: =IF(F18="","",RANK(F18,F$4:F$1000)) ->  | H18: =IF(F18="","",MAX(G$4:G$1000)-G18+1) ->  | I18: Budget | J18: 7
A19: 16 | B19: =IF(A19<=NGrad,'Graduate Preferences'!A20,"") -> Phoebe | C19: =IF(A19<=NGrad,Process!A19,"") -> 2 | D19: =IF(A19<=NGrad,COUNTIFS('Graduate Preferences'!B20:ZZ20,C19),"") -> 1 | E19: =IF(A19<=NGrad,IF(D19=0,0,MATCH(C19,'Graduate Preferences'!B20:ZZ20,0)),"") -> 7 | F19: =IF(AND(J19<>"-",J19>0,I19=F$2),J19,"") -> 13 | G19: 2 | H19: =IF(F19="","",MAX(G$4:G$1000)-G19+1) -> 3 | I19: Research | J19: 13
A20: 17 | B20: =IF(A20<=NGrad,'Graduate Preferences'!A21,"") -> Quentin | C20: =IF(A20<=NGrad,Process!A20,"") -> 1 | D20: =IF(A20<=NGrad,COUNTIFS('Graduate Preferences'!B21:ZZ21,C20),"") -> 1 | E20: =IF(A20<=NGrad,IF(D20=0,0,MATCH(C20,'Graduate Preferences'!B21:ZZ21,0)),"") -> 2 | F20: =IF(AND(J20<>"-",J20>0,I20=F$2),J20,"") ->  | G20: =IF(F20="","",RANK(F20,F$4:F$1000)) ->  | H20: =IF(F20="","",MAX(G$4:G$1000)-G20+1) ->  | I20: Marketing | J20: 6
A21: 18 | B21: =IF(A21<=NGrad,'Graduate Preferences'!A22,"") -> Rachael | C21: =IF(A21<=NGrad,Process!A21,"") -> 2 | D21: =IF(A21<=NGrad,COUNTIFS('Graduate Preferences'!B22:ZZ22,C21),"") -> 1 | E21: =IF(A21<=NGrad,IF(D21=0,0,MATCH(C21,'Graduate Preferences'!B22:ZZ22,0)),"") -> 1 | F21: =IF(AND(J21<>"-",J21>0,I21=F$2),J21,"") ->  | H21: =IF(F21="","",MAX(G$4:G$1000)-G21+1) ->  | I21: Finance | J21: 4
A22: 19 | B22: =IF(A22<=NGrad,'Graduate Preferences'!A23,"") -> Stuart | C22: =IF(A22<=NGrad,Process!A22,"") -> 2 | D22: =IF(A22<=NGrad,COUNTIFS('Graduate Preferences'!B23:ZZ23,C22),"") -> 1 | E22: =IF(A22<=NGrad,IF(D22=0,0,MATCH(C22,'Graduate Preferences'!B23:ZZ23,0)),"") -> 1 | I22: Finance | J22: 2
A23: 20 | B23: =IF(A23<=NGrad,'Graduate Preferences'!A24,"") -> Theodore | C23: =IF(A23<=NGrad,Process!A23,"") -> 2 | D23: =IF(A23<=NGrad,COUNTIFS('Graduate Preferences'!B24:ZZ24,C23),"") -> 1 | E23: =IF(A23<=NGrad,IF(D23=0,0,MATCH(C23,'Graduate Preferences'!B24:ZZ24,0)),"") -> 5 | F23: =IF(AND(J23<>"-",J23>0,I23=F$2),J23,"") ->  | G23: =IF(F23="","",RANK(F23,F$4:F$1000)) ->  | H23: =IF(F23="","",MAX(G$4:G$1000)-G23+1) ->  | I23: Economics | J23: 1
A24: 21 | B24: =IF(A24<=NGrad,'Graduate Preferences'!A25,"") -> Ursula | C24: =IF(A24<=NGrad,Process!A24,"") -> 1 | D24: =IF(A24<=NGrad,COUNTIFS('Graduate Preferences'!B25:ZZ25,C24),"") -> 1 | E24: =IF(A24<=NGrad,IF(D24=0,0,MATCH(C24,'Graduate Preferences'!B25:ZZ25,0)),"") -> 2 | F24: =IF(AND(J24<>"-",J24>0,I24=F$2),J24,"") ->  | H24: =IF(F24="","",MAX(G$4:G$1000)-G24+1) ->  | I24: Marketing | J24: 8
A25: 22 | B25: =IF(A25<=NGrad,'Graduate Preferences'!A26,"") -> Victor | C25: =IF(A25<=NGrad,Process!A25,"") -> 3 | D25: =IF(A25<=NGrad,COUNTIFS('Graduate Preferences'!B26:ZZ26,C25),"") -> 1 | E25: =IF(A25<=NGrad,IF(D25=0,0,MATCH(C25,'Graduate Preferences'!B26:ZZ26,0)),"") -> 3 | I25: Law | J25: 1
A26: 23 | B26: =IF(A26<=NGrad,'Graduate Preferences'!A27,"") -> Wendy | C26: =IF(A26<=NGrad,Process!A26,"") -> 1 | D26: =IF(A26<=NGrad,COUNTIFS('Graduate Preferences'!B27:ZZ27,C26),"") -> 1 | E26: =IF(A26<=NGrad,IF(D26=0,0,MATCH(C26,'Graduate Preferences'!B27:ZZ27,0)),"") -> 5 | F26: =IF(AND(J26<>"-",J26>0,I26=F$2),J26,"") ->  | G26: =IF(F26="","",RANK(F26,F$4:F$1000)) ->  | H26: =IF(F26="","",MAX(G$4:G$1000)-G26+1) ->  | I26: Economics | J26: 6
A27: 24 | B27: =IF(A27<=NGrad,'Graduate Preferences'!A28,"") -> Xavier | C27: =IF(A27<=NGrad,Process!A27,"") -> 1 | D27: =IF(A27<=NGrad,COUNTIFS('Graduate Preferences'!B28:ZZ28,C27),"") -> 1 | E27: =IF(A27<=NGrad,IF(D27=0,0,MATCH(C27,'Graduate Preferences'!B28:ZZ28,0)),"") -> 3 | F27: =IF(AND(J27<>"-",J27>0,I27=F$2),J27,"") ->  | H27: =IF(F27="","",MAX(G$4:G$1000)-G27+1) ->  | I27: Law | J27: 7
A28: 25 | B28: =IF(A28<=NGrad,'Graduate Preferences'!A29,"") -> Yasmin | C28: =IF(A28<=NGrad,Process!A28,"") -> 2 | D28: =IF(A28<=NGrad,COUNTIFS('Graduate Preferences'!B29:ZZ29,C28),"") -> 1 | E28: =IF(A28<=NGrad,IF(D28=0,0,MATCH(C28,'Graduate Preferences'!B29:ZZ29,0)),"") -> 1 | I28: Finance | J28: 9
A29: 26 | B29: =IF(A29<=NGrad,'Graduate Preferences'!A30,"") -> Zelda | C29: =IF(A29<=NGrad,Process!A29,"") -> 2 | D29: =IF(A29<=NGrad,COUNTIFS('Graduate Preferences'!B30:ZZ30,C29),"") -> 1 | E29: =IF(A29<=NGrad,IF(D29=0,0,MATCH(C29,'Graduate Preferences'!B30:ZZ30,0)),"") -> 6 | I29: Budget | J29: 20
A30: 27 | B30: =IF(A30<=NGrad,'Graduate Preferences'!A31,"") ->  | C30: =IF(A30<=NGrad,Process!A30,"") ->  | D30: =IF(A30<=NGrad,COUNTIFS('Graduate Preferences'!B31:ZZ31,C30),"") ->  | E30: =IF(A30<=NGrad,IF(D30=0,0,MATCH(C30,'Graduate Preferences'!B31:ZZ31,0)),"") ->  | I30: LDP | J30: 5
A31: 28 | B31: =IF(A31<=NGrad,'Graduate Preferences'!A32,"") ->  | C31: =IF(A31<=NGrad,Process!A31,"") ->  | D31: =IF(A31<=NGrad,COUNTIFS('Graduate Preferences'!B32:ZZ32,C31),"") ->  | E31: =IF(A31<=NGrad,IF(D31=0,0,MATCH(C31,'Graduate Preferences'!B32:ZZ32,0)),"") ->  | I31: MCD | J31: 10
A32: 29 | B32: =IF(A32<=NGrad,'Graduate Preferences'!A33,"") ->  | C32: =IF(A32<=NGrad,Process!A32,"") ->  | D32: =IF(A32<=NGrad,COUNTIFS('Graduate Preferences'!B33:ZZ33,C32),"") ->  | E32: =IF(A32<=NGrad,IF(D32=0,0,MATCH(C32,'Graduate Preferences'!B33:ZZ33,0)),"") ->  | F32: =IF(AND(J32<>"-",J32>0,I32=F$2),J32,"") ->  | G32: =IF(F32="","",RANK(F32,F$4:F$1000)) ->  | H32: =IF(F32="","",MAX(G$4:G$1000)-G32+1) ->  | I32: CITD | J32: 7
A33: 30 | B33: =IF(A33<=NGrad,'Graduate Preferences'!A34,"") ->  | C33: =IF(A33<=NGrad,Process!A33,"") ->  | D33: =IF(A33<=NGrad,COUNTIFS('Graduate Preferences'!B34:ZZ34,C33),"") ->  | E33: =IF(A33<=NGrad,IF(D33=0,0,MATCH(C33,'Graduate Preferences'!B34:ZZ34,0)),"") ->  | F33: =IF(AND(J33<>"-",J33>0,I33=F$2),J33,"") ->  | H33: =IF(F33="","",MAX(G$4:G$1000)-G33+1) ->  | I33: - | J33: -
A34: 31 | B34: =IF(A34<=NGrad,'Graduate Preferences'!A35,"") ->  | C34: =IF(A34<=NGrad,Process!A34,"") ->  | D34: =IF(A34<=NGrad,COUNTIFS('Graduate Preferences'!B35:ZZ35,C34),"") ->  | E34: =IF(A34<=NGrad,IF(D34=0,0,MATCH(C34,'Graduate Preferences'!B35:ZZ35,0)),"") ->  | I34: - | J34: -
A35: 32 | B35: =IF(A35<=NGrad,'Graduate Preferences'!A36,"") ->  | C35: =IF(A35<=NGrad,Process!A35,"") ->  | D35: =IF(A35<=NGrad,COUNTIFS('Graduate Preferences'!B36:ZZ36,C35),"") ->  | E35: =IF(A35<=NGrad,IF(D35=0,0,MATCH(C35,'Graduate Preferences'!B36:ZZ36,0)),"") ->  | I35: SBTD | J35: 2
A36: 33 | B36: =IF(A36<=NGrad,'Graduate Preferences'!A37,"") ->  | C36: =IF(A36<=NGrad,Process!A36,"") ->  | D36: =IF(A36<=NGrad,COUNTIFS('Graduate Preferences'!B37:ZZ37,C36),"") ->  | E36: =IF(A36<=NGrad,IF(D36=0,0,MATCH(C36,'Graduate Preferences'!B37:ZZ37,0)),"") ->  | I36: BPD | J36: 1
A37: 34 | B37: =IF(A37<=NGrad,'Graduate Preferences'!A38,"") ->  | C37: =IF(A37<=NGrad,Process!A37,"") ->  | D37: =IF(A37<=NGrad,COUNTIFS('Graduate Preferences'!B38:ZZ38,C37),"") ->  | E37: =IF(A37<=NGrad,IF(D37=0,0,MATCH(C37,'Graduate Preferences'!B38:ZZ38,0)),"") ->  | I37: FSSN | J37: 12
A38: 35 | B38: =IF(A38<=NGrad,'Graduate Preferences'!A39,"") ->  | C38: =IF(A38<=NGrad,Process!A38,"") ->  | D38: =IF(A38<=NGrad,COUNTIFS('Graduate Preferences'!B39:ZZ39,C38),"") ->  | E38: =IF(A38<=NGrad,IF(D38=0,0,MATCH(C38,'Graduate Preferences'!B39:ZZ39,0)),"") ->  | I38: IMTD | J38: 2
A39: 36 | B39: =IF(A39<=NGrad,'Graduate Preferences'!A40,"") ->  | C39: =IF(A39<=NGrad,Process!A39,"") ->  | D39: =IF(A39<=NGrad,COUNTIFS('Graduate Preferences'!B40:ZZ40,C39),"") ->  | E39: =IF(A39<=NGrad,IF(D39=0,0,MATCH(C39,'Graduate Preferences'!B40:ZZ40,0)),"") ->  | I39: IIED | J39: 16
A40: 37 | B40: =IF(A40<=NGrad,'Graduate Preferences'!A41,"") ->  | C40: =IF(A40<=NGrad,Process!A40,"") ->  | D40: =IF(A40<=NGrad,COUNTIFS('Graduate Preferences'!B41:ZZ41,C40),"") ->  | E40: =IF(A40<=NGrad,IF(D40=0,0,MATCH(C40,'Graduate Preferences'!B41:ZZ41,0)),"") -> 
A41: 38 | B41: =IF(A41<=NGrad,'Graduate Preferences'!A42,"") ->  | C41: =IF(A41<=NGrad,Process!A41,"") ->  | D41: =IF(A41<=NGrad,COUNTIFS('Graduate Preferences'!B42:ZZ42,C41),"") ->  | E41: =IF(A41<=NGrad,IF(D41=0,0,MATCH(C41,'Graduate Preferences'!B42:ZZ42,0)),"") -> 
A42: 39 | B42: =IF(A42<=NGrad,'Graduate Preferences'!A43,"") ->  | C42: =IF(A42<=NGrad,Process!A42,"") ->  | D42: =IF(A42<=NGrad,COUNTIFS('Graduate Preferences'!B43:ZZ43,C42),"") ->  | E42: =IF(A42<=NGrad,IF(D42=0,0,MATCH(C42,'Graduate Preferences'!B43:ZZ43,0)),"") -> 
A43: 40 | B43: =IF(A43<=NGrad,'Graduate Preferences'!A44,"") ->  | C43: =IF(A43<=NGrad,Process!A43,"") ->  | D43: =IF(A43<=NGrad,COUNTIFS('Graduate Preferences'!B44:ZZ44,C43),"") ->  | E43: =IF(A43<=NGrad,IF(D43=0,0,MATCH(C43,'Graduate Preferences'!B44:ZZ44,0)),"") -> 
A44: 41 | B44: =IF(A44<=NGrad,'Graduate Preferences'!A45,"") ->  | C44: =IF(A44<=NGrad,Process!A44,"") ->  | D44: =IF(A44<=NGrad,COUNTIFS('Graduate Preferences'!B45:ZZ45,C44),"") ->  | E44: =IF(A44<=NGrad,IF(D44=0,0,MATCH(C44,'Graduate Preferences'!B45:ZZ45,0)),"") -> 
A45: 42 | B45: =IF(A45<=NGrad,'Graduate Preferences'!A46,"") ->  | C45: =IF(A45<=NGrad,Process!A45,"") ->  | D45: =IF(A45<=NGrad,COUNTIFS('Graduate Preferences'!B46:ZZ46,C45),"") ->  | E45: =IF(A45<=NGrad,IF(D45=0,0,MATCH(C45,'Graduate Preferences'!B46:ZZ46,0)),"") -> 
A46: 43 | B46: =IF(A46<=NGrad,'Graduate Preferences'!A47,"") ->  | C46: =IF(A46<=NGrad,Process!A46,"") ->  | D46: =IF(A46<=NGrad,COUNTIFS('Graduate Preferences'!B47:ZZ47,C46),"") ->  | E46: =IF(A46<=NGrad,IF(D46=0,0,MATCH(C46,'Graduate Preferences'!B47:ZZ47,0)),"") -> 
A47: 44 | B47: =IF(A47<=NGrad,'Graduate Preferences'!A48,"") ->  | C47: =IF(A47<=NGrad,Process!A47,"") ->  | D47: =IF(A47<=NGrad,COUNTIFS('Graduate Preferences'!B48:ZZ48,C47),"") ->  | E47: =IF(A47<=NGrad,IF(D47=0,0,MATCH(C47,'Graduate Preferences'!B48:ZZ48,0)),"") -> 
A48: 45 | B48: =IF(A48<=NGrad,'Graduate Preferences'!A49,"") ->  | C48: =IF(A48<=NGrad,Process!A48,"") ->  | D48: =IF(A48<=NGrad,COUNTIFS('Graduate Preferences'!B49:ZZ49,C48),"") ->  | E48: =IF(A48<=NGrad,IF(D48=0,0,MATCH(C48,'Graduate Preferences'!B49:ZZ49,0)),"") -> 
A49: 46 | B49: =IF(A49<=NGrad,'Graduate Preferences'!A50,"") ->  | C49: =IF(A49<=NGrad,Process!A49,"") ->  | D49: =IF(A49<=NGrad,COUNTIFS('Graduate Preferences'!B50:ZZ50,C49),"") ->  | E49: =IF(A49<=NGrad,IF(D49=0,0,MATCH(C49,'Graduate Preferences'!B50:ZZ50,0)),"") -> 
A50: 47 | B50: =IF(A50<=NGrad,'Graduate Preferences'!A51,"") ->  | C50: =IF(A50<=NGrad,Process!A50,"") ->  | D50: =IF(A50<=NGrad,COUNTIFS('Graduate Preferences'!B51:ZZ51,C50),"") ->  | E50: =IF(A50<=NGrad,IF(D50=0,0,MATCH(C50,'Graduate Preferences'!B51:ZZ51,0)),"") -> 
A51: 48 | B51: =IF(A51<=NGrad,'Graduate Preferences'!A52,"") ->  | C51: =IF(A51<=NGrad,Process!A51,"") ->  | D51: =IF(A51<=NGrad,COUNTIFS('Graduate Preferences'!B52:ZZ52,C51),"") ->  | E51: =IF(A51<=NGrad,IF(D51=0,0,MATCH(C51,'Graduate Preferences'!B52:ZZ52,0)),"") -> 
A52: 49 | B52: =IF(A52<=NGrad,'Graduate Preferences'!A53,"") ->  | C52: =IF(A52<=NGrad,Process!A52,"") ->  | D52: =IF(A52<=NGrad,COUNTIFS('Graduate Preferences'!B53:ZZ53,C52),"") ->  | E52: =IF(A52<=NGrad,IF(D52=0,0,MATCH(C52,'Graduate Preferences'!B53:ZZ53,0)),"") -> 
A53: 50 | B53: =IF(A53<=NGrad,'Graduate Preferences'!A54,"") ->  | C53: =IF(A53<=NGrad,Process!A53,"") ->  | D53: =IF(A53<=NGrad,COUNTIFS('Graduate Preferences'!B54:ZZ54,C53),"") ->  | E53: =IF(A53<=NGrad,IF(D53=0,0,MATCH(C53,'Graduate Preferences'!B54:ZZ54,0)),"") -> 
A54: 51 | B54: =IF(A54<=NGrad,'Graduate Preferences'!A55,"") ->  | C54: =IF(A54<=NGrad,Process!A54,"") ->  | D54: =IF(A54<=NGrad,COUNTIFS('Graduate Preferences'!B55:ZZ55,C54),"") ->  | E54: =IF(A54<=NGrad,IF(D54=0,0,MATCH(C54,'Graduate Preferences'!B55:ZZ55,0)),"") -> 
A55: 52 | B55: =IF(A55<=NGrad,'Graduate Preferences'!A56,"") ->  | C55: =IF(A55<=NGrad,Process!A55,"") ->  | D55: =IF(A55<=NGrad,COUNTIFS('Graduate Preferences'!B56:ZZ56,C55),"") ->  | E55: =IF(A55<=NGrad,IF(D55=0,0,MATCH(C55,'Graduate Preferences'!B56:ZZ56,0)),"") -> 
A56: 53 | B56: =IF(A56<=NGrad,'Graduate Preferences'!A57,"") ->  | C56: =IF(A56<=NGrad,Process!A56,"") ->  | D56: =IF(A56<=NGrad,COUNTIFS('Graduate Preferences'!B57:ZZ57,C56),"") ->  | E56: =IF(A56<=NGrad,IF(D56=0,0,MATCH(C56,'Graduate Preferences'!B57:ZZ57,0)),"") -> 
A57: 54 | B57: =IF(A57<=NGrad,'Graduate Preferences'!A58,"") ->  | C57: =IF(A57<=NGrad,Process!A57,"") ->  | D57: =IF(A57<=NGrad,COUNTIFS('Graduate Preferences'!B58:ZZ58,C57),"") ->  | E57: =IF(A57<=NGrad,IF(D57=0,0,MATCH(C57,'Graduate Preferences'!B58:ZZ58,0)),"") -> 
A58: 55 | B58: =IF(A58<=NGrad,'Graduate Preferences'!A59,"") ->  | C58: =IF(A58<=NGrad,Process!A58,"") ->  | D58: =IF(A58<=NGrad,COUNTIFS('Graduate Preferences'!B59:ZZ59,C58),"") ->  | E58: =IF(A58<=NGrad,IF(D58=0,0,MATCH(C58,'Graduate Preferences'!B59:ZZ59,0)),"") -> 
A59: 56 | B59: =IF(A59<=NGrad,'Graduate Preferences'!A60,"") ->  | C59: =IF(A59<=NGrad,Process!A59,"") ->  | D59: =IF(A59<=NGrad,COUNTIFS('Graduate Preferences'!B60:ZZ60,C59),"") ->  | E59: =IF(A59<=NGrad,IF(D59=0,0,MATCH(C59,'Graduate Preferences'!B60:ZZ60,0)),"") -> 
A60: 57 | B60: =IF(A60<=NGrad,'Graduate Preferences'!A61,"") ->  | C60: =IF(A60<=NGrad,Process!A60,"") ->  | D60: =IF(A60<=NGrad,COUNTIFS('Graduate Preferences'!B61:ZZ61,C60),"") ->  | E60: =IF(A60<=NGrad,IF(D60=0,0,MATCH(C60,'Graduate Preferences'!B61:ZZ61,0)),"") -> 
A61: 58 | B61: =IF(A61<=NGrad,'Graduate Preferences'!A62,"") ->  | C61: =IF(A61<=NGrad,Process!A61,"") ->  | D61: =IF(A61<=NGrad,COUNTIFS('Graduate Preferences'!B62:ZZ62,C61),"") ->  | E61: =IF(A61<=NGrad,IF(D61=0,0,MATCH(C61,'Graduate Preferences'!B62:ZZ62,0)),"") -> 
A62: 59 | B62: =IF(A62<=NGrad,'Graduate Preferences'!A63,"") ->  | C62: =IF(A62<=NGrad,Process!A62,"") ->  | D62: =IF(A62<=NGrad,COUNTIFS('Graduate Preferences'!B63:ZZ63,C62),"") ->  | E62: =IF(A62<=NGrad,IF(D62=0,0,MATCH(C62,'Graduate Preferences'!B63:ZZ63,0)),"") -> 
A63: 60 | B63: =IF(A63<=NGrad,'Graduate Preferences'!A64,"") ->  | C63: =IF(A63<=NGrad,Process!A63,"") ->  | D63: =IF(A63<=NGrad,COUNTIFS('Graduate Preferences'!B64:ZZ64,C63),"") ->  | E63: =IF(A63<=NGrad,IF(D63=0,0,MATCH(C63,'Graduate Preferences'!B64:ZZ64,0)),"") -> 
A64: 61 | B64: =IF(A64<=NGrad,'Graduate Preferences'!A65,"") ->  | C64: =IF(A64<=NGrad,Process!A64,"") ->  | D64: =IF(A64<=NGrad,COUNTIFS('Graduate Preferences'!B65:ZZ65,C64),"") ->  | E64: =IF(A64<=NGrad,IF(D64=0,0,MATCH(C64,'Graduate Preferences'!B65:ZZ65,0)),"") -> 
A65: 62 | B65: =IF(A65<=NGrad,'Graduate Preferences'!A66,"") ->  | C65: =IF(A65<=NGrad,Process!A65,"") ->  | D65: =IF(A65<=NGrad,COUNTIFS('Graduate Preferences'!B66:ZZ66,C65),"") ->  | E65: =IF(A65<=NGrad,IF(D65=0,0,MATCH(C65,'Graduate Preferences'!B66:ZZ66,0)),"") -> 
A66: 63 | B66: =IF(A66<=NGrad,'Graduate Preferences'!A67,"") ->  | C66: =IF(A66<=NGrad,Process!A66,"") ->  | D66: =IF(A66<=NGrad,COUNTIFS('Graduate Preferences'!B67:ZZ67,C66),"") ->  | E66: =IF(A66<=NGrad,IF(D66=0,0,MATCH(C66,'Graduate Preferences'!B67:ZZ67,0)),"") -> 
A67: 64 | B67: =IF(A67<=NGrad,'Graduate Preferences'!A68,"") ->  | C67: =IF(A67<=NGrad,Process!A67,"") ->  | D67: =IF(A67<=NGrad,COUNTIFS('Graduate Preferences'!B68:ZZ68,C67),"") ->  | E67: =IF(A67<=NGrad,IF(D67=0,0,MATCH(C67,'Graduate Preferences'!B68:ZZ68,0)),"") -> 
A68: 65 | B68: =IF(A68<=NGrad,'Graduate Preferences'!A69,"") ->  | C68: =IF(A68<=NGrad,Process!A68,"") ->  | D68: =IF(A68<=NGrad,COUNTIFS('Graduate Preferences'!B69:ZZ69,C68),"") ->  | E68: =IF(A68<=NGrad,IF(D68=0,0,MATCH(C68,'Graduate Preferences'!B69:ZZ69,0)),"") -> 
A69: 66 | B69: =IF(A69<=NGrad,'Graduate Preferences'!A70,"") ->  | C69: =IF(A69<=NGrad,Process!A69,"") ->  | D69: =IF(A69<=NGrad,COUNTIFS('Graduate Preferences'!B70:ZZ70,C69),"") ->  | E69: =IF(A69<=NGrad,IF(D69=0,0,MATCH(C69,'Graduate Preferences'!B70:ZZ70,0)),"") ->  | G69: =IF(F69="","",RANK(F69,F$4:F$1000)) ->  | L69: =IF(MAX(H$4:H$1000)>=A69,MATCH(A69,H$4:H$1000,0),"") -> 
A70: 67 | B70: =IF(A70<=NGrad,'Graduate Preferences'!A71,"") ->  | C70: =IF(A70<=NGrad,Process!A70,"") ->  | D70: =IF(A70<=NGrad,COUNTIFS('Graduate Preferences'!B71:ZZ71,C70),"") ->  | E70: =IF(A70<=NGrad,IF(D70=0,0,MATCH(C70,'Graduate Preferences'!B71:ZZ71,0)),"") ->  | F70: =IF(AND(J70<>"-",J70>0,I70=F$2),J70,"") ->  | H70: =IF(F70="","",MAX(G$4:G$1000)-G70+1) -> 
A71: 68 | B71: =IF(A71<=NGrad,'Graduate Preferences'!A72,"") ->  | C71: =IF(A71<=NGrad,Process!A71,"") ->  | D71: =IF(A71<=NGrad,COUNTIFS('Graduate Preferences'!B72:ZZ72,C71),"") ->  | E71: =IF(A71<=NGrad,IF(D71=0,0,MATCH(C71,'Graduate Preferences'!B72:ZZ72,0)),"") -> 
A72: 69 | B72: =IF(A72<=NGrad,'Graduate Preferences'!A73,"") ->  | C72: =IF(A72<=NGrad,Process!A72,"") ->  | D72: =IF(A72<=NGrad,COUNTIFS('Graduate Preferences'!B73:ZZ73,C72),"") ->  | E72: =IF(A72<=NGrad,IF(D72=0,0,MATCH(C72,'Graduate Preferences'!B73:ZZ73,0)),"") -> 
A73: 70 | B73: =IF(A73<=NGrad,'Graduate Preferences'!A74,"") ->  | C73: =IF(A73<=NGrad,Process!A73,"") ->  | D73: =IF(A73<=NGrad,COUNTIFS('Graduate Preferences'!B74:ZZ74,C73),"") ->  | E73: =IF(A73<=NGrad,IF(D73=0,0,MATCH(C73,'Graduate Preferences'!B74:ZZ74,0)),"") -> 
A74: 71 | B74: =IF(A74<=NGrad,'Graduate Preferences'!A75,"") ->  | C74: =IF(A74<=NGrad,Process!A74,"") ->  | D74: =IF(A74<=NGrad,COUNTIFS('Graduate Preferences'!B75:ZZ75,C74),"") ->  | E74: =IF(A74<=NGrad,IF(D74=0,0,MATCH(C74,'Graduate Preferences'!B75:ZZ75,0)),"") -> 
A75: 72 | B75: =IF(A75<=NGrad,'Graduate Preferences'!A76,"") ->  | C75: =IF(A75<=NGrad,Process!A75,"") ->  | D75: =IF(A75<=NGrad,COUNTIFS('Graduate Preferences'!B76:ZZ76,C75),"") ->  | E75: =IF(A75<=NGrad,IF(D75=0,0,MATCH(C75,'Graduate Preferences'!B76:ZZ76,0)),"") -> 
A76: 73 | B76: =IF(A76<=NGrad,'Graduate Preferences'!A77,"") ->  | C76: =IF(A76<=NGrad,Process!A76,"") ->  | D76: =IF(A76<=NGrad,COUNTIFS('Graduate Preferences'!B77:ZZ77,C76),"") ->  | E76: =IF(A76<=NGrad,IF(D76=0,0,MATCH(C76,'Graduate Preferences'!B77:ZZ77,0)),"") -> 
A77: 74 | B77: =IF(A77<=NGrad,'Graduate Preferences'!A78,"") ->  | C77: =IF(A77<=NGrad,Process!A77,"") ->  | D77: =IF(A77<=NGrad,COUNTIFS('Graduate Preferences'!B78:ZZ78,C77),"") ->  | E77: =IF(A77<=NGrad,IF(D77=0,0,MATCH(C77,'Graduate Preferences'!B78:ZZ78,0)),"") -> 
A78: 75 | B78: =IF(A78<=NGrad,'Graduate Preferences'!A79,"") ->  | C78: =IF(A78<=NGrad,Process!A78,"") ->  | D78: =IF(A78<=NGrad,COUNTIFS('Graduate Preferences'!B79:ZZ79,C78),"") ->  | E78: =IF(A78<=NGrad,IF(D78=0,0,MATCH(C78,'Graduate Preferences'!B79:ZZ79,0)),"") -> 
A79: 76 | B79: =IF(A79<=NGrad,'Graduate Preferences'!A80,"") ->  | C79: =IF(A79<=NGrad,Process!A79,"") ->  | D79: =IF(A79<=NGrad,COUNTIFS('Graduate Preferences'!B80:ZZ80,C79),"") ->  | E79: =IF(A79<=NGrad,IF(D79=0,0,MATCH(C79,'Graduate Preferences'!B80:ZZ80,0)),"") -> 
A80: 77 | B80: =IF(A80<=NGrad,'Graduate Preferences'!A81,"") ->  | C80: =IF(A80<=NGrad,Process!A80,"") ->  | D80: =IF(A80<=NGrad,COUNTIFS('Graduate Preferences'!B81:ZZ81,C80),"") ->  | E80: =IF(A80<=NGrad,IF(D80=0,0,MATCH(C80,'Graduate Preferences'!B81:ZZ81,0)),"") -> 
A81: 78 | B81: =IF(A81<=NGrad,'Graduate Preferences'!A82,"") ->  | C81: =IF(A81<=NGrad,Process!A81,"") ->  | D81: =IF(A81<=NGrad,COUNTIFS('Graduate Preferences'!B82:ZZ82,C81),"") ->  | E81: =IF(A81<=NGrad,IF(D81=0,0,MATCH(C81,'Graduate Preferences'!B82:ZZ82,0)),"") -> 
A82: 79 | B82: =IF(A82<=NGrad,'Graduate Preferences'!A83,"") ->  | C82: =IF(A82<=NGrad,Process!A82,"") ->  | D82: =IF(A82<=NGrad,COUNTIFS('Graduate Preferences'!B83:ZZ83,C82),"") ->  | E82: =IF(A82<=NGrad,IF(D82=0,0,MATCH(C82,'Graduate Preferences'!B83:ZZ83,0)),"") -> 
A83: 80 | B83: =IF(A83<=NGrad,'Graduate Preferences'!A84,"") ->  | C83: =IF(A83<=NGrad,Process!A83,"") ->  | D83: =IF(A83<=NGrad,COUNTIFS('Graduate Preferences'!B84:ZZ84,C83),"") ->  | E83: =IF(A83<=NGrad,IF(D83=0,0,MATCH(C83,'Graduate Preferences'!B84:ZZ84,0)),"") -> 
A84: 81 | B84: =IF(A84<=NGrad,'Graduate Preferences'!A85,"") ->  | C84: =IF(A84<=NGrad,Process!A84,"") ->  | D84: =IF(A84<=NGrad,COUNTIFS('Graduate Preferences'!B85:ZZ85,C84),"") ->  | E84: =IF(A84<=NGrad,IF(D84=0,0,MATCH(C84,'Graduate Preferences'!B85:ZZ85,0)),"") -> 
A85: 82 | B85: =IF(A85<=NGrad,'Graduate Preferences'!A86,"") ->  | C85: =IF(A85<=NGrad,Process!A85,"") ->  | D85: =IF(A85<=NGrad,COUNTIFS('Graduate Preferences'!B86:ZZ86,C85),"") ->  | E85: =IF(A85<=NGrad,IF(D85=0,0,MATCH(C85,'Graduate Preferences'!B86:ZZ86,0)),"") -> 
A86: 83 | B86: =IF(A86<=NGrad,'Graduate Preferences'!A87,"") ->  | C86: =IF(A86<=NGrad,Process!A86,"") ->  | D86: =IF(A86<=NGrad,COUNTIFS('Graduate Preferences'!B87:ZZ87,C86),"") ->  | E86: =IF(A86<=NGrad,IF(D86=0,0,MATCH(C86,'Graduate Preferences'!B87:ZZ87,0)),"") -> 
A87: 84 | B87: =IF(A87<=NGrad,'Graduate Preferences'!A88,"") ->  | C87: =IF(A87<=NGrad,Process!A87,"") ->  | D87: =IF(A87<=NGrad,COUNTIFS('Graduate Preferences'!B88:ZZ88,C87),"") ->  | E87: =IF(A87<=NGrad,IF(D87=0,0,MATCH(C87,'Graduate Preferences'!B88:ZZ88,0)),"") -> 
A88: 85 | B88: =IF(A88<=NGrad,'Graduate Preferences'!A89,"") ->  | C88: =IF(A88<=NGrad,Process!A88,"") ->  | D88: =IF(A88<=NGrad,COUNTIFS('Graduate Preferences'!B89:ZZ89,C88),"") ->  | E88: =IF(A88<=NGrad,IF(D88=0,0,MATCH(C88,'Graduate Preferences'!B89:ZZ89,0)),"") -> 
A89: 86 | B89: =IF(A89<=NGrad,'Graduate Preferences'!A90,"") ->  | C89: =IF(A89<=NGrad,Process!A89,"") ->  | D89: =IF(A89<=NGrad,COUNTIFS('Graduate Preferences'!B90:ZZ90,C89),"") ->  | E89: =IF(A89<=NGrad,IF(D89=0,0,MATCH(C89,'Graduate Preferences'!B90:ZZ90,0)),"") -> 
A90: 87 | B90: =IF(A90<=NGrad,'Graduate Preferences'!A91,"") ->  | C90: =IF(A90<=NGrad,Process!A90,"") ->  | D90: =IF(A90<=NGrad,COUNTIFS('Graduate Preferences'!B91:ZZ91,C90),"") ->  | E90: =IF(A90<=NGrad,IF(D90=0,0,MATCH(C90,'Graduate Preferences'!B91:ZZ91,0)),"") -> 
A91: 88 | B91: =IF(A91<=NGrad,'Graduate Preferences'!A92,"") ->  | C91: =IF(A91<=NGrad,Process!A91,"") ->  | D91: =IF(A91<=NGrad,COUNTIFS('Graduate Preferences'!B92:ZZ92,C91),"") ->  | E91: =IF(A91<=NGrad,IF(D91=0,0,MATCH(C91,'Graduate Preferences'!B92:ZZ92,0)),"") -> 
A92: 89 | B92: =IF(A92<=NGrad,'Graduate Preferences'!A93,"") ->  | C92: =IF(A92<=NGrad,Process!A92,"") ->  | D92: =IF(A92<=NGrad,COUNTIFS('Graduate Preferences'!B93:ZZ93,C92),"") ->  | E92: =IF(A92<=NGrad,IF(D92=0,0,MATCH(C92,'Graduate Preferences'!B93:ZZ93,0)),"") -> 
A93: 90 | B93: =IF(A93<=NGrad,'Graduate Preferences'!A94,"") ->  | C93: =IF(A93<=NGrad,Process!A93,"") ->  | D93: =IF(A93<=NGrad,COUNTIFS('Graduate Preferences'!B94:ZZ94,C93),"") ->  | E93: =IF(A93<=NGrad,IF(D93=0,0,MATCH(C93,'Graduate Preferences'!B94:ZZ94,0)),"") -> 
A94: 91 | B94: =IF(A94<=NGrad,'Graduate Preferences'!A95,"") ->  | C94: =IF(A94<=NGrad,Process!A94,"") ->  | D94: =IF(A94<=NGrad,COUNTIFS('Graduate Preferences'!B95:ZZ95,C94),"") ->  | E94: =IF(A94<=NGrad,IF(D94=0,0,MATCH(C94,'Graduate Preferences'!B95:ZZ95,0)),"") -> 
A95: 92 | B95: =IF(A95<=NGrad,'Graduate Preferences'!A96,"") ->  | C95: =IF(A95<=NGrad,Process!A95,"") ->  | D95: =IF(A95<=NGrad,COUNTIFS('Graduate Preferences'!B96:ZZ96,C95),"") ->  | E95: =IF(A95<=NGrad,IF(D95=0,0,MATCH(C95,'Graduate Preferences'!B96:ZZ96,0)),"") -> 
A96: 93 | B96: =IF(A96<=NGrad,'Graduate Preferences'!A97,"") ->  | C96: =IF(A96<=NGrad,Process!A96,"") ->  | D96: =IF(A96<=NGrad,COUNTIFS('Graduate Preferences'!B97:ZZ97,C96),"") ->  | E96: =IF(A96<=NGrad,IF(D96=0,0,MATCH(C96,'Graduate Preferences'!B97:ZZ97,0)),"") -> 
A97: 94 | B97: =IF(A97<=NGrad,'Graduate Preferences'!A98,"") ->  | C97: =IF(A97<=NGrad,Process!A97,"") ->  | D97: =IF(A97<=NGrad,COUNTIFS('Graduate Preferences'!B98:ZZ98,C97),"") ->  | E97: =IF(A97<=NGrad,IF(D97=0,0,MATCH(C97,'Graduate Preferences'!B98:ZZ98,0)),"") -> 
A98: 95 | B98: =IF(A98<=NGrad,'Graduate Preferences'!A99,"") ->  | C98: =IF(A98<=NGrad,Process!A98,"") ->  | D98: =IF(A98<=NGrad,COUNTIFS('Graduate Preferences'!B99:ZZ99,C98),"") ->  | E98: =IF(A98<=NGrad,IF(D98=0,0,MATCH(C98,'Graduate Preferences'!B99:ZZ99,0)),"") -> 
A99: 96 | B99: =IF(A99<=NGrad,'Graduate Preferences'!A100,"") ->  | C99: =IF(A99<=NGrad,Process!A99,"") ->  | D99: =IF(A99<=NGrad,COUNTIFS('Graduate Preferences'!B100:ZZ100,C99),"") ->  | E99: =IF(A99<=NGrad,IF(D99=0,0,MATCH(C99,'Graduate Preferences'!B100:ZZ100,0)),"") -> 
A100: 97 | B100: =IF(A100<=NGrad,'Graduate Preferences'!A101,"") ->  | C100: =IF(A100<=NGrad,Process!A100,"") ->  | D100: =IF(A100<=NGrad,COUNTIFS('Graduate Preferences'!B101:ZZ101,C100),"") ->  | E100: =IF(A100<=NGrad,IF(D100=0,0,MATCH(C100,'Graduate Preferences'!B101:ZZ101,0)),"") -> 
A101: 98 | B101: =IF(A101<=NGrad,'Graduate Preferences'!A102,"") ->  | C101: =IF(A101<=NGrad,Process!A101,"") ->  | D101: =IF(A101<=NGrad,COUNTIFS('Graduate Preferences'!B102:ZZ102,C101),"") ->  | E101: =IF(A101<=NGrad,IF(D101=0,0,MATCH(C101,'Graduate Preferences'!B102:ZZ102,0)),"") -> 
A102: 99 | B102: =IF(A102<=NGrad,'Graduate Preferences'!A103,"") ->  | C102: =IF(A102<=NGrad,Process!A102,"") ->  | D102: =IF(A102<=NGrad,COUNTIFS('Graduate Preferences'!B103:ZZ103,C102),"") ->  | E102: =IF(A102<=NGrad,IF(D102=0,0,MATCH(C102,'Graduate Preferences'!B103:ZZ103,0)),"") -> 
A103: 100 | B103: =IF(A103<=NGrad,'Graduate Preferences'!A104,"") ->  | C103: =IF(A103<=NGrad,Process!A103,"") ->  | D103: =IF(A103<=NGrad,COUNTIFS('Graduate Preferences'!B104:ZZ104,C103),"") ->  | E103: =IF(A103<=NGrad,IF(D103=0,0,MATCH(C103,'Graduate Preferences'!B104:ZZ104,0)),"") -> 
A104: 101 | B104: =IF(A104<=NGrad,'Graduate Preferences'!A105,"") ->  | C104: =IF(A104<=NGrad,Process!A104,"") ->  | D104: =IF(A104<=NGrad,COUNTIFS('Graduate Preferences'!B105:ZZ105,C104),"") ->  | E104: =IF(A104<=NGrad,IF(D104=0,0,MATCH(C104,'Graduate Preferences'!B105:ZZ105,0)),"") -> 
A105: 102 | B105: =IF(A105<=NGrad,'Graduate Preferences'!A106,"") ->  | C105: =IF(A105<=NGrad,Process!A105,"") ->  | D105: =IF(A105<=NGrad,COUNTIFS('Graduate Preferences'!B106:ZZ106,C105),"") ->  | E105: =IF(A105<=NGrad,IF(D105=0,0,MATCH(C105,'Graduate Preferences'!B106:ZZ106,0)),"") -> 
A106: 103 | B106: =IF(A106<=NGrad,'Graduate Preferences'!A107,"") ->  | C106: =IF(A106<=NGrad,Process!A106,"") ->  | D106: =IF(A106<=NGrad,COUNTIFS('Graduate Preferences'!B107:ZZ107,C106),"") ->  | E106: =IF(A106<=NGrad,IF(D106=0,0,MATCH(C106,'Graduate Preferences'!B107:ZZ107,0)),"") -> 
A107: 104 | B107: =IF(A107<=NGrad,'Graduate Preferences'!A108,"") ->  | C107: =IF(A107<=NGrad,Process!A107,"") ->  | D107: =IF(A107<=NGrad,COUNTIFS('Graduate Preferences'!B108:ZZ108,C107),"") ->  | E107: =IF(A107<=NGrad,IF(D107=0,0,MATCH(C107,'Graduate Preferences'!B108:ZZ108,0)),"") -> 
A108: 105 | B108: =IF(A108<=NGrad,'Graduate Preferences'!A109,"") ->  | C108: =IF(A108<=NGrad,Process!A108,"") ->  | D108: =IF(A108<=NGrad,COUNTIFS('Graduate Preferences'!B109:ZZ109,C108),"") ->  | E108: =IF(A108<=NGrad,IF(D108=0,0,MATCH(C108,'Graduate Preferences'!B109:ZZ109,0)),"") -> 
A109: 106 | B109: =IF(A109<=NGrad,'Graduate Preferences'!A110,"") ->  | C109: =IF(A109<=NGrad,Process!A109,"") ->  | D109: =IF(A109<=NGrad,COUNTIFS('Graduate Preferences'!B110:ZZ110,C109),"") ->  | E109: =IF(A109<=NGrad,IF(D109=0,0,MATCH(C109,'Graduate Preferences'!B110:ZZ110,0)),"") -> 
A110: 107 | B110: =IF(A110<=NGrad,'Graduate Preferences'!A111,"") ->  | C110: =IF(A110<=NGrad,Process!A110,"") ->  | D110: =IF(A110<=NGrad,COUNTIFS('Graduate Preferences'!B111:ZZ111,C110),"") ->  | E110: =IF(A110<=NGrad,IF(D110=0,0,MATCH(C110,'Graduate Preferences'!B111:ZZ111,0)),"") -> 
A111: 108 | B111: =IF(A111<=NGrad,'Graduate Preferences'!A112,"") ->  | C111: =IF(A111<=NGrad,Process!A111,"") ->  | D111: =IF(A111<=NGrad,COUNTIFS('Graduate Preferences'!B112:ZZ112,C111),"") ->  | E111: =IF(A111<=NGrad,IF(D111=0,0,MATCH(C111,'Graduate Preferences'!B112:ZZ112,0)),"") -> 
A112: 109 | B112: =IF(A112<=NGrad,'Graduate Preferences'!A113,"") ->  | C112: =IF(A112<=NGrad,Process!A112,"") ->  | D112: =IF(A112<=NGrad,COUNTIFS('Graduate Preferences'!B113:ZZ113,C112),"") ->  | E112: =IF(A112<=NGrad,IF(D112=0,0,MATCH(C112,'Graduate Preferences'!B113:ZZ113,0)),"") -> 
A113: 110 | B113: =IF(A113<=NGrad,'Graduate Preferences'!A114,"") ->  | C113: =IF(A113<=NGrad,Process!A113,"") ->  | D113: =IF(A113<=NGrad,COUNTIFS('Graduate Preferences'!B114:ZZ114,C113),"") ->  | E113: =IF(A113<=NGrad,IF(D113=0,0,MATCH(C113,'Graduate Preferences'!B114:ZZ114,0)),"") -> 
A114: 111 | B114: =IF(A114<=NGrad,'Graduate Preferences'!A115,"") ->  | C114: =IF(A114<=NGrad,Process!A114,"") ->  | D114: =IF(A114<=NGrad,COUNTIFS('Graduate Preferences'!B115:ZZ115,C114),"") ->  | E114: =IF(A114<=NGrad,IF(D114=0,0,MATCH(C114,'Graduate Preferences'!B115:ZZ115,0)),"") -> 
A115: 112 | B115: =IF(A115<=NGrad,'Graduate Preferences'!A116,"") ->  | C115: =IF(A115<=NGrad,Process!A115,"") ->  | D115: =IF(A115<=NGrad,COUNTIFS('Graduate Preferences'!B116:ZZ116,C115),"") ->  | E115: =IF(A115<=NGrad,IF(D115=0,0,MATCH(C115,'Graduate Preferences'!B116:ZZ116,0)),"") -> 
A116: 113 | B116: =IF(A116<=NGrad,'Graduate Preferences'!A117,"") ->  | C116: =IF(A116<=NGrad,Process!A116,"") ->  | D116: =IF(A116<=NGrad,COUNTIFS('Graduate Preferences'!B117:ZZ117,C116),"") ->  | E116: =IF(A116<=NGrad,IF(D116=0,0,MATCH(C116,'Graduate Preferences'!B117:ZZ117,0)),"") -> 
A117: 114 | B117: =IF(A117<=NGrad,'Graduate Preferences'!A118,"") ->  | C117: =IF(A117<=NGrad,Process!A117,"") ->  | D117: =IF(A117<=NGrad,COUNTIFS('Graduate Preferences'!B118:ZZ118,C117),"") ->  | E117: =IF(A117<=NGrad,IF(D117=0,0,MATCH(C117,'Graduate Preferences'!B118:ZZ118,0)),"") -> 
A118: 115 | B118: =IF(A118<=NGrad,'Graduate Preferences'!A119,"") ->  | C118: =IF(A118<=NGrad,Process!A118,"") ->  | D118: =IF(A118<=NGrad,COUNTIFS('Graduate Preferences'!B119:ZZ119,C118),"") ->  | E118: =IF(A118<=NGrad,IF(D118=0,0,MATCH(C118,'Graduate Preferences'!B119:ZZ119,0)),"") -> 
A119: 116 | B119: =IF(A119<=NGrad,'Graduate Preferences'!A120,"") ->  | C119: =IF(A119<=NGrad,Process!A119,"") ->  | D119: =IF(A119<=NGrad,COUNTIFS('Graduate Preferences'!B120:ZZ120,C119),"") ->  | E119: =IF(A119<=NGrad,IF(D119=0,0,MATCH(C119,'Graduate Preferences'!B120:ZZ120,0)),"") -> 
A120: 117 | B120: =IF(A120<=NGrad,'Graduate Preferences'!A121,"") ->  | C120: =IF(A120<=NGrad,Process!A120,"") ->  | D120: =IF(A120<=NGrad,COUNTIFS('Graduate Preferences'!B121:ZZ121,C120),"") ->  | E120: =IF(A120<=NGrad,IF(D120=0,0,MATCH(C120,'Graduate Preferences'!B121:ZZ121,0)),"") -> 
A121: 118 | B121: =IF(A121<=NGrad,'Graduate Preferences'!A122,"") ->  | C121: =IF(A121<=NGrad,Process!A121,"") ->  | D121: =IF(A121<=NGrad,COUNTIFS('Graduate Preferences'!B122:ZZ122,C121),"") ->  | E121: =IF(A121<=NGrad,IF(D121=0,0,MATCH(C121,'Graduate Preferences'!B122:ZZ122,0)),"") -> 
A122: 119 | B122: =IF(A122<=NGrad,'Graduate Preferences'!A123,"") ->  | C122: =IF(A122<=NGrad,Process!A122,"") ->  | D122: =IF(A122<=NGrad,COUNTIFS('Graduate Preferences'!B123:ZZ123,C122),"") ->  | E122: =IF(A122<=NGrad,IF(D122=0,0,MATCH(C122,'Graduate Preferences'!B123:ZZ123,0)),"") -> 
A123: 120 | B123: =IF(A123<=NGrad,'Graduate Preferences'!A124,"") ->  | C123: =IF(A123<=NGrad,Process!A123,"") ->  | D123: =IF(A123<=NGrad,COUNTIFS('Graduate Preferences'!B124:ZZ124,C123),"") ->  | E123: =IF(A123<=NGrad,IF(D123=0,0,MATCH(C123,'Graduate Preferences'!B124:ZZ124,0)),"") -> 
A124: 121 | B124: =IF(A124<=NGrad,'Graduate Preferences'!A125,"") ->  | C124: =IF(A124<=NGrad,Process!A124,"") ->  | D124: =IF(A124<=NGrad,COUNTIFS('Graduate Preferences'!B125:ZZ125,C124),"") ->  | E124: =IF(A124<=NGrad,IF(D124=0,0,MATCH(C124,'Graduate Preferences'!B125:ZZ125,0)),"") -> 
A125: 122 | B125: =IF(A125<=NGrad,'Graduate Preferences'!A126,"") ->  | C125: =IF(A125<=NGrad,Process!A125,"") ->  | D125: =IF(A125<=NGrad,COUNTIFS('Graduate Preferences'!B126:ZZ126,C125),"") ->  | E125: =IF(A125<=NGrad,IF(D125=0,0,MATCH(C125,'Graduate Preferences'!B126:ZZ126,0)),"") -> 
A126: 123 | B126: =IF(A126<=NGrad,'Graduate Preferences'!A127,"") ->  | C126: =IF(A126<=NGrad,Process!A126,"") ->  | D126: =IF(A126<=NGrad,COUNTIFS('Graduate Preferences'!B127:ZZ127,C126),"") ->  | E126: =IF(A126<=NGrad,IF(D126=0,0,MATCH(C126,'Graduate Preferences'!B127:ZZ127,0)),"") -> 
A127: 124 | B127: =IF(A127<=NGrad,'Graduate Preferences'!A128,"") ->  | C127: =IF(A127<=NGrad,Process!A127,"") ->  | D127: =IF(A127<=NGrad,COUNTIFS('Graduate Preferences'!B128:ZZ128,C127),"") ->  | E127: =IF(A127<=NGrad,IF(D127=0,0,MATCH(C127,'Graduate Preferences'!B128:ZZ128,0)),"") -> 
A128: 125 | B128: =IF(A128<=NGrad,'Graduate Preferences'!A129,"") ->  | C128: =IF(A128<=NGrad,Process!A128,"") ->  | D128: =IF(A128<=NGrad,COUNTIFS('Graduate Preferences'!B129:ZZ129,C128),"") ->  | E128: =IF(A128<=NGrad,IF(D128=0,0,MATCH(C128,'Graduate Preferences'!B129:ZZ129,0)),"") -> 
A129: 126 | B129: =IF(A129<=NGrad,'Graduate Preferences'!A130,"") ->  | C129: =IF(A129<=NGrad,Process!A129,"") ->  | D129: =IF(A129<=NGrad,COUNTIFS('Graduate Preferences'!B130:ZZ130,C129),"") ->  | E129: =IF(A129<=NGrad,IF(D129=0,0,MATCH(C129,'Graduate Preferences'!B130:ZZ130,0)),"") -> 
A130: 127 | B130: =IF(A130<=NGrad,'Graduate Preferences'!A131,"") ->  | C130: =IF(A130<=NGrad,Process!A130,"") ->  | D130: =IF(A130<=NGrad,COUNTIFS('Graduate Preferences'!B131:ZZ131,C130),"") ->  | E130: =IF(A130<=NGrad,IF(D130=0,0,MATCH(C130,'Graduate Preferences'!B131:ZZ131,0)),"") -> 
A131: 128 | B131: =IF(A131<=NGrad,'Graduate Preferences'!A132,"") ->  | C131: =IF(A131<=NGrad,Process!A131,"") ->  | D131: =IF(A131<=NGrad,COUNTIFS('Graduate Preferences'!B132:ZZ132,C131),"") ->  | E131: =IF(A131<=NGrad,IF(D131=0,0,MATCH(C131,'Graduate Preferences'!B132:ZZ132,0)),"") -> 
A132: 129 | B132: =IF(A132<=NGrad,'Graduate Preferences'!A133,"") ->  | C132: =IF(A132<=NGrad,Process!A132,"") ->  | D132: =IF(A132<=NGrad,COUNTIFS('Graduate Preferences'!B133:ZZ133,C132),"") ->  | E132: =IF(A132<=NGrad,IF(D132=0,0,MATCH(C132,'Graduate Preferences'!B133:ZZ133,0)),"") -> 
A133: 130 | B133: =IF(A133<=NGrad,'Graduate Preferences'!A134,"") ->  | C133: =IF(A133<=NGrad,Process!A133,"") ->  | D133: =IF(A133<=NGrad,COUNTIFS('Graduate Preferences'!B134:ZZ134,C133),"") ->  | E133: =IF(A133<=NGrad,IF(D133=0,0,MATCH(C133,'Graduate Preferences'!B134:ZZ134,0)),"") ->  | G133: =IF(F133="","",RANK(F133,F$4:F$1000)) ->  | L133: =IF(MAX(H$4:H$1000)>=A133,MATCH(A133,H$4:H$1000,0),"") -> 
A134: 131 | B134: =IF(A134<=NGrad,'Graduate Preferences'!A135,"") ->  | C134: =IF(A134<=NGrad,Process!A134,"") ->  | D134: =IF(A134<=NGrad,COUNTIFS('Graduate Preferences'!B135:ZZ135,C134),"") ->  | E134: =IF(A134<=NGrad,IF(D134=0,0,MATCH(C134,'Graduate Preferences'!B135:ZZ135,0)),"") ->  | F134: =IF(AND(J134<>"-",J134>0,I134=F$2),J134,"") ->  | H134: =IF(F134="","",MAX(G$4:G$1000)-G134+1) -> 
A135: 132 | B135: =IF(A135<=NGrad,'Graduate Preferences'!A136,"") ->  | C135: =IF(A135<=NGrad,Process!A135,"") ->  | D135: =IF(A135<=NGrad,COUNTIFS('Graduate Preferences'!B136:ZZ136,C135),"") ->  | E135: =IF(A135<=NGrad,IF(D135=0,0,MATCH(C135,'Graduate Preferences'!B136:ZZ136,0)),"") -> 
A136: 133 | B136: =IF(A136<=NGrad,'Graduate Preferences'!A137,"") ->  | C136: =IF(A136<=NGrad,Process!A136,"") ->  | D136: =IF(A136<=NGrad,COUNTIFS('Graduate Preferences'!B137:ZZ137,C136),"") ->  | E136: =IF(A136<=NGrad,IF(D136=0,0,MATCH(C136,'Graduate Preferences'!B137:ZZ137,0)),"") -> 
A137: 134 | B137: =IF(A137<=NGrad,'Graduate Preferences'!A138,"") ->  | C137: =IF(A137<=NGrad,Process!A137,"") ->  | D137: =IF(A137<=NGrad,COUNTIFS('Graduate Preferences'!B138:ZZ138,C137),"") ->  | E137: =IF(A137<=NGrad,IF(D137=0,0,MATCH(C137,'Graduate Preferences'!B138:ZZ138,0)),"") -> 
A138: 135 | B138: =IF(A138<=NGrad,'Graduate Preferences'!A139,"") ->  | C138: =IF(A138<=NGrad,Process!A138,"") ->  | D138: =IF(A138<=NGrad,COUNTIFS('Graduate Preferences'!B139:ZZ139,C138),"") ->  | E138: =IF(A138<=NGrad,IF(D138=0,0,MATCH(C138,'Graduate Preferences'!B139:ZZ139,0)),"") -> 
A139: 136 | B139: =IF(A139<=NGrad,'Graduate Preferences'!A140,"") ->  | C139: =IF(A139<=NGrad,Process!A139,"") ->  | D139: =IF(A139<=NGrad,COUNTIFS('Graduate Preferences'!B140:ZZ140,C139),"") ->  | E139: =IF(A139<=NGrad,IF(D139=0,0,MATCH(C139,'Graduate Preferences'!B140:ZZ140,0)),"") -> 
A140: 137 | B140: =IF(A140<=NGrad,'Graduate Preferences'!A141,"") ->  | C140: =IF(A140<=NGrad,Process!A140,"") ->  | D140: =IF(A140<=NGrad,COUNTIFS('Graduate Preferences'!B141:ZZ141,C140),"") ->  | E140: =IF(A140<=NGrad,IF(D140=0,0,MATCH(C140,'Graduate Preferences'!B141:ZZ141,0)),"") -> 
A141: 138 | B141: =IF(A141<=NGrad,'Graduate Preferences'!A142,"") ->  | C141: =IF(A141<=NGrad,Process!A141,"") ->  | D141: =IF(A141<=NGrad,COUNTIFS('Graduate Preferences'!B142:ZZ142,C141),"") ->  | E141: =IF(A141<=NGrad,IF(D141=0,0,MATCH(C141,'Graduate Preferences'!B142:ZZ142,0)),"") -> 
A142: 139 | B142: =IF(A142<=NGrad,'Graduate Preferences'!A143,"") ->  | C142: =IF(A142<=NGrad,Process!A142,"") ->  | D142: =IF(A142<=NGrad,COUNTIFS('Graduate Preferences'!B143:ZZ143,C142),"") ->  | E142: =IF(A142<=NGrad,IF(D142=0,0,MATCH(C142,'Graduate Preferences'!B143:ZZ143,0)),"") -> 
A143: 140 | B143: =IF(A143<=NGrad,'Graduate Preferences'!A144,"") ->  | C143: =IF(A143<=NGrad,Process!A143,"") ->  | D143: =IF(A143<=NGrad,COUNTIFS('Graduate Preferences'!B144:ZZ144,C143),"") ->  | E143: =IF(A143<=NGrad,IF(D143=0,0,MATCH(C143,'Graduate Preferences'!B144:ZZ144,0)),"") -> 
A144: 141 | B144: =IF(A144<=NGrad,'Graduate Preferences'!A145,"") ->  | C144: =IF(A144<=NGrad,Process!A144,"") ->  | D144: =IF(A144<=NGrad,COUNTIFS('Graduate Preferences'!B145:ZZ145,C144),"") ->  | E144: =IF(A144<=NGrad,IF(D144=0,0,MATCH(C144,'Graduate Preferences'!B145:ZZ145,0)),"") -> 
A145: 142 | B145: =IF(A145<=NGrad,'Graduate Preferences'!A146,"") ->  | C145: =IF(A145<=NGrad,Process!A145,"") ->  | D145: =IF(A145<=NGrad,COUNTIFS('Graduate Preferences'!B146:ZZ146,C145),"") ->  | E145: =IF(A145<=NGrad,IF(D145=0,0,MATCH(C145,'Graduate Preferences'!B146:ZZ146,0)),"") -> 
A146: 143 | B146: =IF(A146<=NGrad,'Graduate Preferences'!A147,"") ->  | C146: =IF(A146<=NGrad,Process!A146,"") ->  | D146: =IF(A146<=NGrad,COUNTIFS('Graduate Preferences'!B147:ZZ147,C146),"") ->  | E146: =IF(A146<=NGrad,IF(D146=0,0,MATCH(C146,'Graduate Preferences'!B147:ZZ147,0)),"") -> 
A147: 144 | B147: =IF(A147<=NGrad,'Graduate Preferences'!A148,"") ->  | C147: =IF(A147<=NGrad,Process!A147,"") ->  | D147: =IF(A147<=NGrad,COUNTIFS('Graduate Preferences'!B148:ZZ148,C147),"") ->  | E147: =IF(A147<=NGrad,IF(D147=0,0,MATCH(C147,'Graduate Preferences'!B148:ZZ148,0)),"") -> 
A148: 145 | B148: =IF(A148<=NGrad,'Graduate Preferences'!A149,"") ->  | C148: =IF(A148<=NGrad,Process!A148,"") ->  | D148: =IF(A148<=NGrad,COUNTIFS('Graduate Preferences'!B149:ZZ149,C148),"") ->  | E148: =IF(A148<=NGrad,IF(D148=0,0,MATCH(C148,'Graduate Preferences'!B149:ZZ149,0)),"") -> 
A149: 146 | B149: =IF(A149<=NGrad,'Graduate Preferences'!A150,"") ->  | C149: =IF(A149<=NGrad,Process!A149,"") ->  | D149: =IF(A149<=NGrad,COUNTIFS('Graduate Preferences'!B150:ZZ150,C149),"") ->  | E149: =IF(A149<=NGrad,IF(D149=0,0,MATCH(C149,'Graduate Preferences'!B150:ZZ150,0)),"") -> 
A150: 147 | B150: =IF(A150<=NGrad,'Graduate Preferences'!A151,"") ->  | C150: =IF(A150<=NGrad,Process!A150,"") ->  | D150: =IF(A150<=NGrad,COUNTIFS('Graduate Preferences'!B151:ZZ151,C150),"") ->  | E150: =IF(A150<=NGrad,IF(D150=0,0,MATCH(C150,'Graduate Preferences'!B151:ZZ151,0)),"") -> 
A151: 148 | B151: =IF(A151<=NGrad,'Graduate Preferences'!A152,"") ->  | C151: =IF(A151<=NGrad,Process!A151,"") ->  | D151: =IF(A151<=NGrad,COUNTIFS('Graduate Preferences'!B152:ZZ152,C151),"") ->  | E151: =IF(A151<=NGrad,IF(D151=0,0,MATCH(C151,'Graduate Preferences'!B152:ZZ152,0)),"") -> 
A152: 149 | B152: =IF(A152<=NGrad,'Graduate Preferences'!A153,"") ->  | C152: =IF(A152<=NGrad,Process!A152,"") ->  | D152: =IF(A152<=NGrad,COUNTIFS('Graduate Preferences'!B153:ZZ153,C152),"") ->  | E152: =IF(A152<=NGrad,IF(D152=0,0,MATCH(C152,'Graduate Preferences'!B153:ZZ153,0)),"") -> 
A153: 150 | B153: =IF(A153<=NGrad,'Graduate Preferences'!A154,"") ->  | C153: =IF(A153<=NGrad,Process!A153,"") ->  | D153: =IF(A153<=NGrad,COUNTIFS('Graduate Preferences'!B154:ZZ154,C153),"") ->  | E153: =IF(A153<=NGrad,IF(D153=0,0,MATCH(C153,'Graduate Preferences'!B154:ZZ154,0)),"") -> 
A154: 151 | B154: =IF(A154<=NGrad,'Graduate Preferences'!A155,"") ->  | C154: =IF(A154<=NGrad,Process!A154,"") ->  | D154: =IF(A154<=NGrad,COUNTIFS('Graduate Preferences'!B155:ZZ155,C154),"") ->  | E154: =IF(A154<=NGrad,IF(D154=0,0,MATCH(C154,'Graduate Preferences'!B155:ZZ155,0)),"") -> 
A155: 152 | B155: =IF(A155<=NGrad,'Graduate Preferences'!A156,"") ->  | C155: =IF(A155<=NGrad,Process!A155,"") ->  | D155: =IF(A155<=NGrad,COUNTIFS('Graduate Preferences'!B156:ZZ156,C155),"") ->  | E155: =IF(A155<=NGrad,IF(D155=0,0,MATCH(C155,'Graduate Preferences'!B156:ZZ156,0)),"") -> 
A156: 153 | B156: =IF(A156<=NGrad,'Graduate Preferences'!A157,"") ->  | C156: =IF(A156<=NGrad,Process!A156,"") ->  | D156: =IF(A156<=NGrad,COUNTIFS('Graduate Preferences'!B157:ZZ157,C156),"") ->  | E156: =IF(A156<=NGrad,IF(D156=0,0,MATCH(C156,'Graduate Preferences'!B157:ZZ157,0)),"") -> 
A157: 154 | B157: =IF(A157<=NGrad,'Graduate Preferences'!A158,"") ->  | C157: =IF(A157<=NGrad,Process!A157,"") ->  | D157: =IF(A157<=NGrad,COUNTIFS('Graduate Preferences'!B158:ZZ158,C157),"") ->  | E157: =IF(A157<=NGrad,IF(D157=0,0,MATCH(C157,'Graduate Preferences'!B158:ZZ158,0)),"") -> 
A158: 155 | B158: =IF(A158<=NGrad,'Graduate Preferences'!A159,"") ->  | C158: =IF(A158<=NGrad,Process!A158,"") ->  | D158: =IF(A158<=NGrad,COUNTIFS('Graduate Preferences'!B159:ZZ159,C158),"") ->  | E158: =IF(A158<=NGrad,IF(D158=0,0,MATCH(C158,'Graduate Preferences'!B159:ZZ159,0)),"") -> 
A159: 156 | B159: =IF(A159<=NGrad,'Graduate Preferences'!A160,"") ->  | C159: =IF(A159<=NGrad,Process!A159,"") ->  | D159: =IF(A159<=NGrad,COUNTIFS('Graduate Preferences'!B160:ZZ160,C159),"") ->  | E159: =IF(A159<=NGrad,IF(D159=0,0,MATCH(C159,'Graduate Preferences'!B160:ZZ160,0)),"") -> 
A160: 157 | B160: =IF(A160<=NGrad,'Graduate Preferences'!A161,"") ->  | C160: =IF(A160<=NGrad,Process!A160,"") ->  | D160: =IF(A160<=NGrad,COUNTIFS('Graduate Preferences'!B161:ZZ161,C160),"") ->  | E160: =IF(A160<=NGrad,IF(D160=0,0,MATCH(C160,'Graduate Preferences'!B161:ZZ161,0)),"") -> 
A161: 158 | B161: =IF(A161<=NGrad,'Graduate Preferences'!A162,"") ->  | C161: =IF(A161<=NGrad,Process!A161,"") ->  | D161: =IF(A161<=NGrad,COUNTIFS('Graduate Preferences'!B162:ZZ162,C161),"") ->  | E161: =IF(A161<=NGrad,IF(D161=0,0,MATCH(C161,'Graduate Preferences'!B162:ZZ162,0)),"") -> 
A162: 159 | B162: =IF(A162<=NGrad,'Graduate Preferences'!A163,"") ->  | C162: =IF(A162<=NGrad,Process!A162,"") ->  | D162: =IF(A162<=NGrad,COUNTIFS('Graduate Preferences'!B163:ZZ163,C162),"") ->  | E162: =IF(A162<=NGrad,IF(D162=0,0,MATCH(C162,'Graduate Preferences'!B163:ZZ163,0)),"") -> 
A163: 160 | B163: =IF(A163<=NGrad,'Graduate Preferences'!A164,"") ->  | C163: =IF(A163<=NGrad,Process!A163,"") ->  | D163: =IF(A163<=NGrad,COUNTIFS('Graduate Preferences'!B164:ZZ164,C163),"") ->  | E163: =IF(A163<=NGrad,IF(D163=0,0,MATCH(C163,'Graduate Preferences'!B164:ZZ164,0)),"") -> 
A164: 161 | B164: =IF(A164<=NGrad,'Graduate Preferences'!A165,"") ->  | C164: =IF(A164<=NGrad,Process!A164,"") ->  | D164: =IF(A164<=NGrad,COUNTIFS('Graduate Preferences'!B165:ZZ165,C164),"") ->  | E164: =IF(A164<=NGrad,IF(D164=0,0,MATCH(C164,'Graduate Preferences'!B165:ZZ165,0)),"") -> 
A165: 162 | B165: =IF(A165<=NGrad,'Graduate Preferences'!A166,"") ->  | C165: =IF(A165<=NGrad,Process!A165,"") ->  | D165: =IF(A165<=NGrad,COUNTIFS('Graduate Preferences'!B166:ZZ166,C165),"") ->  | E165: =IF(A165<=NGrad,IF(D165=0,0,MATCH(C165,'Graduate Preferences'!B166:ZZ166,0)),"") -> 
A166: 163 | B166: =IF(A166<=NGrad,'Graduate Preferences'!A167,"") ->  | C166: =IF(A166<=NGrad,Process!A166,"") ->  | D166: =IF(A166<=NGrad,COUNTIFS('Graduate Preferences'!B167:ZZ167,C166),"") ->  | E166: =IF(A166<=NGrad,IF(D166=0,0,MATCH(C166,'Graduate Preferences'!B167:ZZ167,0)),"") -> 
A167: 164 | B167: =IF(A167<=NGrad,'Graduate Preferences'!A168,"") ->  | C167: =IF(A167<=NGrad,Process!A167,"") ->  | D167: =IF(A167<=NGrad,COUNTIFS('Graduate Preferences'!B168:ZZ168,C167),"") ->  | E167: =IF(A167<=NGrad,IF(D167=0,0,MATCH(C167,'Graduate Preferences'!B168:ZZ168,0)),"") -> 
A168: 165 | B168: =IF(A168<=NGrad,'Graduate Preferences'!A169,"") ->  | C168: =IF(A168<=NGrad,Process!A168,"") ->  | D168: =IF(A168<=NGrad,COUNTIFS('Graduate Preferences'!B169:ZZ169,C168),"") ->  | E168: =IF(A168<=NGrad,IF(D168=0,0,MATCH(C168,'Graduate Preferences'!B169:ZZ169,0)),"") -> 
A169: 166 | B169: =IF(A169<=NGrad,'Graduate Preferences'!A170,"") ->  | C169: =IF(A169<=NGrad,Process!A169,"") ->  | D169: =IF(A169<=NGrad,COUNTIFS('Graduate Preferences'!B170:ZZ170,C169),"") ->  | E169: =IF(A169<=NGrad,IF(D169=0,0,MATCH(C169,'Graduate Preferences'!B170:ZZ170,0)),"") -> 
A170: 167 | B170: =IF(A170<=NGrad,'Graduate Preferences'!A171,"") ->  | C170: =IF(A170<=NGrad,Process!A170,"") ->  | D170: =IF(A170<=NGrad,COUNTIFS('Graduate Preferences'!B171:ZZ171,C170),"") ->  | E170: =IF(A170<=NGrad,IF(D170=0,0,MATCH(C170,'Graduate Preferences'!B171:ZZ171,0)),"") -> 
A171: 168 | B171: =IF(A171<=NGrad,'Graduate Preferences'!A172,"") ->  | C171: =IF(A171<=NGrad,Process!A171,"") ->  | D171: =IF(A171<=NGrad,COUNTIFS('Graduate Preferences'!B172:ZZ172,C171),"") ->  | E171: =IF(A171<=NGrad,IF(D171=0,0,MATCH(C171,'Graduate Preferences'!B172:ZZ172,0)),"") -> 
A172: 169 | B172: =IF(A172<=NGrad,'Graduate Preferences'!A173,"") ->  | C172: =IF(A172<=NGrad,Process!A172,"") ->  | D172: =IF(A172<=NGrad,COUNTIFS('Graduate Preferences'!B173:ZZ173,C172),"") ->  | E172: =IF(A172<=NGrad,IF(D172=0,0,MATCH(C172,'Graduate Preferences'!B173:ZZ173,0)),"") -> 
A173: 170 | B173: =IF(A173<=NGrad,'Graduate Preferences'!A174,"") ->  | C173: =IF(A173<=NGrad,Process!A173,"") ->  | D173: =IF(A173<=NGrad,COUNTIFS('Graduate Preferences'!B174:ZZ174,C173),"") ->  | E173: =IF(A173<=NGrad,IF(D173=0,0,MATCH(C173,'Graduate Preferences'!B174:ZZ174,0)),"") -> 
A174: 171 | B174: =IF(A174<=NGrad,'Graduate Preferences'!A175,"") ->  | C174: =IF(A174<=NGrad,Process!A174,"") ->  | D174: =IF(A174<=NGrad,COUNTIFS('Graduate Preferences'!B175:ZZ175,C174),"") ->  | E174: =IF(A174<=NGrad,IF(D174=0,0,MATCH(C174,'Graduate Preferences'!B175:ZZ175,0)),"") -> 
A175: 172 | B175: =IF(A175<=NGrad,'Graduate Preferences'!A176,"") ->  | C175: =IF(A175<=NGrad,Process!A175,"") ->  | D175: =IF(A175<=NGrad,COUNTIFS('Graduate Preferences'!B176:ZZ176,C175),"") ->  | E175: =IF(A175<=NGrad,IF(D175=0,0,MATCH(C175,'Graduate Preferences'!B176:ZZ176,0)),"") -> 
A176: 173 | B176: =IF(A176<=NGrad,'Graduate Preferences'!A177,"") ->  | C176: =IF(A176<=NGrad,Process!A176,"") ->  | D176: =IF(A176<=NGrad,COUNTIFS('Graduate Preferences'!B177:ZZ177,C176),"") ->  | E176: =IF(A176<=NGrad,IF(D176=0,0,MATCH(C176,'Graduate Preferences'!B177:ZZ177,0)),"") -> 
A177: 174 | B177: =IF(A177<=NGrad,'Graduate Preferences'!A178,"") ->  | C177: =IF(A177<=NGrad,Process!A177,"") ->  | D177: =IF(A177<=NGrad,COUNTIFS('Graduate Preferences'!B178:ZZ178,C177),"") ->  | E177: =IF(A177<=NGrad,IF(D177=0,0,MATCH(C177,'Graduate Preferences'!B178:ZZ178,0)),"") -> 
A178: 175 | B178: =IF(A178<=NGrad,'Graduate Preferences'!A179,"") ->  | C178: =IF(A178<=NGrad,Process!A178,"") ->  | D178: =IF(A178<=NGrad,COUNTIFS('Graduate Preferences'!B179:ZZ179,C178),"") ->  | E178: =IF(A178<=NGrad,IF(D178=0,0,MATCH(C178,'Graduate Preferences'!B179:ZZ179,0)),"") -> 
A179: 176 | B179: =IF(A179<=NGrad,'Graduate Preferences'!A180,"") ->  | C179: =IF(A179<=NGrad,Process!A179,"") ->  | D179: =IF(A179<=NGrad,COUNTIFS('Graduate Preferences'!B180:ZZ180,C179),"") ->  | E179: =IF(A179<=NGrad,IF(D179=0,0,MATCH(C179,'Graduate Preferences'!B180:ZZ180,0)),"") -> 
A180: 177 | B180: =IF(A180<=NGrad,'Graduate Preferences'!A181,"") ->  | C180: =IF(A180<=NGrad,Process!A180,"") ->  | D180: =IF(A180<=NGrad,COUNTIFS('Graduate Preferences'!B181:ZZ181,C180),"") ->  | E180: =IF(A180<=NGrad,IF(D180=0,0,MATCH(C180,'Graduate Preferences'!B181:ZZ181,0)),"") -> 
A181: 178 | B181: =IF(A181<=NGrad,'Graduate Preferences'!A182,"") ->  | C181: =IF(A181<=NGrad,Process!A181,"") ->  | D181: =IF(A181<=NGrad,COUNTIFS('Graduate Preferences'!B182:ZZ182,C181),"") ->  | E181: =IF(A181<=NGrad,IF(D181=0,0,MATCH(C181,'Graduate Preferences'!B182:ZZ182,0)),"") -> 
A182: 179 | B182: =IF(A182<=NGrad,'Graduate Preferences'!A183,"") ->  | C182: =IF(A182<=NGrad,Process!A182,"") ->  | D182: =IF(A182<=NGrad,COUNTIFS('Graduate Preferences'!B183:ZZ183,C182),"") ->  | E182: =IF(A182<=NGrad,IF(D182=0,0,MATCH(C182,'Graduate Preferences'!B183:ZZ183,0)),"") -> 
A183: 180 | B183: =IF(A183<=NGrad,'Graduate Preferences'!A184,"") ->  | C183: =IF(A183<=NGrad,Process!A183,"") ->  | D183: =IF(A183<=NGrad,COUNTIFS('Graduate Preferences'!B184:ZZ184,C183),"") ->  | E183: =IF(A183<=NGrad,IF(D183=0,0,MATCH(C183,'Graduate Preferences'!B184:ZZ184,0)),"") -> 
A184: 181 | B184: =IF(A184<=NGrad,'Graduate Preferences'!A185,"") ->  | C184: =IF(A184<=NGrad,Process!A184,"") ->  | D184: =IF(A184<=NGrad,COUNTIFS('Graduate Preferences'!B185:ZZ185,C184),"") ->  | E184: =IF(A184<=NGrad,IF(D184=0,0,MATCH(C184,'Graduate Preferences'!B185:ZZ185,0)),"") -> 
A185: 182 | B185: =IF(A185<=NGrad,'Graduate Preferences'!A186,"") ->  | C185: =IF(A185<=NGrad,Process!A185,"") ->  | D185: =IF(A185<=NGrad,COUNTIFS('Graduate Preferences'!B186:ZZ186,C185),"") ->  | E185: =IF(A185<=NGrad,IF(D185=0,0,MATCH(C185,'Graduate Preferences'!B186:ZZ186,0)),"") -> 
A186: 183 | B186: =IF(A186<=NGrad,'Graduate Preferences'!A187,"") ->  | C186: =IF(A186<=NGrad,Process!A186,"") ->  | D186: =IF(A186<=NGrad,COUNTIFS('Graduate Preferences'!B187:ZZ187,C186),"") ->  | E186: =IF(A186<=NGrad,IF(D186=0,0,MATCH(C186,'Graduate Preferences'!B187:ZZ187,0)),"") -> 
A187: 184 | B187: =IF(A187<=NGrad,'Graduate Preferences'!A188,"") ->  | C187: =IF(A187<=NGrad,Process!A187,"") ->  | D187: =IF(A187<=NGrad,COUNTIFS('Graduate Preferences'!B188:ZZ188,C187),"") ->  | E187: =IF(A187<=NGrad,IF(D187=0,0,MATCH(C187,'Graduate Preferences'!B188:ZZ188,0)),"") -> 
A188: 185 | B188: =IF(A188<=NGrad,'Graduate Preferences'!A189,"") ->  | C188: =IF(A188<=NGrad,Process!A188,"") ->  | D188: =IF(A188<=NGrad,COUNTIFS('Graduate Preferences'!B189:ZZ189,C188),"") ->  | E188: =IF(A188<=NGrad,IF(D188=0,0,MATCH(C188,'Graduate Preferences'!B189:ZZ189,0)),"") -> 
A189: 186 | B189: =IF(A189<=NGrad,'Graduate Preferences'!A190,"") ->  | C189: =IF(A189<=NGrad,Process!A189,"") ->  | D189: =IF(A189<=NGrad,COUNTIFS('Graduate Preferences'!B190:ZZ190,C189),"") ->  | E189: =IF(A189<=NGrad,IF(D189=0,0,MATCH(C189,'Graduate Preferences'!B190:ZZ190,0)),"") -> 
A190: 187 | B190: =IF(A190<=NGrad,'Graduate Preferences'!A191,"") ->  | C190: =IF(A190<=NGrad,Process!A190,"") ->  | D190: =IF(A190<=NGrad,COUNTIFS('Graduate Preferences'!B191:ZZ191,C190),"") ->  | E190: =IF(A190<=NGrad,IF(D190=0,0,MATCH(C190,'Graduate Preferences'!B191:ZZ191,0)),"") -> 
A191: 188 | B191: =IF(A191<=NGrad,'Graduate Preferences'!A192,"") ->  | C191: =IF(A191<=NGrad,Process!A191,"") ->  | D191: =IF(A191<=NGrad,COUNTIFS('Graduate Preferences'!B192:ZZ192,C191),"") ->  | E191: =IF(A191<=NGrad,IF(D191=0,0,MATCH(C191,'Graduate Preferences'!B192:ZZ192,0)),"") -> 
A192: 189 | B192: =IF(A192<=NGrad,'Graduate Preferences'!A193,"") ->  | C192: =IF(A192<=NGrad,Process!A192,"") ->  | D192: =IF(A192<=NGrad,COUNTIFS('Graduate Preferences'!B193:ZZ193,C192),"") ->  | E192: =IF(A192<=NGrad,IF(D192=0,0,MATCH(C192,'Graduate Preferences'!B193:ZZ193,0)),"") -> 
A193: 190 | B193: =IF(A193<=NGrad,'Graduate Preferences'!A194,"") ->  | C193: =IF(A193<=NGrad,Process!A193,"") ->  | D193: =IF(A193<=NGrad,COUNTIFS('Graduate Preferences'!B194:ZZ194,C193),"") ->  | E193: =IF(A193<=NGrad,IF(D193=0,0,MATCH(C193,'Graduate Preferences'!B194:ZZ194,0)),"") -> 
A194: 191 | B194: =IF(A194<=NGrad,'Graduate Preferences'!A195,"") ->  | C194: =IF(A194<=NGrad,Process!A194,"") ->  | D194: =IF(A194<=NGrad,COUNTIFS('Graduate Preferences'!B195:ZZ195,C194),"") ->  | E194: =IF(A194<=NGrad,IF(D194=0,0,MATCH(C194,'Graduate Preferences'!B195:ZZ195,0)),"") -> 
A195: 192 | B195: =IF(A195<=NGrad,'Graduate Preferences'!A196,"") ->  | C195: =IF(A195<=NGrad,Process!A195,"") ->  | D195: =IF(A195<=NGrad,COUNTIFS('Graduate Preferences'!B196:ZZ196,C195),"") ->  | E195: =IF(A195<=NGrad,IF(D195=0,0,MATCH(C195,'Graduate Preferences'!B196:ZZ196,0)),"") -> 
A196: 193 | B196: =IF(A196<=NGrad,'Graduate Preferences'!A197,"") ->  | C196: =IF(A196<=NGrad,Process!A196,"") ->  | D196: =IF(A196<=NGrad,COUNTIFS('Graduate Preferences'!B197:ZZ197,C196),"") ->  | E196: =IF(A196<=NGrad,IF(D196=0,0,MATCH(C196,'Graduate Preferences'!B197:ZZ197,0)),"") -> 
A197: 194 | B197: =IF(A197<=NGrad,'Graduate Preferences'!A198,"") ->  | C197: =IF(A197<=NGrad,Process!A197,"") ->  | D197: =IF(A197<=NGrad,COUNTIFS('Graduate Preferences'!B198:ZZ198,C197),"") ->  | E197: =IF(A197<=NGrad,IF(D197=0,0,MATCH(C197,'Graduate Preferences'!B198:ZZ198,0)),"") ->  | G197: =IF(F197="","",RANK(F197,F$4:F$1000)) ->  | L197: =IF(MAX(H$4:H$1000)>=A197,MATCH(A197,H$4:H$1000,0),"") -> 
A198: 195 | B198: =IF(A198<=NGrad,'Graduate Preferences'!A199,"") ->  | C198: =IF(A198<=NGrad,Process!A198,"") ->  | D198: =IF(A198<=NGrad,COUNTIFS('Graduate Preferences'!B199:ZZ199,C198),"") ->  | E198: =IF(A198<=NGrad,IF(D198=0,0,MATCH(C198,'Graduate Preferences'!B199:ZZ199,0)),"") ->  | F198: =IF(AND(J198<>"-",J198>0,I198=F$2),J198,"") ->  | H198: =IF(F198="","",MAX(G$4:G$1000)-G198+1) -> 
A199: 196 | B199: =IF(A199<=NGrad,'Graduate Preferences'!A200,"") ->  | C199: =IF(A199<=NGrad,Process!A199,"") ->  | D199: =IF(A199<=NGrad,COUNTIFS('Graduate Preferences'!B200:ZZ200,C199),"") ->  | E199: =IF(A199<=NGrad,IF(D199=0,0,MATCH(C199,'Graduate Preferences'!B200:ZZ200,0)),"") -> 
A200: 197 | B200: =IF(A200<=NGrad,'Graduate Preferences'!A201,"") ->  | C200: =IF(A200<=NGrad,Process!A200,"") ->  | D200: =IF(A200<=NGrad,COUNTIFS('Graduate Preferences'!B201:ZZ201,C200),"") ->  | E200: =IF(A200<=NGrad,IF(D200=0,0,MATCH(C200,'Graduate Preferences'!B201:ZZ201,0)),"") -> 
... 982 more rows
